Service Area,Service Division,Expense Type,Expense Code,Detailed Expense Type,Payment Date,Transaction Number,Amount Exc Vat,Supplier Name
Adults Wellbeing and Health,Commissioning inc Supporting People,Supplies and Services,338047,Services,03-Dec-2012,2527358-GTD/SB/12/02,"2,500.00",REDACTED - PAYMENT TO INDIVIDUAL
Adults Wellbeing and Health,Commissioning inc Supporting People,Supplies and Services,338047,Services,03-Dec-2012,2527457-1110,"1,700.00",CRAIG PUGH.
Adults Wellbeing and Health,Commissioning inc Supporting People,Supplies and Services,338047,Services,03-Dec-2012,2527544-GD-002,"1,300.00",HANNAH GREGORY.
Adults Wellbeing and Health,Commissioning inc Supporting People,Supplies and Services,338047,Services,03-Dec-2012,2527554-DUR0212B,"2,100.00",HICKS WATKINS PRODUCTION SERVICES.
Adults Wellbeing and Health,Commissioning inc Supporting People,Supplies and Services,338047,Services,03-Dec-2012,2527556-2,"2,952.00",REDACTED - PAYMENT TO INDIVIDUAL
Adults Wellbeing and Health,Commissioning inc Supporting People,Supplies and Services,338047,Services,03-Dec-2012,2527570-JNA/5235,"2,778.96",JANET PLATER MANAGEMENT LTD.
Adults Wellbeing and Health,Commissioning inc Supporting People,Supplies and Services,338047,Services,03-Dec-2012,2527570-JSM/5234,"2,697.23",JANET PLATER MANAGEMENT LTD.
Adults Wellbeing and Health,Commissioning inc Supporting People,Supplies and Services,338047,Services,03-Dec-2012,2527575-2,"1,300.00",JOHN MURDOCH.
Adults Wellbeing and Health,Commissioning inc Supporting People,Supplies and Services,338047,Services,03-Dec-2012,2527585-1011,"1,375.00",JR PRODUCTIONS.
Adults Wellbeing and Health,Commissioning inc Supporting People,Supplies and Services,338047,Services,03-Dec-2012,2527592-0875,"1,950.00",KEW PERSONAL MANAGEMENT.
Adults Wellbeing and Health,Commissioning inc Supporting People,Supplies and Services,338047,Services,03-Dec-2012,2527626-SB/NOV12-JAN13,"1,500.00",MARK IAN THOMPSON.
Adults Wellbeing and Health,Commissioning inc Supporting People,Supplies and Services,338047,Services,03-Dec-2012,2527627-114151,"1,950.00",MARLOWES DANCERS & MUSICAL THEATRE AGENCY.
Adults Wellbeing and Health,Commissioning inc Supporting People,Supplies and Services,338047,Services,03-Dec-2012,2527633-SF/22936,"3,197.18",MICHAEL GARRETT ASSOCIATES LTD T/A GLOBAL ARTISTS.
Adults Wellbeing and Health,Commissioning inc Supporting People,Supplies and Services,338047,Services,03-Dec-2012,2527640-SB,"1,370.00",MR THOMAS HEWITT.
Adults Wellbeing and Health,Commissioning inc Supporting People,Supplies and Services,338047,Services,03-Dec-2012,2527648-DR/2032,"2,952.00",NELSON BROWNE MANAGEMENT LTD.
Adults Wellbeing and Health,Commissioning inc Supporting People,Supplies and Services,338027,Services,03-Dec-2012,2527672-K5,"1,200.00",P MACARI.
Adults Wellbeing and Health,Commissioning inc Supporting People,Supplies and Services,338047,Services,03-Dec-2012,2527678-2,"2,778.96",PAUL SMITH....
Adults Wellbeing and Health,Commissioning inc Supporting People,Supplies and Services,304259,Equipment and Materials,03-Dec-2012,2527683-C-APR-NOV,667.00,PHILIPPA GILL.
Adults Wellbeing and Health,Commissioning inc Supporting People,Supplies and Services,304259,Equipment and Materials,03-Dec-2012,2527683-Y-R,"1,465.00",PHILIPPA GILL.
Adults Wellbeing and Health,Commissioning inc Supporting People,Supplies and Services,338047,Services,03-Dec-2012,2527760-002,"1,275.00",REDACTED - PAYMENT TO INDIVIDUAL
Adults Wellbeing and Health,Commissioning inc Supporting People,Supplies and Services,338047,Services,03-Dec-2012,2527780-SB,"1,950.00",TIFFANY MANAGEMENT.
Adults Wellbeing and Health,Commissioning inc Supporting People,Supplies and Services,338047,Services,03-Dec-2012,2527821-2127,"2,952.00",WILLIAMSON & HOLMES.
Adults Wellbeing and Health,Head of Adults,Transport,230005,Contract Hire,03-Dec-2012,2527344-111211,750.00,24/7 TAXI SERVICES LTD.
Adults Wellbeing and Health,Head of Adults,Supplies and Services,324117,Provisions,03-Dec-2012,2527378-89,"1,580.00",ASHBARTON CATERING.
Adults Wellbeing and Health,Head of Adults,Transport,230005,Contract Hire,03-Dec-2012,2527429-NCL013OCT12,"1,360.00",CHESTER CABS.
Adults Wellbeing and Health,Head of Adults,Supplies and Services,338094,Services,03-Dec-2012,2527430-12-409,855.00,CHESTER LE STREET & DISTRICT CVS.
Adults Wellbeing and Health,Head of Adults,Supplies and Services,338094,Services,03-Dec-2012,2527430-2490,800.00,CHESTER LE STREET & DISTRICT CVS.
Adults Wellbeing and Health,Head of Adults,Supplies and Services,338094,Services,03-Dec-2012,2527431-12-338A,585.00,CHESTER LE STREET & DISTRICT CVS.
Adults Wellbeing and Health,Head of Adults,Transport,230005,Contract Hire,03-Dec-2012,2527581-CH3-26/11/12,576.00,JOVIAL PRIVATE HIRE.
Adults Wellbeing and Health,Planning and Performance,Employees,040149,"Recruitment, Instruction and Training",03-Dec-2012,2527646-ADS,"1,200.00",NEDATS.
Adults Wellbeing and Health,Planning and Performance,Supplies and Services,312075,"Newspapers, Books and Periodicals",03-Dec-2012,2527815-057002367,"1,133.75",WATERSTONES.
Adults Wellbeing and Health,Social Inclusion,Supplies and Services,338091,Services,03-Dec-2012,2527569-375,"1,264.54",J & K TRAINING LTD.
Adults Wellbeing and Health,Social Inclusion,Supplies and Services,338091,Services,03-Dec-2012,2527569-376,833.49,J & K TRAINING LTD.
Assistant Chief Executive,Partnerships & Community Engagement Div.,Supplies and Services,384700,Miscellaneous Expenses,03-Dec-2012,2527797-12AB-WEAR006,"5,000.00",TYNE VALLEY CYCLING CLUB EVENTS.
Children and Young Peoples Services,CYPS - Local Authority,Transfer Payments,510026,School Children,03-Dec-2012,2527381-EDS/SUS/32,"2,000.00",AYCLIFFE COMMUNITY NURSERY.
Children and Young Peoples Services,CYPS - Local Authority,Transfer Payments,510032,School Children,03-Dec-2012,2527411-DFE-A2012/AD,945.75,BUDDIES CHILDCARE CENTRE.
Children and Young Peoples Services,CYPS - Local Authority,Transfer Payments,510032,School Children,03-Dec-2012,2527415-DFE-A2012/A,"1,236.75",BUTTERCUP NURSERIES LTD.
Children and Young Peoples Services,CYPS - Local Authority,Transfer Payments,510032,School Children,03-Dec-2012,2527415-DFETYOO,"1,091.25",BUTTERCUP NURSERIES LTD.
Children and Young Peoples Services,CYPS - Local Authority,Transport,230007,Contract Hire,03-Dec-2012,2527416-BIL0015,"1,297.70",CA MUSGROVE.
Children and Young Peoples Services,CYPS - Local Authority,Construction Work,908105,Construction work,03-Dec-2012,2527419-92563118,"2,966.40",CAPITA SYMONDS LTD.
Children and Young Peoples Services,CYPS - Local Authority,Transport,230007,Contract Hire,03-Dec-2012,2527437-7/W008NOV2012,"1,969.92",CLARKS MINIBUSES & TAXIS.
Children and Young Peoples Services,CYPS - Local Authority,Transfer Payments,510032,School Children,03-Dec-2012,2527449-DFE-A2012/AD,"1,455.00",COUNDON & LEEHOLME EARLY YEARS CENTRE LTD.
Children and Young Peoples Services,CYPS - Local Authority,Transfer Payments,510032,School Children,03-Dec-2012,2527516-DTYOO,523.80,FRANCES COOK.
Children and Young Peoples Services,CYPS - Local Authority,Transport,235154,Public Transport,03-Dec-2012,2527534-29750,"1,905.00",GO GATESHEAD LTD.
Children and Young Peoples Services,CYPS - Local Authority,Transport,235005,Public Transport,03-Dec-2012,2527534-31337,"21,600.00",GO GATESHEAD LTD.
Children and Young Peoples Services,CYPS - Local Authority,Transfer Payments,510032,School Children,03-Dec-2012,2527549-DFE2YOO,"1,208.15",HAZEL DENE CHILDCARE LTD.
Children and Young Peoples Services,CYPS - Local Authority,Supplies and Services,338027,Services,03-Dec-2012,2527562-DURH/0258,"35,040.04",INSPIREDSPACES DURHAM LTD.
Children and Young Peoples Services,CYPS - Local Authority,Supplies and Services,338027,Services,03-Dec-2012,2527562-DURH/0267,"35,040.04",INSPIREDSPACES DURHAM LTD.
Children and Young Peoples Services,CYPS - Local Authority,Construction Work,908105,Construction work,03-Dec-2012,2527562-DURH/0308,"20,649.73",INSPIREDSPACES DURHAM LTD.
Children and Young Peoples Services,CYPS - Local Authority,"Vehicles, Equipment, Furniture and Fittings",912701,Computer equipment,03-Dec-2012,2527562-DURH/0310,"567,945.39",INSPIREDSPACES DURHAM LTD.
Children and Young Peoples Services,CYPS - Local Authority,Transport,230007,Contract Hire,03-Dec-2012,2527589-N193,"1,300.00",K & R TAXIS.
Children and Young Peoples Services,CYPS - Local Authority,Transport,230007,Contract Hire,03-Dec-2012,2527596-003,760.00,KT TAXIS.
Children and Young Peoples Services,CYPS - Local Authority,Transport,230007,Contract Hire,03-Dec-2012,2527607-2762,"1,320.00",LINCAB TAXIS.
Children and Young Peoples Services,CYPS - Local Authority,Transport,230005,Contract Hire,03-Dec-2012,2527612-1277,"1,768.00",LOCAL TRANSPORT LTD.
Children and Young Peoples Services,CYPS - Local Authority,Transfer Payments,510032,School Children,03-Dec-2012,2527660-DFE-A2012/A,727.50,NURSERY TIME.
Children and Young Peoples Services,CYPS - Local Authority,Transport,230007,Contract Hire,03-Dec-2012,2527677-3,"1,520.00",PAUL SMITH T/A LANGLEY TAXIS.
Children and Young Peoples Services,CYPS - Local Authority,Transport,230007,Contract Hire,03-Dec-2012,2527680-ST24/12,"1,731.24",PB PRIVATE HIRE.
Children and Young Peoples Services,CYPS - Local Authority,Transfer Payments,510032,School Children,03-Dec-2012,2527727-DFE-AUTUMN2012/A,"1,091.25",SEAHAM HOUSE DAY NURSERY.
Children and Young Peoples Services,CYPS - Local Authority,Transfer Payments,510032,School Children,03-Dec-2012,2527728-DFETYOOA,"1,731.45",SEASIDE LANE NURSERY.
Children and Young Peoples Services,CYPS - Local Authority,Transport,230007,Contract Hire,03-Dec-2012,2527735-51175,"1,708.96",SHOTTON PRIVATE HIRE.
Children and Young Peoples Services,CYPS - Local Authority,Transfer Payments,510032,School Children,03-Dec-2012,2527743-DFE-T-Y-O-O,654.75,SMALL WORLD DAY NURSERY.
Children and Young Peoples Services,CYPS - Local Authority,Transfer Payments,510032,School Children,03-Dec-2012,2527818-DFETYOO,509.25,WESTMINSTER DAY NURSERIES LTD.
Children and Young Peoples Services,CYPS - Local Authority,Supplies and Services,304649,Equipment and Materials,03-Dec-2012,2527822-P03657540101.,667.65,WINSLOW.
Children and Young Peoples Services,Dedicated Schools Grant,Supplies and Services,352001,Conference Expenses,03-Dec-2012,2527487-247203,650.00,DURHAM UNIVERSITY CONFERENCE & TOURISM LTD.
Corporate Resources,Financing- Resources,Supplies and Services,338019,Services,03-Dec-2012,2527367-211276,710.94,ALLPAY.NET LTD.
Neighbourhood Services,Direct Services,Supplies and Services,304221,Equipment and Materials,03-Dec-2012,2527395-B84530,679.15,BIDDLE AIR SYSTEMS LTD.
Neighbourhood Services,Direct Services,Third Party Payments,430100,Rendered by Private Contractors,03-Dec-2012,2527478-9100624895,"1,774.28",DORMA UK LTD.
Neighbourhood Services,Direct Services,Stock,926004,Stock,03-Dec-2012,2527525-8605805,"19,309.17",GB OILS T/A BRETT FUELS.
Neighbourhood Services,Direct Services,Stock,926004,Stock,03-Dec-2012,2527525-8605813,"3,303.50",GB OILS T/A BRETT FUELS.
Neighbourhood Services,Direct Services,Stock,926004,Stock,03-Dec-2012,2527525-8635880,"1,978.26",GB OILS T/A BRETT FUELS.
Neighbourhood Services,Direct Services,Stock,926900,Stock in hand-Inventory system,03-Dec-2012,2527537-06/438379,"1,911.20",GREENHAM TRADING LTD.
Neighbourhood Services,Direct Services,Supplies and Services,304221,Equipment and Materials,03-Dec-2012,2527540-J3446,"2,768.13",GROVE REED.
Neighbourhood Services,Direct Services,Third Party Payments,430101,Rendered by Private Contractors,03-Dec-2012,2527553-INV08992884,522.60,HI Q TYRESERVICES.
Neighbourhood Services,Direct Services,Third Party Payments,430101,Rendered by Private Contractors,03-Dec-2012,2527553-INV08993492,885.60,HI Q TYRESERVICES.
Neighbourhood Services,Direct Services,Stock,926900,Stock in hand-Inventory system,03-Dec-2012,2527614-10130,"1,222.00",LOGIC STREET & PARK FURNITURE LTD.
Neighbourhood Services,Direct Services,Stock,926900,Stock in hand-Inventory system,03-Dec-2012,2527620-827/024043,993.91,MAGNET LTD.
Neighbourhood Services,Direct Services,Stock,926900,Stock in hand-Inventory system,03-Dec-2012,2527620-827/024750,693.00,MAGNET LTD.
Neighbourhood Services,Direct Services,Supplies and Services,342051,Computers and Communications,03-Dec-2012,2527650-INVOICE,"9,029.17",NEWCASTLE UPON TYNE CITY COUNCIL.
Neighbourhood Services,Projects and Business services,Third Party Payments,430105,Rendered by Private Contractors,03-Dec-2012,2527520-565696,"8,825.40",G O`BRIEN & SONS LTD.
Neighbourhood Services,Sport & Leisure,Other Expenses,914001,Other capital expenses,03-Dec-2012,2527399-CN524/01,"3,178.18",BLACKPATH CONSTRUCTION (NE) LTD.
Neighbourhood Services,Sport & Leisure,Third Party Payments,460305,Contract Payments,03-Dec-2012,2527687-58981326,"2,793.53",PHS GROUP PLC.
Neighbourhood Services,Sport & Leisure,Supplies and Services,338094,Services,03-Dec-2012,2527826-458,"9,224.85",XCEL DEVELOPMENTS.
Neighbourhood Services,Technical Services,Supplies and Services,304221,Equipment and Materials,03-Dec-2012,2527349-LLI264905,843.43,A THOMPSON & SONS LTD.
Neighbourhood Services,Technical Services,Supplies and Services,304221,Equipment and Materials,03-Dec-2012,2527349-LLI265258,626.80,A THOMPSON & SONS LTD.
Neighbourhood Services,Technical Services,Supplies and Services,304358,Equipment and Materials,03-Dec-2012,2527530-8956,776.32,GEORGE VARDY HAULAGE.
RED HRA,Housing Revenue Account,Debtors,930106,Debtor-furnished tenancy scheme,03-Dec-2012,2527650-1800006202346,"43,264.85",NEWCASTLE UPON TYNE CITY COUNCIL.
RED HRA,HRA Capital,Construction Work,908105,Construction work,03-Dec-2012,2527435-2957,718.40,CITY FABRICATIONS.
RED HRA,HRA Capital,Construction Work,908105,Construction work,03-Dec-2012,2527475-107147,"1,099.48",DEERNESS FENCING LTD.
RED HRA,HRA Capital,Construction Work,908105,Construction work,03-Dec-2012,2527509-103231,"31,301.95",ESH CONSTRUCTION LTD FORMERLY LUMSDEN & CARROLL CONSTRUCTION LTD.
RED HRA,HRA Capital,Construction Work,908105,Construction work,03-Dec-2012,2527509-103254,"188,147.06",ESH CONSTRUCTION LTD FORMERLY LUMSDEN & CARROLL CONSTRUCTION LTD.
RED HRA,HRA Capital,Construction Work,908105,Construction work,03-Dec-2012,2527700-127848,"4,232.18",R BLAND LTD.
Regeneration & Economic Development,Economic Development and Housing,Fees,901002,Professional Fees,03-Dec-2012,2527419-92688270,"5,002.56",CAPITA SYMONDS LTD.
Regeneration & Economic Development,Economic Development and Housing,Employees,040149,"Recruitment, Instruction and Training",03-Dec-2012,2527485-DOLC/2012/49,965.00,DURHAM OPEN LEARNING COLLEGE.
Regeneration & Economic Development,Economic Development and Housing,Construction Work,908105,Construction work,03-Dec-2012,2527650-1800006215328,"111,559.43",NEWCASTLE UPON TYNE CITY COUNCIL.
Regeneration & Economic Development,Economic Development and Housing,Supplies and Services,304337,Equipment and Materials,03-Dec-2012,2527658-90173,733.85,NOVA LEATHERS LTD.
Regeneration & Economic Development,Economic Development and Housing,Supplies and Services,338029,Services,03-Dec-2012,2527676-PB277B,"3,250.00",PAUL BAYMAN.
Regeneration & Economic Development,Economic Development and Housing,Cap Exp on Grants & Other Financial Assistance (REFCUS),918401,Capital grants,03-Dec-2012,2527779-SIP121021,"1,880.00",THYSSENKRUPP ENCASA LTD.
Regeneration & Economic Development,Economic Development and Housing,Cap Exp on Grants & Other Financial Assistance (REFCUS),918401,Capital grants,03-Dec-2012,2527779-SIP121167,"1,695.00",THYSSENKRUPP ENCASA LTD.
Regeneration & Economic Development,Economic Development and Housing,Cap Exp on Grants & Other Financial Assistance (REFCUS),918401,Capital grants,03-Dec-2012,2527779-SIP121173,"1,555.00",THYSSENKRUPP ENCASA LTD.
Regeneration & Economic Development,"Spatial Policy, Planning, Assets & Environment",Creditors,952024,Creditor-sub contractors retention,03-Dec-2012,2527594-12020042,"1,165.41",KIER ENERGY SOLUTIONS LTD.
Regeneration & Economic Development,"Spatial Policy, Planning, Assets & Environment",Construction Work,908105,Construction work,03-Dec-2012,2527594-12020050,949.20,KIER ENERGY SOLUTIONS LTD.
Adults Wellbeing and Health,Commissioning inc Supporting People,Third Party Payments,473111,Purchase of Care,04-Dec-2012,2528464-2064,"9,970.00",DAYBREAK.
Adults Wellbeing and Health,Commissioning inc Supporting People,Supplies and Services,324117,Provisions,04-Dec-2012,2528615-150144,925.00,TOMMY TUCKER LTD .
Adults Wellbeing and Health,Social Inclusion,Supplies and Services,384199,Miscellaneous Expenses,04-Dec-2012,2528423-INV01798,"7,500.00",ACUMEN COMM ENTERPRISE DEVELOPMENT TRUST LTD.
Adults Wellbeing and Health,Social Inclusion,Supplies and Services,304259,Equipment and Materials,04-Dec-2012,2528451-802617022,960.00,CITY & GUILDS OF LONDON INSTITUTE.
Adults Wellbeing and Health,Social Inclusion,Supplies and Services,384199,Miscellaneous Expenses,04-Dec-2012,2528456-511517,"86,000.00",COUNTY DURHAM PCT .
Adults Wellbeing and Health,Social Inclusion,Supplies and Services,338099,Services,04-Dec-2012,2528476-DDH192,"1,000.00",DURHAM DALES HEALTH.
Adults Wellbeing and Health,Social Inclusion,Supplies and Services,364999,Grants to Voluntary Organisations,04-Dec-2012,2528506-MCG2012/2013,"10,500.00",HORDEN YOUTH & COMMUNITY CENTRE.
Adults Wellbeing and Health,Social Inclusion,Supplies and Services,364999,Grants to Voluntary Organisations,04-Dec-2012,2528603-MCG2012/2013,"10,500.00",STANLEY COMMUNITY ASSOCIATION.
Adults Wellbeing and Health,Social Inclusion,Supplies and Services,384199,Miscellaneous Expenses,04-Dec-2012,2528631-AAP1,"1,000.00",WEAR VALLEY WOMENS AID.
Children and Young Peoples Services,CYPS - Local Authority,Third Party Payments,440015,Other Third Party Payments,04-Dec-2012,2527841-844804,"1,210.60",REDACTED - PAYMENT TO INDIVIDUAL
Children and Young Peoples Services,CYPS - Local Authority,Third Party Payments,440015,Other Third Party Payments,04-Dec-2012,2527841-844805,"1,210.60",REDACTED - PAYMENT TO INDIVIDUAL
Children and Young Peoples Services,CYPS - Local Authority,Third Party Payments,440028,Other Third Party Payments,04-Dec-2012,2527857-845187,"1,491.14",REDACTED - PAYMENT TO INDIVIDUAL
Children and Young Peoples Services,CYPS - Local Authority,Third Party Payments,440001,Other Third Party Payments,04-Dec-2012,2527886-844840,522.66,REDACTED - PAYMENT TO INDIVIDUAL
Children and Young Peoples Services,CYPS - Local Authority,Third Party Payments,440001,Other Third Party Payments,04-Dec-2012,2527958-844206,"3,489.75",REDACTED - PAYMENT TO INDIVIDUAL
Children and Young Peoples Services,CYPS - Local Authority,Third Party Payments,440029,Other Third Party Payments,04-Dec-2012,2528058-844853,679.19,REDACTED - PAYMENT TO INDIVIDUAL
Children and Young Peoples Services,CYPS - Local Authority,Third Party Payments,440001,Other Third Party Payments,04-Dec-2012,2528112-843915,688.24,REDACTED - PAYMENT TO INDIVIDUAL
Children and Young Peoples Services,CYPS - Local Authority,Third Party Payments,440001,Other Third Party Payments,04-Dec-2012,2528136-843982,522.66,REDACTED - PAYMENT TO INDIVIDUAL
Children and Young Peoples Services,CYPS - Local Authority,Third Party Payments,440001,Other Third Party Payments,04-Dec-2012,2528248-843971,522.66,REDACTED - PAYMENT TO INDIVIDUAL
Children and Young Peoples Services,CYPS - Local Authority,Transfer Payments,510032,School Children,04-Dec-2012,2528440-DFE-A12-B,509.25,BISHOP AUCKLAND COLLEGE NURSERY.
Children and Young Peoples Services,CYPS - Local Authority,Supplies and Services,384199,Miscellaneous Expenses,04-Dec-2012,2528449-INC001443,"4,376.00",CFBT EDUCATIONAL TRUST.
Children and Young Peoples Services,CYPS - Local Authority,Transport,230005,Contract Hire,04-Dec-2012,2528460-0,849.20,CROFT BUSINESS SERVICES (UK) LTD T/A CROFT TAXIS.
Children and Young Peoples Services,CYPS - Local Authority,Transport,230005,Contract Hire,04-Dec-2012,2528460-3604-1/9/12,953.39,CROFT BUSINESS SERVICES (UK) LTD T/A CROFT TAXIS.
Children and Young Peoples Services,CYPS - Local Authority,Supplies and Services,304259,Equipment and Materials,04-Dec-2012,2528463-121116-27762,612.00,DAWSONS MUSIC LTD.
Children and Young Peoples Services,CYPS - Local Authority,Third Party Payments,425040,Rendered by Voluntary Organisations,04-Dec-2012,2528488-630053961,"3,265.50",FOSTER CARE ASSOCIATES LTD.
Children and Young Peoples Services,CYPS - Local Authority,Third Party Payments,425040,Rendered by Voluntary Organisations,04-Dec-2012,2528488-630053962,"3,265.50",FOSTER CARE ASSOCIATES LTD.
Children and Young Peoples Services,CYPS - Local Authority,Third Party Payments,425040,Rendered by Voluntary Organisations,04-Dec-2012,2528488-630057740,"4,180.58",FOSTER CARE ASSOCIATES LTD.
Children and Young Peoples Services,CYPS - Local Authority,Third Party Payments,425040,Rendered by Voluntary Organisations,04-Dec-2012,2528488-630057904,"4,181.44",FOSTER CARE ASSOCIATES LTD.
Children and Young Peoples Services,CYPS - Local Authority,Third Party Payments,425040,Rendered by Voluntary Organisations,04-Dec-2012,2528488-630057988,"4,181.44",FOSTER CARE ASSOCIATES LTD.
Children and Young Peoples Services,CYPS - Local Authority,Third Party Payments,425040,Rendered by Voluntary Organisations,04-Dec-2012,2528488-630058094,"3,374.35",FOSTER CARE ASSOCIATES LTD.
Children and Young Peoples Services,CYPS - Local Authority,Third Party Payments,425040,Rendered by Voluntary Organisations,04-Dec-2012,2528488-630058095,"3,374.35",FOSTER CARE ASSOCIATES LTD.
Children and Young Peoples Services,CYPS - Local Authority,Third Party Payments,425040,Rendered by Voluntary Organisations,04-Dec-2012,2528488-630058499,"4,079.43",FOSTER CARE ASSOCIATES LTD.
Children and Young Peoples Services,CYPS - Local Authority,Third Party Payments,425040,Rendered by Voluntary Organisations,04-Dec-2012,2528488-630058542,"4,079.43",FOSTER CARE ASSOCIATES LTD.
Children and Young Peoples Services,CYPS - Local Authority,Third Party Payments,425040,Rendered by Voluntary Organisations,04-Dec-2012,2528488-630058671,"4,079.43",FOSTER CARE ASSOCIATES LTD.
Children and Young Peoples Services,CYPS - Local Authority,Third Party Payments,425040,Rendered by Voluntary Organisations,04-Dec-2012,2528488-630058837,"4,079.43",FOSTER CARE ASSOCIATES LTD.
Children and Young Peoples Services,CYPS - Local Authority,Third Party Payments,425040,Rendered by Voluntary Organisations,04-Dec-2012,2528488-630058843,"4,079.43",FOSTER CARE ASSOCIATES LTD.
Children and Young Peoples Services,CYPS - Local Authority,Third Party Payments,425040,Rendered by Voluntary Organisations,04-Dec-2012,2528488-630058859,"4,079.43",FOSTER CARE ASSOCIATES LTD.
Children and Young Peoples Services,CYPS - Local Authority,Third Party Payments,425040,Rendered by Voluntary Organisations,04-Dec-2012,2528488-630058951,"4,079.43",FOSTER CARE ASSOCIATES LTD.
Children and Young Peoples Services,CYPS - Local Authority,Third Party Payments,425040,Rendered by Voluntary Organisations,04-Dec-2012,2528488-630058952,"4,079.43",FOSTER CARE ASSOCIATES LTD.
Children and Young Peoples Services,CYPS - Local Authority,Transfer Payments,510032,School Children,04-Dec-2012,2528495-A12-B,"4,485.00",GIANT STEPS LTD.
Children and Young Peoples Services,CYPS - Local Authority,Transfer Payments,510032,School Children,04-Dec-2012,2528495-DFEA2012-B,"2,521.25",GIANT STEPS LTD.
Children and Young Peoples Services,CYPS - Local Authority,Transfer Payments,510032,School Children,04-Dec-2012,2528495-E-A12B,"1,511.00",GIANT STEPS LTD.
Children and Young Peoples Services,CYPS - Local Authority,Transfer Payments,510032,School Children,04-Dec-2012,2528496-DFE-A2012,"3,492.75",GIANT STEPS LTD.
Children and Young Peoples Services,CYPS - Local Authority,Premises,125009,Rents,04-Dec-2012,2528499-GH3183,"1,010.59",GROUNDWORK NORTH EAST.
Children and Young Peoples Services,CYPS - Local Authority,Construction Work,908105,Construction work,04-Dec-2012,2528513-DURH/0305,"1,126,002.00",INSPIREDSPACES DURHAM LTD.
Children and Young Peoples Services,CYPS - Local Authority,"Vehicles, Equipment, Furniture and Fittings",912701,Computer equipment,04-Dec-2012,2528513-DURH/0309,"542,872.07",INSPIREDSPACES DURHAM LTD.
Children and Young Peoples Services,CYPS - Local Authority,Construction Work,908105,Construction work,04-Dec-2012,2528513-DURH/0311,"713,020.80",INSPIREDSPACES DURHAM LTD.
Children and Young Peoples Services,CYPS - Local Authority,Construction Work,908105,Construction work,04-Dec-2012,2528520-INS3-B-J,"86,454.75",JOHN WADE (HAULAGE) LTD.
Children and Young Peoples Services,CYPS - Local Authority,Transport,230005,Contract Hire,04-Dec-2012,2528530-1308,560.00,LOCAL TRANSPORT LTD.
Children and Young Peoples Services,CYPS - Local Authority,Transport,230005,Contract Hire,04-Dec-2012,2528530-1311,740.00,LOCAL TRANSPORT LTD.
Children and Young Peoples Services,CYPS - Local Authority,Transfer Payments,510032,School Children,04-Dec-2012,2528548-DFEA2012-B,"3,637.50",NEW BEGINNINGS (MOORSIDE) CO LTD.
Children and Young Peoples Services,CYPS - Local Authority,Supplies and Services,348037,Subsistence,04-Dec-2012,2528559-S/S2012-FM,536.25,NURSERY TIME.
Children and Young Peoples Services,CYPS - Local Authority,Third Party Payments,486021,Service Level Agreements,04-Dec-2012,2528573-2580,"2,273.43",REACH OUT CARE SUPPORT SERVICES LTD.
Children and Young Peoples Services,CYPS - Local Authority,Supplies and Services,384199,Miscellaneous Expenses,04-Dec-2012,2528581-4291,"1,875.00",S & D TRAINING.
Children and Young Peoples Services,CYPS - Local Authority,Supplies and Services,384199,Miscellaneous Expenses,04-Dec-2012,2528581-4325,"1,250.00",S & D TRAINING.
Children and Young Peoples Services,CYPS - Local Authority,Transport,230005,Contract Hire,04-Dec-2012,2528616-RES57B,546.00,TONYS TAXIS (A BIRCH).
Children and Young Peoples Services,CYPS - Local Authority,Transport,230005,Contract Hire,04-Dec-2012,2528616-RES62B,870.00,TONYS TAXIS (A BIRCH).
Children and Young Peoples Services,CYPS - Local Authority,Supplies and Services,338027,Services,04-Dec-2012,2528626-NU/2925,892.76,UNIVERSITY OF NOTTINGHAM.
Children and Young Peoples Services,CYPS - Local Authority,Supplies and Services,304083,Equipment and Materials,04-Dec-2012,2528627-1763,"2,613.64",UPNORTH FOODSERVICE EQUIPMENT LTD.
Corporate Resources,ICT Services incl. Design and Print,Debtors,930167,Debtor-Telephone Holding Account,04-Dec-2012,2528446-11567245,"1,137.40",CABLE & WIRELESS UK.
Corporate Resources,ICT Services incl. Design and Print,Stock,926900,Stock in hand-Inventory system,04-Dec-2012,2528465-7401976048,"2,369.64",DELL COMPUTER CORPORATION LTD.
Corporate Resources,ICT Services incl. Design and Print,Stock,926900,Stock in hand-Inventory system,04-Dec-2012,2528466-7401977609,"2,369.64",DELL COMPUTER CORPORATION LTD.
Corporate Resources,ICT Services incl. Design and Print,Supplies and Services,304252,Equipment and Materials,04-Dec-2012,2528560-4736788,"4,535.40",OCE FINANCE.
Corporate Resources,ICT Services incl. Design and Print,Employees,040149,"Recruitment, Instruction and Training",04-Dec-2012,2528570-ICE192783,"1,380.00",QA LTD.
Corporate Resources,ICT Services incl. Design and Print,Employees,040149,"Recruitment, Instruction and Training",04-Dec-2012,2528570-ICE192784,"1,380.00",QA LTD.
Corporate Resources,ICT Services incl. Design and Print,Supplies and Services,304999,Equipment and Materials,04-Dec-2012,2528611-PSI-9048341,"1,422.00",TECHNOLOGY SERVICES GROUP LTD.
Neighbourhood Services,Direct Services,Supplies and Services,304221,Equipment and Materials,04-Dec-2012,2528421-LLI267028,561.12,A THOMPSON & SONS LTD.
Neighbourhood Services,Direct Services,Stock,926900,Stock in hand-Inventory system,04-Dec-2012,2528431-918055640,"1,179.78",ARCO LTD.
Neighbourhood Services,Direct Services,Third Party Payments,430100,Rendered by Private Contractors,04-Dec-2012,2528434-4000,955.00,ATLAS WASHROOM SYSTEMS LTD.
Neighbourhood Services,Direct Services,Third Party Payments,430100,Rendered by Private Contractors,04-Dec-2012,2528454-77,"2,395.15",CN WHITAKER.
Neighbourhood Services,Direct Services,Stock,926900,Stock in hand-Inventory system,04-Dec-2012,2528498-06/438127,880.00,GREENHAM TRADING LTD.
Neighbourhood Services,Direct Services,Third Party Payments,430100,Rendered by Private Contractors,04-Dec-2012,2528504-46389,"1,167.51",HOGARTH COACHWORKS LTD.
Neighbourhood Services,Direct Services,Supplies and Services,304221,Equipment and Materials,04-Dec-2012,2528508-B33/0047747,741.80,HOWDEN JOINERY LTD.
Neighbourhood Services,Direct Services,Premises,115125,Repairs to Grounds,04-Dec-2012,2528517-SF/I031284,"15,078.46",JCDECAUX UK LTD.
Neighbourhood Services,Direct Services,Supplies and Services,304221,Equipment and Materials,04-Dec-2012,2528529-NE118816,522.85,LLOYD WORRALL (NEWCASTLE UPON TYNE) LTD.
Neighbourhood Services,Direct Services,Supplies and Services,304221,Equipment and Materials,04-Dec-2012,2528537-3044/0131302,"2,042.88",MINSTER INSULATION & DRY LINING.
Neighbourhood Services,Direct Services,Supplies and Services,304221,Equipment and Materials,04-Dec-2012,2528537-3044/0131510,"2,042.88",MINSTER INSULATION & DRY LINING.
Neighbourhood Services,Direct Services,Third Party Payments,430100,Rendered by Private Contractors,04-Dec-2012,2528553-10020805,"38,446.32",NORSTEAD.
Neighbourhood Services,Direct Services,Stock,926900,Stock in hand-Inventory system,04-Dec-2012,2528564-XL070739,"1,937.29",PARK ELECTRICAL DISTRIBUTORS LTD.
Neighbourhood Services,Direct Services,Stock,926900,Stock in hand-Inventory system,04-Dec-2012,2528564-XL070907,"2,968.56",PARK ELECTRICAL DISTRIBUTORS LTD.
Neighbourhood Services,Direct Services,Stock,926900,Stock in hand-Inventory system,04-Dec-2012,2528564-XL070923,664.35,PARK ELECTRICAL DISTRIBUTORS LTD.
Neighbourhood Services,Direct Services,Stock,926900,Stock in hand-Inventory system,04-Dec-2012,2528564-XL070949,"3,553.50",PARK ELECTRICAL DISTRIBUTORS LTD.
Neighbourhood Services,Direct Services,Supplies and Services,304221,Equipment and Materials,04-Dec-2012,2528565-4038473,"5,668.00",PDT SEALING SYSTEMS LTD.
Neighbourhood Services,Direct Services,Third Party Payments,430100,Rendered by Private Contractors,04-Dec-2012,2528574-2686,"4,000.00",RINGLAND SCAFFOLDING.
Neighbourhood Services,Direct Services,Transport,230005,Contract Hire,04-Dec-2012,2528576-SLINV/00047520,"4,025.00",RIVERSIDE TRUCK RENTAL LTD.
Neighbourhood Services,Direct Services,Stock,926900,Stock in hand-Inventory system,04-Dec-2012,2528606-INV00000905791,933.51,STOCKSIGNS LTD.
Neighbourhood Services,Direct Services,Supplies and Services,304221,Equipment and Materials,04-Dec-2012,2528624-131146,"2,695.05",UFW LTD.
Neighbourhood Services,"Environment,Health & Consumer Protection",Supplies and Services,338027,Services,04-Dec-2012,2528426-60216682-90,"1,996.00",AECOM LTD.
Neighbourhood Services,"Environment,Health & Consumer Protection",Supplies and Services,304040,Equipment and Materials,04-Dec-2012,2528435-15498,"1,190.00",AXLE WEIGHT TECHNOLOGY LTD.
Neighbourhood Services,"Environment,Health & Consumer Protection",Premises,106099,Centrally Controlled Rep and Maint,04-Dec-2012,2528455-JOB001/16240,"1,145.00",COLIN JOBLING T/A RAINBOW INTERNATIONAL.
Neighbourhood Services,Redundant Technical Services,Construction Work,908105,Construction work,04-Dec-2012,2528531-2207,780.00,LUCION ENVIRONMENTAL LLP LTD.
Neighbourhood Services,Technical Services,Supplies and Services,304221,Equipment and Materials,04-Dec-2012,2528427-17327641,"1,235.25",AGGREGATE INDUSTRIES UK LTD.
Neighbourhood Services,Technical Services,Supplies and Services,304221,Equipment and Materials,04-Dec-2012,2528427-17334344.,"1,227.95",AGGREGATE INDUSTRIES UK LTD.
Neighbourhood Services,Technical Services,Supplies and Services,304221,Equipment and Materials,04-Dec-2012,2528427-17334345,809.83,AGGREGATE INDUSTRIES UK LTD.
Neighbourhood Services,Technical Services,Supplies and Services,304221,Equipment and Materials,04-Dec-2012,2528428-17322027,"1,315.08",AGGREGATE INDUSTRIES UK LTD.
Neighbourhood Services,Technical Services,Supplies and Services,304221,Equipment and Materials,04-Dec-2012,2528428-17340926,"1,220.64",AGGREGATE INDUSTRIES UK LTD.
Neighbourhood Services,Technical Services,Supplies and Services,304221,Equipment and Materials,04-Dec-2012,2528428-17340927,"1,215.76",AGGREGATE INDUSTRIES UK LTD.
Neighbourhood Services,Technical Services,Third Party Payments,430100,Rendered by Private Contractors,04-Dec-2012,2528457-15140,596.02,COUPE LINE LTD.
Neighbourhood Services,Technical Services,Third Party Payments,430100,Rendered by Private Contractors,04-Dec-2012,2528457-15180,"2,113.79",COUPE LINE LTD.
Neighbourhood Services,Technical Services,Third Party Payments,430100,Rendered by Private Contractors,04-Dec-2012,2528457-15181,"1,307.48",COUPE LINE LTD.
Neighbourhood Services,Technical Services,Summary reporting level,720299,Fees and Charges,04-Dec-2012,2528486-R,776.78,ESH CONSTRUCTION LTD FORMERLY LUMSDEN & CARROLL CONSTRUCTION LTD.
Neighbourhood Services,Technical Services,Supplies and Services,304221,Equipment and Materials,04-Dec-2012,2528497-17347571,"1,452.09",GORDON NICHOLSON DECORATORS.
Neighbourhood Services,Technical Services,Third Party Payments,460350,Contract Payments,04-Dec-2012,2528516-763,"1,002.50",J & JG GILL & SONS LTD.
Neighbourhood Services,Technical Services,Third Party Payments,460350,Contract Payments,04-Dec-2012,2528516-765,685.50,J & JG GILL & SONS LTD.
Neighbourhood Services,Technical Services,Supplies and Services,304358,Equipment and Materials,04-Dec-2012,2528519-12794,570.24,JOHN R BUTTERFIELD LTD.
Neighbourhood Services,Technical Services,Supplies and Services,304221,Equipment and Materials,04-Dec-2012,2528534-26665,"3,098.18",MAY GURNEY LTD.
Neighbourhood Services,Technical Services,Third Party Payments,430100,Rendered by Private Contractors,04-Dec-2012,2528549-AP000422,"1,255.52",NEW COUNTY ROADS.
Neighbourhood Services,Technical Services,Third Party Payments,430100,Rendered by Private Contractors,04-Dec-2012,2528549-AP000440,"3,779.50",NEW COUNTY ROADS.
Neighbourhood Services,Technical Services,Third Party Payments,430100,Rendered by Private Contractors,04-Dec-2012,2528554-DI20154486,793.27,NORTHERN POWERGRID (NORTHEAST) LTD..
Neighbourhood Services,Technical Services,Third Party Payments,430100,Rendered by Private Contractors,04-Dec-2012,2528605-333,"7,275.00",STIRLING LLOYD CONTRACTS LTD.
Neighbourhood Services,Technical Services,Supplies and Services,304221,Equipment and Materials,04-Dec-2012,2528610-9028960941,"1,005.04",TARMAC LTD.
Neighbourhood Services,Technical Services,Supplies and Services,304221,Equipment and Materials,04-Dec-2012,2528610-9028966107,587.63,TARMAC LTD.
Neighbourhood Services,Technical Services,Supplies and Services,304221,Equipment and Materials,04-Dec-2012,2528610-9028982905,"1,092.00",TARMAC LTD.
Neighbourhood Services,Technical Services,Supplies and Services,304221,Equipment and Materials,04-Dec-2012,2528628-INV012267,"9,726.55",URBIS LIGHTING LTD.
Neighbourhood Services,Technical Services,Supplies and Services,304358,Equipment and Materials,04-Dec-2012,2528636-2818,"1,192.22",YOULL CONSTRUCTION LTD.
Neighbourhood Services,Technical Services,Supplies and Services,304358,Equipment and Materials,04-Dec-2012,2528636-2863,881.14,YOULL CONSTRUCTION LTD.
Neighbourhood Services,Technical Services,Supplies and Services,304358,Equipment and Materials,04-Dec-2012,2528636-2864,988.64,YOULL CONSTRUCTION LTD.
Neighbourhood Services,Technical Services,Supplies and Services,304358,Equipment and Materials,04-Dec-2012,2528636-2870,878.64,YOULL CONSTRUCTION LTD.
Neighbourhood Services,Technical Services,Supplies and Services,304358,Equipment and Materials,04-Dec-2012,2528636-2874,"2,965.92",YOULL CONSTRUCTION LTD.
Neighbourhood Services,Technical Services,Supplies and Services,304358,Equipment and Materials,04-Dec-2012,2528636-2894,"1,028.64",YOULL CONSTRUCTION LTD.
Neighbourhood Services,Technical Services,Supplies and Services,304358,Equipment and Materials,04-Dec-2012,2528636-2916,788.64,YOULL CONSTRUCTION LTD.
RED HRA,HRA Capital,Other Expenses,914001,Other capital expenses,04-Dec-2012,2528511-D06831,575.79,ICI DULUX DECORATOR CENTRES.
RED HRA,HRA Capital,Construction Work,908105,Construction work,04-Dec-2012,2528538-CON58370,552.00,MIS ENVIRONMENTAL LTD.
RED HRA,HRA Capital,Construction Work,908105,Construction work,04-Dec-2012,2528555-DI20154077,"1,519.00",NORTHERN POWERGRID LTD.
Regeneration & Economic Development,Economic Development and Housing,Fees,901002,Professional Fees,04-Dec-2012,2528453-007,"4,646.50",CLARE JAMES LTD.
Regeneration & Economic Development,Economic Development and Housing,Supplies and Services,384999,Miscellaneous Expenses,04-Dec-2012,2528473-222,"1,865.58",DURHAM ACTION ON SINGLE HOUSING.
Regeneration & Economic Development,Economic Development and Housing,Supplies and Services,384899,Miscellaneous Expenses,04-Dec-2012,2528497-YR1S,"1,250.00",GORDON NICHOLSON DECORATORS.
Regeneration & Economic Development,Economic Development and Housing,Supplies and Services,384199,Miscellaneous Expenses,04-Dec-2012,2528540-MI3466,"1,300.00",MOBIOUS LTD.
Regeneration & Economic Development,Economic Development and Housing,Premises,120009,Energy Costs,04-Dec-2012,2528557-NNV04264,"1,417.43",NPOWER.
Regeneration & Economic Development,Economic Development and Housing,Supplies and Services,384199,Miscellaneous Expenses,04-Dec-2012,2528571-165520,"3,166.67",RADISSON BLUE HOTEL DURHAM.
Regeneration & Economic Development,Economic Development and Housing,Supplies and Services,304337,Equipment and Materials,04-Dec-2012,2528586-1/10923,907.70,SEASALT LTD.
Regeneration & Economic Development,Economic Development and Housing,Supplies and Services,304337,Equipment and Materials,04-Dec-2012,2528613-15246,587.95,THE TIE STUDIO.
Regeneration & Economic Development,Economic Development and Housing,Cap Exp on Grants & Other Financial Assistance (REFCUS),918401,Capital grants,04-Dec-2012,2528614-SIP121136,"10,035.00",THYSSENKRUPP ENCASA LTD.
Regeneration & Economic Development,"Spatial Policy, Planning, Assets & Environment",Supplies and Services,384918,Miscellaneous Expenses,04-Dec-2012,2528424-0130180,"2,242.25",ADDISONS CHARTERED SURVEYORS.
Regeneration & Economic Development,"Spatial Policy, Planning, Assets & Environment",Supplies and Services,338066,Services,04-Dec-2012,2528425-10336,900.00,ADVANTAGE UTILITIES SERVICES LTD.
Regeneration & Economic Development,"Spatial Policy, Planning, Assets & Environment",Supplies and Services,384199,Miscellaneous Expenses,04-Dec-2012,2528429-BN,712.50,ALISTAIR LOCKETT.
Regeneration & Economic Development,"Spatial Policy, Planning, Assets & Environment",Supplies and Services,338099,Services,04-Dec-2012,2528637-30,"2,500.00",YOUNGS CHARTERED SURVEYORS.
Regeneration & Economic Development,"Spatial Policy, Planning, Assets & Environment",Supplies and Services,384199,Miscellaneous Expenses,04-Dec-2012,2528637-52766,500.00,YOUNGS CHARTERED SURVEYORS.
Regeneration & Economic Development,Transport,Premises,108099,Service Repairs and Maintenance,04-Dec-2012,2528471-9100627116,"2,500.00",DORMA UK LTD.
Regeneration & Economic Development,Transport,Supplies and Services,304259,Equipment and Materials,04-Dec-2012,2528514-164176,"2,604.00",INTECHNOLOGY PLC T/A INHEALTHCARE.
Regeneration & Economic Development,Transport,Other Expenses,914001,Other capital expenses,04-Dec-2012,2528568-121929,540.00,PREMIER TRAFFIC MANAGEMENT LTD.
Regeneration & Economic Development,Transport,Third Party Payments,440999,Other Third Party Payments,04-Dec-2012,2528621-100702,"14,414.89",TRIPLE POINT LEASE PARTNERS.
Regeneration & Economic Development,Transport,Supplies and Services,304245,Equipment and Materials,04-Dec-2012,2528623-3IN/10211044,"6,184.80",TUNSTALL HEALTHCARE (UK) LTD.
Adults Wellbeing and Health,Commissioning inc Supporting People,Supplies and Services,338047,Services,05-Dec-2012,214752-BW/1979B,"1,950.00",LINDA FRENCH & APM ASSOCIATES.
Adults Wellbeing and Health,Commissioning inc Supporting People,Supplies and Services,338027,Services,05-Dec-2012,214841-DF/1,"1,000.00",SN BELL.
Adults Wellbeing and Health,Commissioning inc Supporting People,Supplies and Services,338099,Services,05-Dec-2012,2528652-214248,"2,036.82",ALLPAY.NET LTD.
Adults Wellbeing and Health,Commissioning inc Supporting People,Supplies and Services,384199,Miscellaneous Expenses,05-Dec-2012,2528672-383,"2,237.50",BLUEGRASS RESEARCH LTD.
Adults Wellbeing and Health,Commissioning inc Supporting People,Third Party Payments,479111,Purchase of Care,05-Dec-2012,2528708-511549,"40,955.50",COUNTY DURHAM PCT .
Adults Wellbeing and Health,Commissioning inc Supporting People,Supplies and Services,338047,Services,05-Dec-2012,2528741-171112-19/11/12,"2,430.04",EVENTFUL PRODUCTIONS.
Adults Wellbeing and Health,Commissioning inc Supporting People,Supplies and Services,384302,Miscellaneous Expenses,05-Dec-2012,2528794-WSS-28/11/12,"9,395.00",JR MILGATE ORCHESTRA PROMOTIONS.
Adults Wellbeing and Health,Commissioning inc Supporting People,Supplies and Services,338047,Services,05-Dec-2012,2528807-1573036842,"1,670.37",LIVE NATION (MUSIC) UK LTD.
Adults Wellbeing and Health,Commissioning inc Supporting People,Supplies and Services,338047,Services,05-Dec-2012,2528921-959103/4/5,"9,909.82",SONY PICTURES RELEASING.
Adults Wellbeing and Health,Head of Adults,Summary reporting level,720044,Fees and Charges,05-Dec-2012,214678-OAC,"3,480.72",REDACTED - PAYMENT TO INDIVIDUAL
Adults Wellbeing and Health,Head of Adults,Summary reporting level,720047,Fees and Charges,05-Dec-2012,214730-R-R-C-F,"3,759.00",REDACTED - PAYMENT TO INDIVIDUAL
Adults Wellbeing and Health,Head of Adults,Summary reporting level,720047,Fees and Charges,05-Dec-2012,214785-R,"1,043.63",REDACTED - PAYMENT TO INDIVIDUAL
Adults Wellbeing and Health,Head of Adults,Summary reporting level,720047,Fees and Charges,05-Dec-2012,2528650-R-RCC,"1,291.40",REDACTED - PAYMENT TO INDIVIDUAL
Adults Wellbeing and Health,Head of Adults,Transport,230005,Contract Hire,05-Dec-2012,2528701-098,715.00,CONNORS MINI COACHES.
Adults Wellbeing and Health,Head of Adults,Transport,230005,Contract Hire,05-Dec-2012,2528701-099,"1,188.00",CONNORS MINI COACHES.
Adults Wellbeing and Health,Head of Adults,Transport,230005,Contract Hire,05-Dec-2012,2528701-100,900.00,CONNORS MINI COACHES.
Adults Wellbeing and Health,Head of Adults,Third Party Payments,472101,Purchase of Care,05-Dec-2012,2528715-2954,"1,702.50",DCS & D LTD T/A HERITAGE HEALTHCARE.
Adults Wellbeing and Health,Head of Adults,Third Party Payments,471101,Purchase of Care,05-Dec-2012,2528739-5281,"3,157.77",ESPA.
Adults Wellbeing and Health,Head of Adults,Summary reporting level,720033,Fees and Charges,05-Dec-2012,2528810-R/O/P,592.61,REDACTED - PAYMENT TO INDIVIDUAL
Adults Wellbeing and Health,Head of Adults,Summary reporting level,720033,Fees and Charges,05-Dec-2012,2528825-R,"1,005.56",REDACTED - PAYMENT TO INDIVIDUAL
Adults Wellbeing and Health,Head of Adults,Summary reporting level,720033,Fees and Charges,05-Dec-2012,2528832-R,988.54,REDACTED - PAYMENT TO INDIVIDUAL
Adults Wellbeing and Health,Head of Adults,Summary reporting level,720047,Fees and Charges,05-Dec-2012,2528833-R-CC,"3,788.53",REDACTED - PAYMENT TO INDIVIDUAL
Adults Wellbeing and Health,Head of Adults,Summary reporting level,720033,Fees and Charges,05-Dec-2012,2528834-R,646.75,REDACTED - PAYMENT TO INDIVIDUAL
Adults Wellbeing and Health,Head of Adults,Summary reporting level,720033,Fees and Charges,05-Dec-2012,2528871-R-CC,"2,688.29",REDACTED - PAYMENT TO INDIVIDUAL
Adults Wellbeing and Health,Head of Adults,Transfer Payments,515201,Social Services Clients,05-Dec-2012,2528979-HC-F,"1,044.20",WILLOW COMMUNITY CARE LTD.
Adults Wellbeing and Health,Head of Adults,Summary reporting level,720047,Fees and Charges,05-Dec-2012,2528982-R-CC,"1,808.62",REDACTED - PAYMENT TO INDIVIDUAL
Adults Wellbeing and Health,Planning and Performance,Employees,040149,"Recruitment, Instruction and Training",05-Dec-2012,2528682-00570,"2,950.00",CARE TRAINING SERVICES.
Adults Wellbeing and Health,Planning and Performance,Supplies and Services,384540,Miscellaneous Expenses,05-Dec-2012,2528799-2776,"2,253.00",LEAFLET DISTRIBUTION NORTH EAST LTD.
Adults Wellbeing and Health,Social Inclusion,Supplies and Services,384999,Miscellaneous Expenses,05-Dec-2012,2528669-00014,"8,649.44",BISHOP CATERING LTD.
Adults Wellbeing and Health,Social Inclusion,Supplies and Services,338099,Services,05-Dec-2012,2528731-5056,"1,000.00",EAST DURHAM TRUST.
Adults Wellbeing and Health,Social Inclusion,Supplies and Services,384199,Miscellaneous Expenses,05-Dec-2012,2528772-HBBATH15,700.00,HILARITY BITES COMEDY CLUB.
Adults Wellbeing and Health,Social Inclusion,Supplies and Services,384199,Miscellaneous Expenses,05-Dec-2012,2528803-60/56623,"1,428.66",REDACTED - PAYMENT TO INDIVIDUAL
Adults Wellbeing and Health,Social Inclusion,Supplies and Services,384199,Miscellaneous Expenses,05-Dec-2012,2528822-45/56624,"1,016.75",MR JIM LEE.
Adults Wellbeing and Health,Social Inclusion,Supplies and Services,384199,Miscellaneous Expenses,05-Dec-2012,2528838-22/56625,"1,375.00",REDACTED - PAYMENT TO INDIVIDUAL
Assistant Chief Executive,Partnerships & Community Engagement Div.,Supplies and Services,384086,Miscellaneous Expenses,05-Dec-2012,214691-12NB-BASH016,"4,740.00",CO DURHAM & DARLINGTON NHS FOUNDATION TRUST.
Assistant Chief Executive,Partnerships & Community Engagement Div.,Supplies and Services,384086,Miscellaneous Expenses,05-Dec-2012,214718-12BNEDUR043-AS,"2,000.00",EAST DURHAM COMMUNITY TRUST.
Assistant Chief Executive,Partnerships & Community Engagement Div.,Supplies and Services,384085,Miscellaneous Expenses,05-Dec-2012,214796-HODM05-12,500.00,NEW KYO & OXHILL PARTNERSHIP.
Children and Young Peoples Services,CYPS - Local Authority,Transport,230007,Contract Hire,05-Dec-2012,214866-003161,"1,131.00",STATION TAXIS (SUNDERLAND).
Children and Young Peoples Services,CYPS - Local Authority,Third Party Payments,486043,Service Level Agreements,05-Dec-2012,2528646-4564,"23,815.00",AFTER ADOPTION.
Children and Young Peoples Services,CYPS - Local Authority,Supplies and Services,338099,Services,05-Dec-2012,2528653-201200003,"1,218.00",ANGELA LORAINE COUNSELLING PRACTITIONER.
Children and Young Peoples Services,CYPS - Local Authority,Supplies and Services,304649,Equipment and Materials,05-Dec-2012,2528658-00986147,587.52,ARGOS BUSINESS SOLUTIONS.
Children and Young Peoples Services,CYPS - Local Authority,Supplies and Services,384638,Miscellaneous Expenses,05-Dec-2012,2528678-124/13,720.00,BUTTERWICK HOSPICE RETAIL LTD.
Children and Young Peoples Services,CYPS - Local Authority,Supplies and Services,384638,Miscellaneous Expenses,05-Dec-2012,2528678-150/13,720.00,BUTTERWICK HOSPICE RETAIL LTD.
Children and Young Peoples Services,CYPS - Local Authority,Supplies and Services,384638,Miscellaneous Expenses,05-Dec-2012,2528678-153/13,"1,200.00",BUTTERWICK HOSPICE RETAIL LTD.
Children and Young Peoples Services,CYPS - Local Authority,Supplies and Services,384638,Miscellaneous Expenses,05-Dec-2012,2528678-156/13,720.00,BUTTERWICK HOSPICE RETAIL LTD.
Children and Young Peoples Services,CYPS - Local Authority,Supplies and Services,384638,Miscellaneous Expenses,05-Dec-2012,2528678-157/13,720.00,BUTTERWICK HOSPICE RETAIL LTD.
Children and Young Peoples Services,CYPS - Local Authority,Supplies and Services,384638,Miscellaneous Expenses,05-Dec-2012,2528678-158/13,960.00,BUTTERWICK HOSPICE RETAIL LTD.
Children and Young Peoples Services,CYPS - Local Authority,Third Party Payments,425040,Rendered by Voluntary Organisations,05-Dec-2012,2528689-6233,"2,914.20",CHILDRENS FAMILY TRUST.
Children and Young Peoples Services,CYPS - Local Authority,Third Party Payments,425040,Rendered by Voluntary Organisations,05-Dec-2012,2528689-6234,"3,000.00",CHILDRENS FAMILY TRUST.
Children and Young Peoples Services,CYPS - Local Authority,Transport,230005,Contract Hire,05-Dec-2012,2528695-12034,"1,809.00",CLUBMAN CABS.
Children and Young Peoples Services,CYPS - Local Authority,Third Party Payments,440999,Other Third Party Payments,05-Dec-2012,2528696-3137482,"19,251.00",CO DURHAM & DARLINGTON NHS FOUNDATION TRUST.
Children and Young Peoples Services,CYPS - Local Authority,Third Party Payments,440999,Other Third Party Payments,05-Dec-2012,2528696-3946273,"19,251.00",CO DURHAM & DARLINGTON NHS FOUNDATION TRUST.
Children and Young Peoples Services,CYPS - Local Authority,Third Party Payments,425021,Rendered by Voluntary Organisations,05-Dec-2012,2528704-SCCG/000297,"12,428.70",CONTINUUM CARE & EDUCATION GROUP LTD.
Children and Young Peoples Services,CYPS - Local Authority,Third Party Payments,486044,Service Level Agreements,05-Dec-2012,2528708-511480,"8,145.50",COUNTY DURHAM PCT .
Children and Young Peoples Services,CYPS - Local Authority,Third Party Payments,425040,Rendered by Voluntary Organisations,05-Dec-2012,2528748-630058683,"4,079.43",FOSTER CARE ASSOCIATES LTD.
Children and Young Peoples Services,CYPS - Local Authority,Third Party Payments,425040,Rendered by Voluntary Organisations,05-Dec-2012,2528749-2246,"3,000.00",FOSTER CARE SOLUTIONS LTD.
Children and Young Peoples Services,CYPS - Local Authority,Third Party Payments,425040,Rendered by Voluntary Organisations,05-Dec-2012,2528750-FC010872,987.50,FOSTER CARES LTD.
Children and Young Peoples Services,CYPS - Local Authority,Third Party Payments,425040,Rendered by Voluntary Organisations,05-Dec-2012,2528751-0000013387,"2,914.20",FOSTERING PEOPLE LTD.
Children and Young Peoples Services,CYPS - Local Authority,Third Party Payments,425040,Rendered by Voluntary Organisations,05-Dec-2012,2528751-0000013388,"2,914.20",FOSTERING PEOPLE LTD.
Children and Young Peoples Services,CYPS - Local Authority,Supplies and Services,352001,Conference Expenses,05-Dec-2012,2528769-INV11045,"2,870.00",HARDWICK HALL HOTEL.
Children and Young Peoples Services,CYPS - Local Authority,Supplies and Services,304259,Equipment and Materials,05-Dec-2012,2528789-0000063950,865.00,JOHN PACKER LTD.
Children and Young Peoples Services,CYPS - Local Authority,Transfer Payments,510032,School Children,05-Dec-2012,2528806-DFEAUTUMN2012-AP,948.66,LITTLE ROCKERS CHILDCARE LTD.
Children and Young Peoples Services,CYPS - Local Authority,Third Party Payments,440999,Other Third Party Payments,05-Dec-2012,2528808-1722,550.00,LYNCH HEALTHCARE LTD.
Children and Young Peoples Services,CYPS - Local Authority,Transfer Payments,510026,School Children,05-Dec-2012,2528849-12/11/2012,850.80,NEW BEGINNINGS (MOORSIDE) CO LTD.
Children and Young Peoples Services,CYPS - Local Authority,Third Party Payments,425021,Rendered by Voluntary Organisations,05-Dec-2012,2528861-069895,"16,920.42",NORTHUMBERLAND COUNTY COUNCIL.
Children and Young Peoples Services,CYPS - Local Authority,Transfer Payments,510032,School Children,05-Dec-2012,2528888-TYOP,"1,702.36",RAINBOW NURSERY LTD (MIDDLESTONE MOOR).
Children and Young Peoples Services,CYPS - Local Authority,Supplies and Services,364352,Grants to Voluntary Organisations,05-Dec-2012,2528896-998,"2,527.38",ROCSOLID.
Children and Young Peoples Services,CYPS - Local Authority,Supplies and Services,364352,Grants to Voluntary Organisations,05-Dec-2012,2528896-999,"1,174.80",ROCSOLID.
Children and Young Peoples Services,CYPS - Local Authority,Transfer Payments,510026,School Children,05-Dec-2012,2528916-17/09/2012-05/11/2012,739.50,SHOTLEY BRIDGE NURSERY SCHOOL LTD.
Children and Young Peoples Services,CYPS - Local Authority,Third Party Payments,425020,Rendered by Voluntary Organisations,05-Dec-2012,2528923-1130682,"3,629.00",ST CUTHBERTS CARE.
Children and Young Peoples Services,CYPS - Local Authority,Supplies and Services,384638,Miscellaneous Expenses,05-Dec-2012,2528926-2763,"3,340.00",ST OSWALD`S HOSPICE.
Children and Young Peoples Services,CYPS - Local Authority,Transfer Payments,510032,School Children,05-Dec-2012,2528934-DFEA2012-AP,582.00,SUNSHINE DAY NURSERY.
Children and Young Peoples Services,CYPS - Local Authority,Third Party Payments,425040,Rendered by Voluntary Organisations,05-Dec-2012,2528937-122163,901.00,SWIIS (UK) LTD.
Children and Young Peoples Services,CYPS - Local Authority,Third Party Payments,425040,Rendered by Voluntary Organisations,05-Dec-2012,2528937-122165,910.00,SWIIS (UK) LTD.
Children and Young Peoples Services,CYPS - Local Authority,Third Party Payments,425040,Rendered by Voluntary Organisations,05-Dec-2012,2528937-122166,"1,091.00",SWIIS (UK) LTD.
Children and Young Peoples Services,CYPS - Local Authority,Third Party Payments,425040,Rendered by Voluntary Organisations,05-Dec-2012,2528937-122168,911.00,SWIIS (UK) LTD.
Children and Young Peoples Services,CYPS - Local Authority,Third Party Payments,425040,Rendered by Voluntary Organisations,05-Dec-2012,2528937-122474,795.00,SWIIS (UK) LTD.
Children and Young Peoples Services,CYPS - Local Authority,Third Party Payments,425040,Rendered by Voluntary Organisations,05-Dec-2012,2528937-122476,774.00,SWIIS (UK) LTD.
Children and Young Peoples Services,CYPS - Local Authority,Third Party Payments,425040,Rendered by Voluntary Organisations,05-Dec-2012,2528937-122478,"1,091.00",SWIIS (UK) LTD.
Children and Young Peoples Services,CYPS - Local Authority,Third Party Payments,425040,Rendered by Voluntary Organisations,05-Dec-2012,2528937-122480,911.00,SWIIS (UK) LTD.
Children and Young Peoples Services,CYPS - Local Authority,Third Party Payments,425040,Rendered by Voluntary Organisations,05-Dec-2012,2528938-122162,795.00,SWIIS FOSTER CARE LTD.
Children and Young Peoples Services,CYPS - Local Authority,Third Party Payments,425040,Rendered by Voluntary Organisations,05-Dec-2012,2528938-122477,910.00,SWIIS FOSTER CARE LTD.
Children and Young Peoples Services,CYPS - Local Authority,Supplies and Services,324500,Provisions,05-Dec-2012,2528943-SI-TSW-1010094,"3,646.70",TAYLOR SHAW LTD.
Children and Young Peoples Services,CYPS - Local Authority,Supplies and Services,338091,Services,05-Dec-2012,2528962-91169077,600.00,UNIVERSITY OF NORTHUMBRIA.
Children and Young Peoples Services,CYPS - Local Authority,Supplies and Services,338091,Services,05-Dec-2012,2528962-91169078,600.00,UNIVERSITY OF NORTHUMBRIA.
Children and Young Peoples Services,CYPS - Local Authority,Supplies and Services,338091,Services,05-Dec-2012,2528962-91169079,600.00,UNIVERSITY OF NORTHUMBRIA.
Children and Young Peoples Services,CYPS - Local Authority,Supplies and Services,338091,Services,05-Dec-2012,2528962-91169087,600.00,UNIVERSITY OF NORTHUMBRIA.
Children and Young Peoples Services,CYPS - Local Authority,Supplies and Services,338091,Services,05-Dec-2012,2528962-91169091,600.00,UNIVERSITY OF NORTHUMBRIA.
Children and Young Peoples Services,CYPS - Local Authority,Supplies and Services,338091,Services,05-Dec-2012,2528962-91174377,600.00,UNIVERSITY OF NORTHUMBRIA.
Children and Young Peoples Services,CYPS - Local Authority,Third Party Payments,425021,Rendered by Voluntary Organisations,05-Dec-2012,2528976-000390,"2,500.00",WHITEHORSE LODGE LTD.
Children and Young Peoples Services,CYPS - Local Authority,Third Party Payments,425021,Rendered by Voluntary Organisations,05-Dec-2012,2528976-000394,"2,500.00",WHITEHORSE LODGE LTD.
Children and Young Peoples Services,Dedicated Schools Grant,Supplies and Services,338094,Services,05-Dec-2012,2528802-18001990,840.00,LEISURE CONNECTION LTD.
Corporate Resources,ICT Services incl. Design and Print,Supplies and Services,344137,Telephones,05-Dec-2012,2528663-14044537,"20,422.15",AZZURRI COMMUNICATIONS LTD.
Corporate Resources,ICT Services incl. Design and Print,Supplies and Services,332029,"Printing, Stationery and Gen Off Exps",05-Dec-2012,2528737-88111,"1,299.00",ENCORE ENVELOPES LTD.
Corporate Resources,ICT Services incl. Design and Print,Stock,926900,Stock in hand-Inventory system,05-Dec-2012,2528767-INV0146839,"1,379.00",GV MULTI MEDIA LTD.
Corporate Resources,ICT Services incl. Design and Print,Stock,926900,Stock in hand-Inventory system,05-Dec-2012,2528780-1082152,"14,565.37",INSIGHT DIRECT (UK) LTD.
Corporate Resources,ICT Services incl. Design and Print,Supplies and Services,332029,"Printing, Stationery and Gen Off Exps",05-Dec-2012,2528878-587896,923.00,POTTS PRINTERS LTD.
Corporate Resources,ICT Services incl. Design and Print,Stock,926900,Stock in hand-Inventory system,05-Dec-2012,2528922-OP/L576049,"1,395.52",SPECIALIST COMPUTER CENTRES PLC.
Neighbourhood Services,Direct Services,Stock,926900,Stock in hand-Inventory system,05-Dec-2012,2528639-LLI267164,"1,130.04",A THOMPSON & SONS LTD.
Neighbourhood Services,Direct Services,Third Party Payments,430100,Rendered by Private Contractors,05-Dec-2012,2528655-978,925.89,ARBTECH MACHINERY LTD.
Neighbourhood Services,Direct Services,Third Party Payments,430100,Rendered by Private Contractors,05-Dec-2012,2528673-5872,986.00,BOLTON GATE CO.
Neighbourhood Services,Direct Services,Supplies and Services,324117,Provisions,05-Dec-2012,2528674-24697416,671.41,BRAKE BROS FOODSERVICE LTD.
Neighbourhood Services,Direct Services,Supplies and Services,324117,Provisions,05-Dec-2012,2528674-24716879,837.47,BRAKE BROS FOODSERVICE LTD.
Neighbourhood Services,Direct Services,Transport,210057,Repair and Maintenance of Vehicles,05-Dec-2012,2528681-10915,642.00,CALDER TRAILER BOARDS.
Neighbourhood Services,Direct Services,Third Party Payments,430100,Rendered by Private Contractors,05-Dec-2012,2528684-13079,"1,146.97",CATHEDRAL LOCK & SAFE SERVICES LTD.
Neighbourhood Services,Direct Services,Third Party Payments,430100,Rendered by Private Contractors,05-Dec-2012,2528686-336978,688.45,CHATFIELDS.
Neighbourhood Services,Direct Services,Third Party Payments,430100,Rendered by Private Contractors,05-Dec-2012,2528724-007049,"3,114.00",DUNNINGHAM DECORATORS LTD.
Neighbourhood Services,Direct Services,Premises,125009,Rents,05-Dec-2012,2528744-90,"12,500.00",FINKLEGATE PROPERTIES LTD.
Neighbourhood Services,Direct Services,Stock,926004,Stock,05-Dec-2012,2528755-216116632,"1,798.50",FUCHS LUBRICANTS (UK) PLC.
Neighbourhood Services,Direct Services,Stock,926004,Stock,05-Dec-2012,2528758-8637268,"24,852.33",GB OILS T/A BRETT FUELS.
Neighbourhood Services,Direct Services,Transport,215005,Running Costs of Vehicles,05-Dec-2012,2528758-8649925,"1,139.40",GB OILS T/A BRETT FUELS.
Neighbourhood Services,Direct Services,Stock,926004,Stock,05-Dec-2012,2528758-8667321,"24,858.93",GB OILS T/A BRETT FUELS.
Neighbourhood Services,Direct Services,Supplies and Services,304221,Equipment and Materials,05-Dec-2012,2528775-B33/0048343,557.00,HOWDEN JOINERY LTD.
Neighbourhood Services,Direct Services,Third Party Payments,430100,Rendered by Private Contractors,05-Dec-2012,2528777-1962,"6,512.50",IAN C LIDDLE.
Neighbourhood Services,Direct Services,Stock,926900,Stock in hand-Inventory system,05-Dec-2012,2528786-3307/0164179,875.00,JEWSON LTD.
Neighbourhood Services,Direct Services,Transport,230005,Contract Hire,05-Dec-2012,2528798-9642,713.00,LAE VEHICLE RENTAL LTD.
Neighbourhood Services,Direct Services,Supplies and Services,304221,Equipment and Materials,05-Dec-2012,2528804-4701163,"1,322.29",LINDAB LTD.
Neighbourhood Services,Direct Services,Stock,926900,Stock in hand-Inventory system,05-Dec-2012,2528813-001/34648,"1,295.00",MH SOUTHERN & CO LTD.
Neighbourhood Services,Direct Services,Stock,926900,Stock in hand-Inventory system,05-Dec-2012,2528813-001/34810,"1,520.00",MH SOUTHERN & CO LTD.
Neighbourhood Services,Direct Services,Transport,210057,Repair and Maintenance of Vehicles,05-Dec-2012,2528846-INVDUR0031258,999.96,NE TRUCK SPARES LTD.
Neighbourhood Services,Direct Services,Stock,926900,Stock in hand-Inventory system,05-Dec-2012,2528867-XL070759,"1,515.00",PARK ELECTRICAL DISTRIBUTORS LTD.
Neighbourhood Services,Direct Services,Supplies and Services,304221,Equipment and Materials,05-Dec-2012,2528877-4120/142517,"1,013.18",PLUMBING TRADE SUPPLIES LTD.
Neighbourhood Services,Direct Services,Supplies and Services,338078,Services,05-Dec-2012,2528886-2901,"4,569.06",QW SECURITY LTD.
Neighbourhood Services,Direct Services,Third Party Payments,430100,Rendered by Private Contractors,05-Dec-2012,2528892-2689,521.00,RINGLAND SCAFFOLDING.
Neighbourhood Services,Direct Services,Third Party Payments,430100,Rendered by Private Contractors,05-Dec-2012,2528894-SLINV00048562,891.02,RIVERSIDE TRUCK RENTAL LTD.
Neighbourhood Services,Direct Services,Transport,210057,Repair and Maintenance of Vehicles,05-Dec-2012,2528983-900462758,"1,185.00",WIRTGEN LTD.
Neighbourhood Services,Direct Services,Third Party Payments,430100,Rendered by Private Contractors,05-Dec-2012,2528985-12-0793,"3,755.00",WM O SILMON LTD.
Neighbourhood Services,Direct Services,Stock,926900,Stock in hand-Inventory system,05-Dec-2012,2528986-77756724,691.05,WOLSELEY UK LTD.
Neighbourhood Services,Direct Services,Stock,926900,Stock in hand-Inventory system,05-Dec-2012,2528986-77756781,"2,515.38",WOLSELEY UK LTD.
Neighbourhood Services,Direct Services,Stock,926900,Stock in hand-Inventory system,05-Dec-2012,2528986-77756783,"1,366.27",WOLSELEY UK LTD.
Neighbourhood Services,Direct Services,Stock,926900,Stock in hand-Inventory system,05-Dec-2012,2528986-77756868,797.15,WOLSELEY UK LTD.
Neighbourhood Services,Direct Services,Stock,926900,Stock in hand-Inventory system,05-Dec-2012,2528986-77769138,"1,832.45",WOLSELEY UK LTD.
Neighbourhood Services,Direct Services,Third Party Payments,430100,Rendered by Private Contractors,05-Dec-2012,2528994-26250,504.49,YWC GROUP LTD.
Neighbourhood Services,Sport & Leisure,Supplies and Services,304083,Equipment and Materials,05-Dec-2012,2528651-7269,880.20,ALISON BLACK LTD T/A SPORTMAX.
Neighbourhood Services,Sport & Leisure,Third Party Payments,430100,Rendered by Private Contractors,05-Dec-2012,2528700-PS22360,"5,750.00",COMPETITION LINE UK LTD.
Neighbourhood Services,Sport & Leisure,Third Party Payments,430100,Rendered by Private Contractors,05-Dec-2012,2528700-PS22362,"65,786.00",COMPETITION LINE UK LTD.
Neighbourhood Services,Sport & Leisure,"Vehicles, Equipment, Furniture and Fittings",912529,Purchase-equipment,05-Dec-2012,2528918-021723,"7,625.71",SMP (PLAYGROUNDS) LTD.
Neighbourhood Services,Sport & Leisure,Supplies and Services,328041,"Clothing, Uniforms and Laundry",05-Dec-2012,2528959-95837,"1,166.32",TROJAN@WORK LTD.
Neighbourhood Services,Technical Services,Supplies and Services,304358,Equipment and Materials,05-Dec-2012,214731-74-22/11/2012,"1,086.15",G & W JACKSON.
Neighbourhood Services,Technical Services,Supplies and Services,304221,Equipment and Materials,05-Dec-2012,2528639-LLI265744,"1,577.88",A THOMPSON & SONS LTD.
Neighbourhood Services,Technical Services,Supplies and Services,304221,Equipment and Materials,05-Dec-2012,2528640-LLI265683,752.40,A THOMPSON & SONS LTD.
Neighbourhood Services,Technical Services,Supplies and Services,304221,Equipment and Materials,05-Dec-2012,2528648-17322028,639.71,AGGREGATE INDUSTRIES UK LTD.
Neighbourhood Services,Technical Services,Supplies and Services,342051,Computers and Communications,05-Dec-2012,2528702-012381,"2,604.35",CONQUEST LTD.
Neighbourhood Services,Technical Services,Supplies and Services,304221,Equipment and Materials,05-Dec-2012,2528784-361,"4,370.00",J & N STEELCRAFT NE LTD.
Neighbourhood Services,Technical Services,Supplies and Services,304221,Equipment and Materials,05-Dec-2012,2528788-00074405,"4,859.12",JOBLING PURSER LTD.
Neighbourhood Services,Technical Services,Supplies and Services,304358,Equipment and Materials,05-Dec-2012,2528790-12857,"1,167.71",JOHN R BUTTERFIELD LTD.
Neighbourhood Services,Technical Services,Supplies and Services,304254,Equipment and Materials,05-Dec-2012,2528855-116022,"1,025.95",NORTH EAST VENDING LTD.
Neighbourhood Services,Technical Services,Third Party Payments,430100,Rendered by Private Contractors,05-Dec-2012,2528857-DI20154514,"2,147.93",NORTHERN POWERGRID (NORTHEAST) LTD..
Neighbourhood Services,Technical Services,Premises,120009,Energy Costs,05-Dec-2012,2528863-NNO7CZ7N,"329,463.79",NPOWER.
Neighbourhood Services,Technical Services,Third Party Payments,430100,Rendered by Private Contractors,05-Dec-2012,2528883-6922,"3,000.00",PROTECTOR SECURITY GROUP LTD.
Neighbourhood Services,Technical Services,Third Party Payments,430100,Rendered by Private Contractors,05-Dec-2012,2528892-2678,"1,596.00",RINGLAND SCAFFOLDING.
Neighbourhood Services,Technical Services,Supplies and Services,304358,Equipment and Materials,05-Dec-2012,2528915-2012100,"1,500.00",SHIREHAVEN LTD.
Neighbourhood Services,Technical Services,Supplies and Services,304221,Equipment and Materials,05-Dec-2012,2528939-0000073403,"4,810.96",SWR LTD.
Neighbourhood Services,Technical Services,Supplies and Services,304221,Equipment and Materials,05-Dec-2012,2528942-9028982911,"1,762.89",TARMAC LTD.
Neighbourhood Services,Technical Services,Supplies and Services,304221,Equipment and Materials,05-Dec-2012,2528942-9028982917,718.65,TARMAC LTD.
Neighbourhood Services,Technical Services,Supplies and Services,304221,Equipment and Materials,05-Dec-2012,2528942-9028991957,630.10,TARMAC LTD.
Neighbourhood Services,Technical Services,Supplies and Services,304358,Equipment and Materials,05-Dec-2012,2528971-14514,820.00,W MARLEY AGRICULTURAL CONTRACTORS LTD.
Neighbourhood Services,Technical Services,Supplies and Services,304221,Equipment and Materials,05-Dec-2012,2528980-31758,"2,004.00",WILLOWCRETE MFG CO LTD.
RED HRA,East Durham Homes - HRA Rent Control Account,Supplies and Services,384999,Miscellaneous Expenses,05-Dec-2012,214767-R-R,758.05,REDACTED - PAYMENT TO INDIVIDUAL
RED HRA,East Durham Homes - HRA Rent Control Account,Supplies and Services,384999,Miscellaneous Expenses,05-Dec-2012,214775-RR,593.70,REDACTED - PAYMENT TO INDIVIDUAL
RED HRA,East Durham Homes - HRA Rent Control Account,Supplies and Services,384999,Miscellaneous Expenses,05-Dec-2012,214781-RR,525.76,REDACTED - PAYMENT TO INDIVIDUAL
RED HRA,Housing Revenue Account,Construction Work,908105,Construction work,05-Dec-2012,2528847-7188,867.50,NELSONS OF DURHAM.
RED HRA,HRA Capital,Construction Work,908105,Construction work,05-Dec-2012,2528697-154932,"3,054.84",COAST & COUNTRY HOUSING LTD.
RED HRA,HRA Capital,Construction Work,908105,Construction work,05-Dec-2012,2528697-154934,"28,339.40",COAST & COUNTRY HOUSING LTD.
RED HRA,HRA Capital,Construction Work,908105,Construction work,05-Dec-2012,2528719-157176,"5,498.47",DELTA ELECTRICAL & MECHANICAL SERVICES.
Regeneration & Economic Development,Economic Development and Housing,Cap Exp on Grants & Other Financial Assistance (REFCUS),918401,Capital grants,05-Dec-2012,214662-DFG243/12-112HHP,"8,714.70",ACORN PLUMBING & HEATING.
Regeneration & Economic Development,Economic Development and Housing,Cap Exp on Grants & Other Financial Assistance (REFCUS),918401,Capital grants,05-Dec-2012,214881-2744,"9,330.30",WENTWORTH CONSTRUCTION (NE) LTD.
Regeneration & Economic Development,Economic Development and Housing,Supplies and Services,384199,Miscellaneous Expenses,05-Dec-2012,2528656-027,862.50,ARCLIGHT MARKETING & MEDIA LTD.
Regeneration & Economic Development,Economic Development and Housing,Construction Work,908105,Construction work,05-Dec-2012,2528683-5044/1/17,"619,829.81",CARILLION CONSTRUCTION LTD T/A CARILLION CIVIL ENGINEERING.
Regeneration & Economic Development,Economic Development and Housing,Supplies and Services,384437,Miscellaneous Expenses,05-Dec-2012,2528694-295975,"4,788.40",CLICK TRAVEL LTD.
Regeneration & Economic Development,Economic Development and Housing,Premises,120021,Energy Costs,05-Dec-2012,2528705-07756552,"1,183.29",CORONA ENERGY RETAIL 2 LTD.
Regeneration & Economic Development,Economic Development and Housing,Construction Work,908105,Construction work,05-Dec-2012,2528721-DN/3020,"3,357.53",DIAMOND NORTHERN 91.
Regeneration & Economic Development,Economic Development and Housing,Supplies and Services,384700,Miscellaneous Expenses,05-Dec-2012,2528726-A,"1,425.60",DURHAM HIRE & SALES.
Regeneration & Economic Development,Economic Development and Housing,Supplies and Services,352001,Conference Expenses,05-Dec-2012,2528870-1414,"2,200.00",PEOPLE CENTRIC ASSOCIATES LTD.
Regeneration & Economic Development,Economic Development and Housing,Supplies and Services,338027,Services,05-Dec-2012,2528889-120233,"4,890.00",RENAISSANCE.
Regeneration & Economic Development,Economic Development and Housing,Cap Exp on Grants & Other Financial Assistance (REFCUS),918401,Capital grants,05-Dec-2012,2528905-G-47SS,"27,802.00",SALVATION ARMY.
Regeneration & Economic Development,"Spatial Policy, Planning, Assets & Environment",Supplies and Services,338029,Services,05-Dec-2012,2528706-NPAONB01-1,"1,475.00",COUNTRYSCAPE.
Regeneration & Economic Development,"Spatial Policy, Planning, Assets & Environment",Supplies and Services,338099,Services,05-Dec-2012,2528728-12136,700.00,DURHAM WILDLIFE TRUST LTD.
Regeneration & Economic Development,"Spatial Policy, Planning, Assets & Environment",Supplies and Services,338099,Services,05-Dec-2012,2528856-INV3238/1079,960.00,NORTHERN ARCHAELOGICAL ASSOCIATES LTD.
Regeneration & Economic Development,"Spatial Policy, Planning, Assets & Environment",Supplies and Services,384700,Miscellaneous Expenses,05-Dec-2012,2528907-GP-S,"1,406.00",SAVE THE GEORGE & DRAGON CAMPAIGN & ROSE HOUSE GALLERY.
Regeneration & Economic Development,"Spatial Policy, Planning, Assets & Environment",Supplies and Services,384999,Miscellaneous Expenses,05-Dec-2012,2528967-1415,"5,000.00",VISIT COUNTY DURHAM.
Regeneration & Economic Development,Strategy Programmes and Performance,Supplies and Services,384899,Miscellaneous Expenses,05-Dec-2012,2528727-ED49/8,"1,865.73",DURHAM RURAL COMMUNITY COUNCIL LTD.
Regeneration & Economic Development,Strategy Programmes and Performance,Supplies and Services,384899,Miscellaneous Expenses,05-Dec-2012,2528727-NPD120/12,"1,308.36",DURHAM RURAL COMMUNITY COUNCIL LTD.
Regeneration & Economic Development,Strategy Programmes and Performance,Supplies and Services,384899,Miscellaneous Expenses,05-Dec-2012,2528949-NPD173/1,"5,115.60",THE WITHAM.
Regeneration & Economic Development,Transport,Third Party Payments,410037,Rendered by Other Local Authorities,05-Dec-2012,2528948-19/11/12,567.50,THE KITCHEN.
Regeneration & Economic Development,Transport,Supplies and Services,304245,Equipment and Materials,05-Dec-2012,2528960-3IN/10211141,"6,600.00",TUNSTALL HEALTHCARE (UK) LTD.
Adults Wellbeing and Health,Commissioning inc Supporting People,Employees,080025,Agency Staff,06-Dec-2012,2529533-SIN012255,"9,250.00",BEAMISH MUSEUM LTD.
Adults Wellbeing and Health,Commissioning inc Supporting People,Supplies and Services,324001,Provisions,06-Dec-2012,2529710-9100675037,655.50,COCA COLA ENTERPRISES LTD.
Adults Wellbeing and Health,Commissioning inc Supporting People,Third Party Payments,479101,Purchase of Care,06-Dec-2012,2530157-1293045D,500.00,REDACTED - PAYMENT TO INDIVIDUAL
Adults Wellbeing and Health,Commissioning inc Supporting People,Supplies and Services,384199,Miscellaneous Expenses,06-Dec-2012,2530751-494,"25,375.00",NIGEL BOONHAM.
Adults Wellbeing and Health,Commissioning inc Supporting People,Supplies and Services,384199,Miscellaneous Expenses,06-Dec-2012,2530909-3808721,"3,503.60",PRS FOR MUSIC.
Adults Wellbeing and Health,Commissioning inc Supporting People,Supplies and Services,304245,Equipment and Materials,06-Dec-2012,2530982-3241,"1,800.00",ROCK TECH PROJECTS LTD.
Adults Wellbeing and Health,Commissioning inc Supporting People,Supplies and Services,304245,Equipment and Materials,06-Dec-2012,2531117-00224108,578.55,STAGE ELECTRICS.
Adults Wellbeing and Health,Commissioning inc Supporting People,Supplies and Services,304245,Equipment and Materials,06-Dec-2012,2531326-4766,"4,550.00",VORTEX LIGHTING LTD.
Adults Wellbeing and Health,Financing-Adult Services,Debtors,930024,Debtor-free nursing care,06-Dec-2012,2529417-2066765,931.71,ALLIANCE CARE.
Adults Wellbeing and Health,Financing-Adult Services,Debtors,930024,Debtor-free nursing care,06-Dec-2012,2529418-2067095,"3,261.00",ALLIANCE CARE.
Adults Wellbeing and Health,Financing-Adult Services,Debtors,930024,Debtor-free nursing care,06-Dec-2012,2529430-2069478,"1,195.70",ANCYRA HEALTH LTD (IN ADMINISTRATION) FORMERLY AERMID HEALTH CARE (UK) LTD).
Adults Wellbeing and Health,Financing-Adult Services,Debtors,930024,Debtor-free nursing care,06-Dec-2012,2529522-2068308,543.50,BARCHESTER HEALTHCARE HOMES LTD.
Adults Wellbeing and Health,Financing-Adult Services,Debtors,930024,Debtor-free nursing care,06-Dec-2012,2529546-2067556,598.40,BENFIELD HALL.
Adults Wellbeing and Health,Financing-Adult Services,Debtors,930024,Debtor-free nursing care,06-Dec-2012,2529567-2067224,975.19,BISHOPSGATE LODGE.
Adults Wellbeing and Health,Financing-Adult Services,Creditors,952035,Creditor-housing benefit-eqpt,06-Dec-2012,2529591-201112ALD,550.00,BRIAN WOODWARD CARPETS.
Adults Wellbeing and Health,Financing-Adult Services,Debtors,930024,Debtor-free nursing care,06-Dec-2012,2529863-2067350,"3,587.10",DOSON LTD (DENEHURST).
Adults Wellbeing and Health,Financing-Adult Services,Debtors,930024,Debtor-free nursing care,06-Dec-2012,2530053-2067950,978.30,GUARDIAN CARE HOMES (WEST) LTD.
Adults Wellbeing and Health,Financing-Adult Services,Debtors,930024,Debtor-free nursing care,06-Dec-2012,2530060-2069595,"2,484.57",HADRIAN HEALTHCARE (NE) LTD (ORCHARD MANOR).
Adults Wellbeing and Health,Financing-Adult Services,Debtors,930024,Debtor-free nursing care,06-Dec-2012,2530317-2067543,598.40,KIMBLESWORTH NURSING HOME.
Adults Wellbeing and Health,Financing-Adult Services,Debtors,930024,Debtor-free nursing care,06-Dec-2012,2530381-2068078,636.67,LINDISFARNE.
Adults Wellbeing and Health,Financing-Adult Services,Debtors,930024,Debtor-free nursing care,06-Dec-2012,2530413-2069519,823.01,LYONS COURT CARE HOME.
Adults Wellbeing and Health,Financing-Adult Services,Debtors,930024,Debtor-free nursing care,06-Dec-2012,2530451-2066712,636.67,MARIA MALLABAND NURSING HOMES LTD.
Adults Wellbeing and Health,Financing-Adult Services,Debtors,930024,Debtor-free nursing care,06-Dec-2012,2530524-2069321,"3,571.57",MELBURY COURT.
Adults Wellbeing and Health,Financing-Adult Services,Debtors,930024,Debtor-free nursing care,06-Dec-2012,2530930-2067277,598.40,RAYSON HOMES LTD.
Adults Wellbeing and Health,Financing-Adult Services,Debtors,930024,Debtor-free nursing care,06-Dec-2012,2530956-2068269,"3,074.66",RICHMOND COURT.
Adults Wellbeing and Health,Financing-Adult Services,Debtors,930024,Debtor-free nursing care,06-Dec-2012,2531022-2066599,"1,583.91",SANDRINGHAM CARE HOME.
Adults Wellbeing and Health,Financing-Adult Services,Debtors,930024,Debtor-free nursing care,06-Dec-2012,2531112-2069448,537.29,ST MARGARETS NURSING HOME.
Adults Wellbeing and Health,Financing-Adult Services,Debtors,930024,Debtor-free nursing care,06-Dec-2012,2531174-2066482,598.40,TAMARIS HEALTHCARE LTD.
Adults Wellbeing and Health,Financing-Adult Services,Debtors,930024,Debtor-free nursing care,06-Dec-2012,2531178-2066815,598.40,TAMARIS HEALTHCARE LTD.
Adults Wellbeing and Health,Financing-Adult Services,Debtors,930024,Debtor-free nursing care,06-Dec-2012,2531179-2066642,598.40,TAMARIS HEALTHCARE LTD.
Adults Wellbeing and Health,Financing-Adult Services,Debtors,930024,Debtor-free nursing care,06-Dec-2012,2531179-2066693,598.40,TAMARIS HEALTHCARE LTD.
Adults Wellbeing and Health,Financing-Adult Services,Debtors,930024,Debtor-free nursing care,06-Dec-2012,2531237-2067917,"3,711.32",THORNFIELD GRANGE.
Adults Wellbeing and Health,Head of Adults,Third Party Payments,472101,Purchase of Care,06-Dec-2012,2528998-1286986H,507.28,360 HEALTHCARE LTD.
Adults Wellbeing and Health,Head of Adults,Third Party Payments,472101,Purchase of Care,06-Dec-2012,2528998-1287188H,883.20,360 HEALTHCARE LTD.
Adults Wellbeing and Health,Head of Adults,Third Party Payments,472101,Purchase of Care,06-Dec-2012,2528998-1287674H,"1,181.20",360 HEALTHCARE LTD.
Adults Wellbeing and Health,Head of Adults,Third Party Payments,472101,Purchase of Care,06-Dec-2012,2528998-1287678H,"1,141.36",360 HEALTHCARE LTD.
Adults Wellbeing and Health,Head of Adults,Third Party Payments,472101,Purchase of Care,06-Dec-2012,2528998-1287934H,840.00,360 HEALTHCARE LTD.
Adults Wellbeing and Health,Head of Adults,Third Party Payments,472101,Purchase of Care,06-Dec-2012,2528998-1289415H,913.08,360 HEALTHCARE LTD.
Adults Wellbeing and Health,Head of Adults,Third Party Payments,472101,Purchase of Care,06-Dec-2012,2528998-1289501H,581.54,360 HEALTHCARE LTD.
Adults Wellbeing and Health,Head of Adults,Third Party Payments,472101,Purchase of Care,06-Dec-2012,2528998-1289690H,728.30,360 HEALTHCARE LTD.
Adults Wellbeing and Health,Head of Adults,Third Party Payments,472101,Purchase of Care,06-Dec-2012,2528998-1289751H,500.04,360 HEALTHCARE LTD.
Adults Wellbeing and Health,Head of Adults,Third Party Payments,472101,Purchase of Care,06-Dec-2012,2528998-1289764H,684.80,360 HEALTHCARE LTD.
Adults Wellbeing and Health,Head of Adults,Third Party Payments,472101,Purchase of Care,06-Dec-2012,2528998-1289985H,597.84,360 HEALTHCARE LTD.
Adults Wellbeing and Health,Head of Adults,Third Party Payments,472101,Purchase of Care,06-Dec-2012,2528998-1290087H,"1,097.88",360 HEALTHCARE LTD.
Adults Wellbeing and Health,Head of Adults,Third Party Payments,472101,Purchase of Care,06-Dec-2012,2528998-1290350H,"1,347.89",360 HEALTHCARE LTD.
Adults Wellbeing and Health,Head of Adults,Third Party Payments,472101,Purchase of Care,06-Dec-2012,2528998-1290462H,603.29,360 HEALTHCARE LTD.
Adults Wellbeing and Health,Head of Adults,Third Party Payments,472101,Purchase of Care,06-Dec-2012,2528998-1290486H,934.84,360 HEALTHCARE LTD.
Adults Wellbeing and Health,Head of Adults,Third Party Payments,472101,Purchase of Care,06-Dec-2012,2528998-1290606H,695.68,360 HEALTHCARE LTD.
Adults Wellbeing and Health,Head of Adults,Third Party Payments,472101,Purchase of Care,06-Dec-2012,2528998-1290647H,547.12,360 HEALTHCARE LTD.
Adults Wellbeing and Health,Head of Adults,Third Party Payments,472101,Purchase of Care,06-Dec-2012,2528998-1290683H,623.20,360 HEALTHCARE LTD.
Adults Wellbeing and Health,Head of Adults,Third Party Payments,472101,Purchase of Care,06-Dec-2012,2528998-1290702H,500.04,360 HEALTHCARE LTD.
Adults Wellbeing and Health,Head of Adults,Third Party Payments,472101,Purchase of Care,06-Dec-2012,2528998-1290865H,739.16,360 HEALTHCARE LTD.
Adults Wellbeing and Health,Head of Adults,Third Party Payments,472101,Purchase of Care,06-Dec-2012,2528998-1291490H,847.88,360 HEALTHCARE LTD.
Adults Wellbeing and Health,Head of Adults,Third Party Payments,472101,Purchase of Care,06-Dec-2012,2528998-1291522H,659.44,360 HEALTHCARE LTD.
Adults Wellbeing and Health,Head of Adults,Third Party Payments,472101,Purchase of Care,06-Dec-2012,2528998-1291870H,"1,391.36",360 HEALTHCARE LTD.
Adults Wellbeing and Health,Head of Adults,Third Party Payments,472101,Purchase of Care,06-Dec-2012,2528998-1291992H,608.72,360 HEALTHCARE LTD.
Adults Wellbeing and Health,Head of Adults,Third Party Payments,472101,Purchase of Care,06-Dec-2012,2528998-1292564H,731.92,360 HEALTHCARE LTD.
Adults Wellbeing and Health,Head of Adults,Third Party Payments,472101,Purchase of Care,06-Dec-2012,2528998-1292622H,543.50,360 HEALTHCARE LTD.
Adults Wellbeing and Health,Head of Adults,Third Party Payments,472101,Purchase of Care,06-Dec-2012,2528998-1292734H,502.75,360 HEALTHCARE LTD.
Adults Wellbeing and Health,Head of Adults,Third Party Payments,472101,Purchase of Care,06-Dec-2012,2528998-1292803H,913.08,360 HEALTHCARE LTD.
Adults Wellbeing and Health,Head of Adults,Third Party Payments,472101,Purchase of Care,06-Dec-2012,2528998-1292885H,559.81,360 HEALTHCARE LTD.
Adults Wellbeing and Health,Head of Adults,Third Party Payments,472101,Purchase of Care,06-Dec-2012,2528998-1292915H,"1,369.64",360 HEALTHCARE LTD.
Adults Wellbeing and Health,Head of Adults,Third Party Payments,470101,Purchase of Care,06-Dec-2012,2529000-2067710,"6,397.60",368 THE RIDGE.
Adults Wellbeing and Health,Head of Adults,Third Party Payments,473101,Purchase of Care,06-Dec-2012,2529003-1288682D,540.36,A CHARLES THOMAS (CARE) LTD.
Adults Wellbeing and Health,Head of Adults,Third Party Payments,470101,Purchase of Care,06-Dec-2012,2529003-2065898,"1,757.76",A CHARLES THOMAS (CARE) LTD.
Adults Wellbeing and Health,Head of Adults,Third Party Payments,470101,Purchase of Care,06-Dec-2012,2529003-2065954,"1,757.76",A CHARLES THOMAS (CARE) LTD.
Adults Wellbeing and Health,Head of Adults,Third Party Payments,470101,Purchase of Care,06-Dec-2012,2529003-2065955,"1,757.76",A CHARLES THOMAS (CARE) LTD.
Adults Wellbeing and Health,Head of Adults,Third Party Payments,470101,Purchase of Care,06-Dec-2012,2529003-2065957,"1,757.76",A CHARLES THOMAS (CARE) LTD.
Adults Wellbeing and Health,Head of Adults,Third Party Payments,470101,Purchase of Care,06-Dec-2012,2529003-2065958,"1,757.76",A CHARLES THOMAS (CARE) LTD.
Adults Wellbeing and Health,Head of Adults,Third Party Payments,470101,Purchase of Care,06-Dec-2012,2529003-2065959,"1,757.76",A CHARLES THOMAS (CARE) LTD.
Adults Wellbeing and Health,Head of Adults,Third Party Payments,470101,Purchase of Care,06-Dec-2012,2529003-2066093,"1,757.76",A CHARLES THOMAS (CARE) LTD.
Adults Wellbeing and Health,Head of Adults,Third Party Payments,470101,Purchase of Care,06-Dec-2012,2529003-2066094,"1,757.76",A CHARLES THOMAS (CARE) LTD.
Adults Wellbeing and Health,Head of Adults,Third Party Payments,470101,Purchase of Care,06-Dec-2012,2529003-2066096,"1,757.76",A CHARLES THOMAS (CARE) LTD.
Adults Wellbeing and Health,Head of Adults,Third Party Payments,470101,Purchase of Care,06-Dec-2012,2529003-2066097,"1,757.76",A CHARLES THOMAS (CARE) LTD.
Adults Wellbeing and Health,Head of Adults,Third Party Payments,470101,Purchase of Care,06-Dec-2012,2529003-2066098,"1,757.76",A CHARLES THOMAS (CARE) LTD.
Adults Wellbeing and Health,Head of Adults,Third Party Payments,470101,Purchase of Care,06-Dec-2012,2529003-2066099,"1,757.76",A CHARLES THOMAS (CARE) LTD.
Adults Wellbeing and Health,Head of Adults,Third Party Payments,470101,Purchase of Care,06-Dec-2012,2529003-2066100,"1,757.76",A CHARLES THOMAS (CARE) LTD.
Adults Wellbeing and Health,Head of Adults,Third Party Payments,470101,Purchase of Care,06-Dec-2012,2529003-2066101,"1,757.76",A CHARLES THOMAS (CARE) LTD.
Adults Wellbeing and Health,Head of Adults,Third Party Payments,470101,Purchase of Care,06-Dec-2012,2529003-2066102,"1,261.32",A CHARLES THOMAS (CARE) LTD.
Adults Wellbeing and Health,Head of Adults,Third Party Payments,474101,Purchase of Care,06-Dec-2012,2529003-2066897,"1,845.52",A CHARLES THOMAS (CARE) LTD.
Adults Wellbeing and Health,Head of Adults,Third Party Payments,474101,Purchase of Care,06-Dec-2012,2529003-2066963,"1,845.52",A CHARLES THOMAS (CARE) LTD.
Adults Wellbeing and Health,Head of Adults,Third Party Payments,474101,Purchase of Care,06-Dec-2012,2529003-2066965,"1,845.52",A CHARLES THOMAS (CARE) LTD.
Adults Wellbeing and Health,Head of Adults,Third Party Payments,474101,Purchase of Care,06-Dec-2012,2529003-2066967,"1,845.52",A CHARLES THOMAS (CARE) LTD.
Adults Wellbeing and Health,Head of Adults,Third Party Payments,474101,Purchase of Care,06-Dec-2012,2529003-2067098,"1,845.52",A CHARLES THOMAS (CARE) LTD.
Adults Wellbeing and Health,Head of Adults,Third Party Payments,474101,Purchase of Care,06-Dec-2012,2529003-2067100,"1,845.52",A CHARLES THOMAS (CARE) LTD.
Adults Wellbeing and Health,Head of Adults,Third Party Payments,474101,Purchase of Care,06-Dec-2012,2529003-2067103,"1,845.52",A CHARLES THOMAS (CARE) LTD.
Adults Wellbeing and Health,Head of Adults,Third Party Payments,474101,Purchase of Care,06-Dec-2012,2529003-2067108,"1,845.52",A CHARLES THOMAS (CARE) LTD.
Adults Wellbeing and Health,Head of Adults,Third Party Payments,474101,Purchase of Care,06-Dec-2012,2529003-2067110,"1,845.52",A CHARLES THOMAS (CARE) LTD.
Adults Wellbeing and Health,Head of Adults,Third Party Payments,474101,Purchase of Care,06-Dec-2012,2529003-2067112,"1,845.52",A CHARLES THOMAS (CARE) LTD.
Adults Wellbeing and Health,Head of Adults,Third Party Payments,474101,Purchase of Care,06-Dec-2012,2529003-2067115,"1,845.52",A CHARLES THOMAS (CARE) LTD.
Adults Wellbeing and Health,Head of Adults,Third Party Payments,474101,Purchase of Care,06-Dec-2012,2529003-2067484,"2,012.76",A CHARLES THOMAS (CARE) LTD.
Adults Wellbeing and Health,Head of Adults,Third Party Payments,474101,Purchase of Care,06-Dec-2012,2529011-2067455,"2,303.28",ABBEYMOOR CLINIC.
Adults Wellbeing and Health,Head of Adults,Third Party Payments,470101,Purchase of Care,06-Dec-2012,2529012-2065178,928.64,ABBEYVALE.
Adults Wellbeing and Health,Head of Adults,Third Party Payments,470101,Purchase of Care,06-Dec-2012,2529012-2065179,"1,857.24",ABBEYVALE.
Adults Wellbeing and Health,Head of Adults,Third Party Payments,470101,Purchase of Care,06-Dec-2012,2529012-2065180,"1,857.24",ABBEYVALE.
Adults Wellbeing and Health,Head of Adults,Third Party Payments,470101,Purchase of Care,06-Dec-2012,2529012-2065181,"1,857.24",ABBEYVALE.
Adults Wellbeing and Health,Head of Adults,Third Party Payments,470101,Purchase of Care,06-Dec-2012,2529012-2065182,729.63,ABBEYVALE.
Adults Wellbeing and Health,Head of Adults,Third Party Payments,470101,Purchase of Care,06-Dec-2012,2529012-2065183,"1,857.24",ABBEYVALE.
Adults Wellbeing and Health,Head of Adults,Third Party Payments,470101,Purchase of Care,06-Dec-2012,2529012-2065184,"1,106.64",ABBEYVALE.
Adults Wellbeing and Health,Head of Adults,Third Party Payments,470101,Purchase of Care,06-Dec-2012,2529012-2065185,"1,857.24",ABBEYVALE.
Adults Wellbeing and Health,Head of Adults,Third Party Payments,470101,Purchase of Care,06-Dec-2012,2529012-2065186,"1,326.60",ABBEYVALE.
Adults Wellbeing and Health,Head of Adults,Third Party Payments,470101,Purchase of Care,06-Dec-2012,2529012-2065187,"1,857.24",ABBEYVALE.
Adults Wellbeing and Health,Head of Adults,Third Party Payments,470101,Purchase of Care,06-Dec-2012,2529012-2065188,"1,857.24",ABBEYVALE.
Adults Wellbeing and Health,Head of Adults,Third Party Payments,470101,Purchase of Care,06-Dec-2012,2529012-2065189,"1,857.24",ABBEYVALE.
Adults Wellbeing and Health,Head of Adults,Third Party Payments,470101,Purchase of Care,06-Dec-2012,2529012-2065190,"1,857.24",ABBEYVALE.
Adults Wellbeing and Health,Head of Adults,Third Party Payments,470101,Purchase of Care,06-Dec-2012,2529012-2065191,"1,857.24",ABBEYVALE.
Adults Wellbeing and Health,Head of Adults,Third Party Payments,470101,Purchase of Care,06-Dec-2012,2529012-2065192,"1,917.24",ABBEYVALE.
Adults Wellbeing and Health,Head of Adults,Third Party Payments,470101,Purchase of Care,06-Dec-2012,2529012-2065193,"1,857.24",ABBEYVALE.
Adults Wellbeing and Health,Head of Adults,Third Party Payments,470101,Purchase of Care,06-Dec-2012,2529012-2065194,"1,857.24",ABBEYVALE.
Adults Wellbeing and Health,Head of Adults,Third Party Payments,470101,Purchase of Care,06-Dec-2012,2529012-2065195,"1,857.24",ABBEYVALE.
Adults Wellbeing and Health,Head of Adults,Third Party Payments,470101,Purchase of Care,06-Dec-2012,2529012-2065196,"1,857.24",ABBEYVALE.
Adults Wellbeing and Health,Head of Adults,Third Party Payments,470101,Purchase of Care,06-Dec-2012,2529012-2065197,"1,857.24",ABBEYVALE.
Adults Wellbeing and Health,Head of Adults,Third Party Payments,470101,Purchase of Care,06-Dec-2012,2529012-2065198,"1,857.24",ABBEYVALE.
Adults Wellbeing and Health,Head of Adults,Third Party Payments,470101,Purchase of Care,06-Dec-2012,2529012-2067373,"1,831.96",ABBEYVALE.
Adults Wellbeing and Health,Head of Adults,Third Party Payments,470101,Purchase of Care,06-Dec-2012,2529012-2067590,"2,500.00",ABBEYVALE.
Adults Wellbeing and Health,Head of Adults,Third Party Payments,470101,Purchase of Care,06-Dec-2012,2529012-2067617,"2,400.00",ABBEYVALE.
Adults Wellbeing and Health,Head of Adults,Third Party Payments,470101,Purchase of Care,06-Dec-2012,2529012-2067618,"2,400.00",ABBEYVALE.
Adults Wellbeing and Health,Head of Adults,Third Party Payments,470101,Purchase of Care,06-Dec-2012,2529012-2067619,"2,400.00",ABBEYVALE.
Adults Wellbeing and Health,Head of Adults,Third Party Payments,470101,Purchase of Care,06-Dec-2012,2529012-2067620,"2,500.00",ABBEYVALE.
Adults Wellbeing and Health,Head of Adults,Third Party Payments,470101,Purchase of Care,06-Dec-2012,2529012-2067621,"2,400.00",ABBEYVALE.
Adults Wellbeing and Health,Head of Adults,Third Party Payments,470101,Purchase of Care,06-Dec-2012,2529012-2067623,"2,400.00",ABBEYVALE.
Adults Wellbeing and Health,Head of Adults,Third Party Payments,470101,Purchase of Care,06-Dec-2012,2529012-2067624,"2,400.00",ABBEYVALE.
Adults Wellbeing and Health,Head of Adults,Third Party Payments,471101,Purchase of Care,06-Dec-2012,2529012-2068526,"1,925.76",ABBEYVALE.
Adults Wellbeing and Health,Head of Adults,Third Party Payments,471101,Purchase of Care,06-Dec-2012,2529012-2068527,"1,925.76",ABBEYVALE.
Adults Wellbeing and Health,Head of Adults,Third Party Payments,471101,Purchase of Care,06-Dec-2012,2529012-2068549,"1,925.76",ABBEYVALE.
Adults Wellbeing and Health,Head of Adults,Third Party Payments,471101,Purchase of Care,06-Dec-2012,2529012-2068550,"1,925.76",ABBEYVALE.
Adults Wellbeing and Health,Head of Adults,Third Party Payments,471101,Purchase of Care,06-Dec-2012,2529012-2068552,"1,925.76",ABBEYVALE.
Adults Wellbeing and Health,Head of Adults,Third Party Payments,471101,Purchase of Care,06-Dec-2012,2529012-2068553,"1,925.76",ABBEYVALE.
Adults Wellbeing and Health,Head of Adults,Third Party Payments,471101,Purchase of Care,06-Dec-2012,2529012-2068555,"1,925.76",ABBEYVALE.
Adults Wellbeing and Health,Head of Adults,Third Party Payments,471101,Purchase of Care,06-Dec-2012,2529012-2068556,"1,925.76",ABBEYVALE.
Adults Wellbeing and Health,Head of Adults,Third Party Payments,471101,Purchase of Care,06-Dec-2012,2529012-2068557,"1,925.76",ABBEYVALE.
Adults Wellbeing and Health,Head of Adults,Third Party Payments,470101,Purchase of Care,06-Dec-2012,2529012-2069576,685.71,ABBEYVALE.
Adults Wellbeing and Health,Head of Adults,Third Party Payments,470101,Purchase of Care,06-Dec-2012,2529013-2065929,"1,757.76",ABBOTTS COURT CARE HOME.
Adults Wellbeing and Health,Head of Adults,Third Party Payments,470101,Purchase of Care,06-Dec-2012,2529013-2065930,"1,757.76",ABBOTTS COURT CARE HOME.
Adults Wellbeing and Health,Head of Adults,Third Party Payments,470101,Purchase of Care,06-Dec-2012,2529013-2065931,"1,757.76",ABBOTTS COURT CARE HOME.
Adults Wellbeing and Health,Head of Adults,Third Party Payments,470101,Purchase of Care,06-Dec-2012,2529013-2065943,"1,757.76",ABBOTTS COURT CARE HOME.
Adults Wellbeing and Health,Head of Adults,Third Party Payments,470101,Purchase of Care,06-Dec-2012,2529013-2065976,"1,757.76",ABBOTTS COURT CARE HOME.
Adults Wellbeing and Health,Head of Adults,Third Party Payments,470101,Purchase of Care,06-Dec-2012,2529013-2066037,"1,757.76",ABBOTTS COURT CARE HOME.
Adults Wellbeing and Health,Head of Adults,Third Party Payments,470101,Purchase of Care,06-Dec-2012,2529013-2066038,"1,757.76",ABBOTTS COURT CARE HOME.
Adults Wellbeing and Health,Head of Adults,Third Party Payments,471101,Purchase of Care,06-Dec-2012,2529013-2069033,"1,827.24",ABBOTTS COURT CARE HOME.
Adults Wellbeing and Health,Head of Adults,Third Party Payments,471101,Purchase of Care,06-Dec-2012,2529013-2069034,"1,827.24",ABBOTTS COURT CARE HOME.
Adults Wellbeing and Health,Head of Adults,Third Party Payments,471101,Purchase of Care,06-Dec-2012,2529013-2069035,"1,827.24",ABBOTTS COURT CARE HOME.
Adults Wellbeing and Health,Head of Adults,Third Party Payments,471101,Purchase of Care,06-Dec-2012,2529013-2069036,"1,827.24",ABBOTTS COURT CARE HOME.
Adults Wellbeing and Health,Head of Adults,Third Party Payments,471101,Purchase of Care,06-Dec-2012,2529013-2069037,"1,827.24",ABBOTTS COURT CARE HOME.
Adults Wellbeing and Health,Head of Adults,Third Party Payments,471101,Purchase of Care,06-Dec-2012,2529013-2069052,"1,827.24",ABBOTTS COURT CARE HOME.
Adults Wellbeing and Health,Head of Adults,Third Party Payments,471101,Purchase of Care,06-Dec-2012,2529013-2069059,"1,827.24",ABBOTTS COURT CARE HOME.
Adults Wellbeing and Health,Head of Adults,Third Party Payments,471101,Purchase of Care,06-Dec-2012,2529013-2069091,"1,827.24",ABBOTTS COURT CARE HOME.
Adults Wellbeing and Health,Head of Adults,Third Party Payments,471101,Purchase of Care,06-Dec-2012,2529013-2069092,"1,827.24",ABBOTTS COURT CARE HOME.
Adults Wellbeing and Health,Head of Adults,Third Party Payments,471101,Purchase of Care,06-Dec-2012,2529013-2069093,"1,827.24",ABBOTTS COURT CARE HOME.
Adults Wellbeing and Health,Head of Adults,Third Party Payments,471101,Purchase of Care,06-Dec-2012,2529013-2069094,"1,827.24",ABBOTTS COURT CARE HOME.
Adults Wellbeing and Health,Head of Adults,Third Party Payments,471101,Purchase of Care,06-Dec-2012,2529013-2069095,"1,827.24",ABBOTTS COURT CARE HOME.
Adults Wellbeing and Health,Head of Adults,Third Party Payments,471101,Purchase of Care,06-Dec-2012,2529013-2069096,"1,827.24",ABBOTTS COURT CARE HOME.
Adults Wellbeing and Health,Head of Adults,Third Party Payments,471101,Purchase of Care,06-Dec-2012,2529013-2069097,"1,827.24",ABBOTTS COURT CARE HOME.
Adults Wellbeing and Health,Head of Adults,Third Party Payments,471101,Purchase of Care,06-Dec-2012,2529013-2069098,"1,827.24",ABBOTTS COURT CARE HOME.
Adults Wellbeing and Health,Head of Adults,Third Party Payments,470101,Purchase of Care,06-Dec-2012,2529016-1286518H,"2,933.48",ACCEPT CARE LTD.
Adults Wellbeing and Health,Head of Adults,Third Party Payments,478101,Purchase of Care,06-Dec-2012,2529016-1286626H,"3,614.60",ACCEPT CARE LTD.
Adults Wellbeing and Health,Head of Adults,Third Party Payments,478101,Purchase of Care,06-Dec-2012,2529016-1286685H,"5,140.08",ACCEPT CARE LTD.
Adults Wellbeing and Health,Head of Adults,Third Party Payments,478101,Purchase of Care,06-Dec-2012,2529016-1286826H,"2,920.52",ACCEPT CARE LTD.
Adults Wellbeing and Health,Head of Adults,Third Party Payments,478101,Purchase of Care,06-Dec-2012,2529016-1286888H,"1,440.80",ACCEPT CARE LTD.
Adults Wellbeing and Health,Head of Adults,Third Party Payments,478101,Purchase of Care,06-Dec-2012,2529016-1287154H,"5,088.16",ACCEPT CARE LTD.
Adults Wellbeing and Health,Head of Adults,Third Party Payments,478101,Purchase of Care,06-Dec-2012,2529016-1287305H,"5,503.52",ACCEPT CARE LTD.
Adults Wellbeing and Health,Head of Adults,Third Party Payments,478101,Purchase of Care,06-Dec-2012,2529016-1287319H,"3,634.40",ACCEPT CARE LTD.
Adults Wellbeing and Health,Head of Adults,Third Party Payments,478101,Purchase of Care,06-Dec-2012,2529016-1287623H,"5,866.96",ACCEPT CARE LTD.
Adults Wellbeing and Health,Head of Adults,Third Party Payments,478101,Purchase of Care,06-Dec-2012,2529016-1287848H,"7,891.84",ACCEPT CARE LTD.
Adults Wellbeing and Health,Head of Adults,Third Party Payments,478101,Purchase of Care,06-Dec-2012,2529016-1287870H,"2,673.88",ACCEPT CARE LTD.
Adults Wellbeing and Health,Head of Adults,Third Party Payments,478101,Purchase of Care,06-Dec-2012,2529016-1287951H,"4,776.64",ACCEPT CARE LTD.
Adults Wellbeing and Health,Head of Adults,Third Party Payments,478101,Purchase of Care,06-Dec-2012,2529016-1288058H,"5,477.56",ACCEPT CARE LTD.
Adults Wellbeing and Health,Head of Adults,Third Party Payments,478101,Purchase of Care,06-Dec-2012,2529016-1288081H,"4,580.52",ACCEPT CARE LTD.
Adults Wellbeing and Health,Head of Adults,Third Party Payments,478101,Purchase of Care,06-Dec-2012,2529016-1288096H,"3,582.48",ACCEPT CARE LTD.
Adults Wellbeing and Health,Head of Adults,Third Party Payments,478101,Purchase of Care,06-Dec-2012,2529016-1288142H,"1,635.52",ACCEPT CARE LTD.
Adults Wellbeing and Health,Head of Adults,Third Party Payments,478101,Purchase of Care,06-Dec-2012,2529016-1288163H,"3,997.84",ACCEPT CARE LTD.
Adults Wellbeing and Health,Head of Adults,Third Party Payments,478101,Purchase of Care,06-Dec-2012,2529016-1288278H,"7,969.72",ACCEPT CARE LTD.
Adults Wellbeing and Health,Head of Adults,Third Party Payments,478101,Purchase of Care,06-Dec-2012,2529016-1288283H,"11,889.68",ACCEPT CARE LTD.
Adults Wellbeing and Health,Head of Adults,Third Party Payments,478101,Purchase of Care,06-Dec-2012,2529016-1288295H,"3,011.36",ACCEPT CARE LTD.
Adults Wellbeing and Health,Head of Adults,Third Party Payments,478101,Purchase of Care,06-Dec-2012,2529016-1288397H,"5,224.00",ACCEPT CARE LTD.
Adults Wellbeing and Health,Head of Adults,Third Party Payments,478101,Purchase of Care,06-Dec-2012,2529016-1288403H,"6,541.92",ACCEPT CARE LTD.
Adults Wellbeing and Health,Head of Adults,Third Party Payments,478101,Purchase of Care,06-Dec-2012,2529016-1289079H,"6,384.00",ACCEPT CARE LTD.
Adults Wellbeing and Health,Head of Adults,Third Party Payments,478101,Purchase of Care,06-Dec-2012,2529016-1289663H,"6,905.36",ACCEPT CARE LTD.
Adults Wellbeing and Health,Head of Adults,Third Party Payments,478101,Purchase of Care,06-Dec-2012,2529016-1289777H,"4,413.20",ACCEPT CARE LTD.
Adults Wellbeing and Health,Head of Adults,Third Party Payments,478101,Purchase of Care,06-Dec-2012,2529016-1289848H,"4,698.76",ACCEPT CARE LTD.
Adults Wellbeing and Health,Head of Adults,Third Party Payments,478101,Purchase of Care,06-Dec-2012,2529016-1289949H,"4,984.00",ACCEPT CARE LTD.
Adults Wellbeing and Health,Head of Adults,Third Party Payments,478101,Purchase of Care,06-Dec-2012,2529016-1290401H,"3,816.12",ACCEPT CARE LTD.
Adults Wellbeing and Health,Head of Adults,Third Party Payments,478101,Purchase of Care,06-Dec-2012,2529016-1291300H,"7,268.80",ACCEPT CARE LTD.
Adults Wellbeing and Health,Head of Adults,Third Party Payments,478101,Purchase of Care,06-Dec-2012,2529016-1291514H,"5,996.76",ACCEPT CARE LTD.
Adults Wellbeing and Health,Head of Adults,Third Party Payments,478101,Purchase of Care,06-Dec-2012,2529016-1293216H,"1,232.00",ACCEPT CARE LTD.
Adults Wellbeing and Health,Head of Adults,Third Party Payments,478101,Purchase of Care,06-Dec-2012,2529016-1293219H,"1,540.00",ACCEPT CARE LTD.
Adults Wellbeing and Health,Head of Adults,Third Party Payments,478101,Purchase of Care,06-Dec-2012,2529016-1293220H,"1,232.00",ACCEPT CARE LTD.
Adults Wellbeing and Health,Head of Adults,Third Party Payments,478101,Purchase of Care,06-Dec-2012,2529016-1293221H,"1,540.00",ACCEPT CARE LTD.
Adults Wellbeing and Health,Head of Adults,Third Party Payments,478101,Purchase of Care,06-Dec-2012,2529016-1293222H,528.00,ACCEPT CARE LTD.
Adults Wellbeing and Health,Head of Adults,Third Party Payments,478101,Purchase of Care,06-Dec-2012,2529016-1293226H,"1,342.00",ACCEPT CARE LTD.
Adults Wellbeing and Health,Head of Adults,Third Party Payments,478101,Purchase of Care,06-Dec-2012,2529016-1293227H,"1,232.00",ACCEPT CARE LTD.
Adults Wellbeing and Health,Head of Adults,Third Party Payments,478101,Purchase of Care,06-Dec-2012,2529016-1293228H,990.00,ACCEPT CARE LTD.
Adults Wellbeing and Health,Head of Adults,Third Party Payments,478101,Purchase of Care,06-Dec-2012,2529016-1293230H,"1,136.00",ACCEPT CARE LTD.
Adults Wellbeing and Health,Head of Adults,Third Party Payments,478101,Purchase of Care,06-Dec-2012,2529016-1293231H,528.00,ACCEPT CARE LTD.
Adults Wellbeing and Health,Head of Adults,Third Party Payments,472101,Purchase of Care,06-Dec-2012,2529016-1293232H,672.00,ACCEPT CARE LTD.
Adults Wellbeing and Health,Head of Adults,Third Party Payments,472101,Purchase of Care,06-Dec-2012,2529016-1293236H,672.00,ACCEPT CARE LTD.
Adults Wellbeing and Health,Head of Adults,Third Party Payments,478101,Purchase of Care,06-Dec-2012,2529016-1293248H,531.67,ACCEPT CARE LTD.
Adults Wellbeing and Health,Head of Adults,Transfer Payments,515201,Social Services Clients,06-Dec-2012,2529019-1292055H,817.20,REDACTED - PAYMENT TO INDIVIDUAL
Adults Wellbeing and Health,Head of Adults,Transfer Payments,515201,Social Services Clients,06-Dec-2012,2529021-1291345H,525.88,REDACTED - PAYMENT TO INDIVIDUAL
Adults Wellbeing and Health,Head of Adults,Transfer Payments,515209,Social Services Clients,06-Dec-2012,2529022-1286776D,540.00,REDACTED - PAYMENT TO INDIVIDUAL
Adults Wellbeing and Health,Head of Adults,Transfer Payments,515201,Social Services Clients,06-Dec-2012,2529027-1290303H,611.92,REDACTED - PAYMENT TO INDIVIDUAL
Adults Wellbeing and Health,Head of Adults,Transfer Payments,515201,Social Services Clients,06-Dec-2012,2529033-1290429H,"1,362.00",REDACTED - PAYMENT TO INDIVIDUAL
Adults Wellbeing and Health,Head of Adults,Transfer Payments,515201,Social Services Clients,06-Dec-2012,2529035-1288493H,817.20,REDACTED - PAYMENT TO INDIVIDUAL
Adults Wellbeing and Health,Head of Adults,Transfer Payments,515201,Social Services Clients,06-Dec-2012,2529036-1292528H,675.20,REDACTED - PAYMENT TO INDIVIDUAL
Adults Wellbeing and Health,Head of Adults,Transfer Payments,515201,Social Services Clients,06-Dec-2012,2529039-1289827H,506.40,REDACTED - PAYMENT TO INDIVIDUAL
Adults Wellbeing and Health,Head of Adults,Transfer Payments,515201,Social Services Clients,06-Dec-2012,2529040-1289776H,839.92,REDACTED - PAYMENT TO INDIVIDUAL
Adults Wellbeing and Health,Head of Adults,Transfer Payments,515201,Social Services Clients,06-Dec-2012,2529042-1289856H,580.24,REDACTED - PAYMENT TO INDIVIDUAL
Adults Wellbeing and Health,Head of Adults,Transfer Payments,515201,Social Services Clients,06-Dec-2012,2529043-1289617H,771.80,REDACTED - PAYMENT TO INDIVIDUAL
Adults Wellbeing and Health,Head of Adults,Transfer Payments,515201,Social Services Clients,06-Dec-2012,2529046-1288746H,567.52,REDACTED - PAYMENT TO INDIVIDUAL
Adults Wellbeing and Health,Head of Adults,Transfer Payments,515201,Social Services Clients,06-Dec-2012,2529047-1286507H,794.52,REDACTED - PAYMENT TO INDIVIDUAL
Adults Wellbeing and Health,Head of Adults,Transfer Payments,515201,Social Services Clients,06-Dec-2012,2529050-1287005H,839.92,REDACTED - PAYMENT TO INDIVIDUAL
Adults Wellbeing and Health,Head of Adults,Transfer Payments,515201,Social Services Clients,06-Dec-2012,2529052-1287584H,"1,076.12",REDACTED - PAYMENT TO INDIVIDUAL
Adults Wellbeing and Health,Head of Adults,Transfer Payments,515201,Social Services Clients,06-Dec-2012,2529053-1292058H,"1,076.12",REDACTED - PAYMENT TO INDIVIDUAL
Adults Wellbeing and Health,Head of Adults,Transfer Payments,515201,Social Services Clients,06-Dec-2012,2529054-1289758H,590.80,REDACTED - PAYMENT TO INDIVIDUAL
Adults Wellbeing and Health,Head of Adults,Transfer Payments,515201,Social Services Clients,06-Dec-2012,2529056-1292069H,"2,542.40",REDACTED - PAYMENT TO INDIVIDUAL
Adults Wellbeing and Health,Head of Adults,Transfer Payments,515201,Social Services Clients,06-Dec-2012,2529058-1288118H,949.52,REDACTED - PAYMENT TO INDIVIDUAL
Adults Wellbeing and Health,Head of Adults,Transfer Payments,515201,Social Services Clients,06-Dec-2012,2529063-1289543H,"1,362.00",REDACTED - PAYMENT TO INDIVIDUAL
Adults Wellbeing and Health,Head of Adults,Transfer Payments,515201,Social Services Clients,06-Dec-2012,2529065-1290808H,559.70,REDACTED - PAYMENT TO INDIVIDUAL
Adults Wellbeing and Health,Head of Adults,Transfer Payments,515201,Social Services Clients,06-Dec-2012,2529066-1290444H,735.92,REDACTED - PAYMENT TO INDIVIDUAL
Adults Wellbeing and Health,Head of Adults,Transfer Payments,515201,Social Services Clients,06-Dec-2012,2529067-1292594H,675.20,REDACTED - PAYMENT TO INDIVIDUAL
Adults Wellbeing and Health,Head of Adults,Transfer Payments,515201,Social Services Clients,06-Dec-2012,2529070-1291253H,"1,524.69",REDACTED - PAYMENT TO INDIVIDUAL
Adults Wellbeing and Health,Head of Adults,Transfer Payments,515209,Social Services Clients,06-Dec-2012,2529071-1288715D,544.00,REDACTED - PAYMENT TO INDIVIDUAL
Adults Wellbeing and Health,Head of Adults,Transfer Payments,515209,Social Services Clients,06-Dec-2012,2529072-1291095D,"2,520.00",REDACTED - PAYMENT TO INDIVIDUAL
Adults Wellbeing and Health,Head of Adults,Transfer Payments,515201,Social Services Clients,06-Dec-2012,2529072-1291095H,500.00,REDACTED - PAYMENT TO INDIVIDUAL
Adults Wellbeing and Health,Head of Adults,Transfer Payments,515201,Social Services Clients,06-Dec-2012,2529074-1289270H,"1,814.60",REDACTED - PAYMENT TO INDIVIDUAL
Adults Wellbeing and Health,Head of Adults,Transfer Payments,515201,Social Services Clients,06-Dec-2012,2529076-1287232H,664.64,REDACTED - PAYMENT TO INDIVIDUAL
Adults Wellbeing and Health,Head of Adults,Transfer Payments,515201,Social Services Clients,06-Dec-2012,2529077-1288039H,590.80,REDACTED - PAYMENT TO INDIVIDUAL
Adults Wellbeing and Health,Head of Adults,Transfer Payments,515201,Social Services Clients,06-Dec-2012,2529078-1288177H,"1,287.12",REDACTED - PAYMENT TO INDIVIDUAL
Adults Wellbeing and Health,Head of Adults,Transfer Payments,515201,Social Services Clients,06-Dec-2012,2529080-1290766H,780.72,REDACTED - PAYMENT TO INDIVIDUAL
Adults Wellbeing and Health,Head of Adults,Transfer Payments,515201,Social Services Clients,06-Dec-2012,2529081-1289513H,624.24,REDACTED - PAYMENT TO INDIVIDUAL
Adults Wellbeing and Health,Head of Adults,Transfer Payments,515209,Social Services Clients,06-Dec-2012,2529085-1289007D,640.00,REDACTED - PAYMENT TO INDIVIDUAL
Adults Wellbeing and Health,Head of Adults,Transfer Payments,515201,Social Services Clients,06-Dec-2012,2529086-1288977H,805.84,REDACTED - PAYMENT TO INDIVIDUAL
Adults Wellbeing and Health,Head of Adults,Transfer Payments,515201,Social Services Clients,06-Dec-2012,2529087-1292082H,908.00,REDACTED - PAYMENT TO INDIVIDUAL
Adults Wellbeing and Health,Head of Adults,Transfer Payments,515201,Social Services Clients,06-Dec-2012,2529093-1288630H,862.60,REDACTED - PAYMENT TO INDIVIDUAL
Adults Wellbeing and Health,Head of Adults,Transfer Payments,515201,Social Services Clients,06-Dec-2012,2529095-1290633H,539.70,REDACTED - PAYMENT TO INDIVIDUAL
Adults Wellbeing and Health,Head of Adults,Transfer Payments,515201,Social Services Clients,06-Dec-2012,2529096-1288612H,"1,770.60",REDACTED - PAYMENT TO INDIVIDUAL
Adults Wellbeing and Health,Head of Adults,Transfer Payments,515201,Social Services Clients,06-Dec-2012,2529101-1290794H,534.44,REDACTED - PAYMENT TO INDIVIDUAL
Adults Wellbeing and Health,Head of Adults,Transfer Payments,515201,Social Services Clients,06-Dec-2012,2529102-1289702H,681.00,REDACTED - PAYMENT TO INDIVIDUAL
Adults Wellbeing and Health,Head of Adults,Transfer Payments,515201,Social Services Clients,06-Dec-2012,2529104-1289996H,723.72,REDACTED - PAYMENT TO INDIVIDUAL
Adults Wellbeing and Health,Head of Adults,Transfer Payments,515201,Social Services Clients,06-Dec-2012,2529106-1290384H,907.32,REDACTED - PAYMENT TO INDIVIDUAL
Adults Wellbeing and Health,Head of Adults,Transfer Payments,515201,Social Services Clients,06-Dec-2012,2529107-1289618H,678.72,REDACTED - PAYMENT TO INDIVIDUAL
Adults Wellbeing and Health,Head of Adults,Transfer Payments,515201,Social Services Clients,06-Dec-2012,2529109-1287752H,726.40,REDACTED - PAYMENT TO INDIVIDUAL
Adults Wellbeing and Health,Head of Adults,Transfer Payments,515201,Social Services Clients,06-Dec-2012,2529110-1290031H,637.60,REDACTED - PAYMENT TO INDIVIDUAL
Adults Wellbeing and Health,Head of Adults,Transfer Payments,515201,Social Services Clients,06-Dec-2012,2529111-1287926H,632.40,REDACTED - PAYMENT TO INDIVIDUAL
Adults Wellbeing and Health,Head of Adults,Transfer Payments,515201,Social Services Clients,06-Dec-2012,2529112-1290212H,583.76,REDACTED - PAYMENT TO INDIVIDUAL
Adults Wellbeing and Health,Head of Adults,Transfer Payments,515201,Social Services Clients,06-Dec-2012,2529113-1288549H,665.88,REDACTED - PAYMENT TO INDIVIDUAL
Adults Wellbeing and Health,Head of Adults,Transfer Payments,515201,Social Services Clients,06-Dec-2012,2529116-1290368H,727.84,REDACTED - PAYMENT TO INDIVIDUAL
Adults Wellbeing and Health,Head of Adults,Transfer Payments,515201,Social Services Clients,06-Dec-2012,2529117-1292076H,949.52,REDACTED - PAYMENT TO INDIVIDUAL
Adults Wellbeing and Health,Head of Adults,Transfer Payments,515201,Social Services Clients,06-Dec-2012,2529118-1291181H,633.00,REDACTED - PAYMENT TO INDIVIDUAL
Adults Wellbeing and Health,Head of Adults,Transfer Payments,515201,Social Services Clients,06-Dec-2012,2529119-1289230H,590.80,REDACTED - PAYMENT TO INDIVIDUAL
Adults Wellbeing and Health,Head of Adults,Transfer Payments,515201,Social Services Clients,06-Dec-2012,2529120-1292297H,"2,031.64",REDACTED - PAYMENT TO INDIVIDUAL
Adults Wellbeing and Health,Head of Adults,Transfer Payments,515201,Social Services Clients,06-Dec-2012,2529121-1290034H,635.60,REDACTED - PAYMENT TO INDIVIDUAL
Adults Wellbeing and Health,Head of Adults,Transfer Payments,515201,Social Services Clients,06-Dec-2012,2529123-1292107H,738.52,REDACTED - PAYMENT TO INDIVIDUAL
Adults Wellbeing and Health,Head of Adults,Transfer Payments,515201,Social Services Clients,06-Dec-2012,2529124-1292693H,"4,005.04",REDACTED - PAYMENT TO INDIVIDUAL
Adults Wellbeing and Health,Head of Adults,Transfer Payments,515201,Social Services Clients,06-Dec-2012,2529125-1290508H,717.40,REDACTED - PAYMENT TO INDIVIDUAL
Adults Wellbeing and Health,Head of Adults,Transfer Payments,515201,Social Services Clients,06-Dec-2012,2529128-1288975H,"1,180.40",REDACTED - PAYMENT TO INDIVIDUAL
Adults Wellbeing and Health,Head of Adults,Transfer Payments,515201,Social Services Clients,06-Dec-2012,2529129-1287994H,976.12,REDACTED - PAYMENT TO INDIVIDUAL
Adults Wellbeing and Health,Head of Adults,Transfer Payments,515201,Social Services Clients,06-Dec-2012,2529131-1287872H,675.20,REDACTED - PAYMENT TO INDIVIDUAL
Adults Wellbeing and Health,Head of Adults,Transfer Payments,515201,Social Services Clients,06-Dec-2012,2529132-1289908H,"1,747.92",REDACTED - PAYMENT TO INDIVIDUAL
Adults Wellbeing and Health,Head of Adults,Transfer Payments,515201,Social Services Clients,06-Dec-2012,2529133-1292109H,"2,743.00",REDACTED - PAYMENT TO INDIVIDUAL
Adults Wellbeing and Health,Head of Adults,Transfer Payments,515201,Social Services Clients,06-Dec-2012,2529134-1288980H,"1,055.00",REDACTED - PAYMENT TO INDIVIDUAL
Adults Wellbeing and Health,Head of Adults,Transfer Payments,515201,Social Services Clients,06-Dec-2012,2529135-1290922H,527.52,REDACTED - PAYMENT TO INDIVIDUAL
Adults Wellbeing and Health,Head of Adults,Transfer Payments,515201,Social Services Clients,06-Dec-2012,2529136-1291397H,794.52,REDACTED - PAYMENT TO INDIVIDUAL
Adults Wellbeing and Health,Head of Adults,Transfer Payments,515201,Social Services Clients,06-Dec-2012,2529138-1288344H,833.44,REDACTED - PAYMENT TO INDIVIDUAL
Adults Wellbeing and Health,Head of Adults,Transfer Payments,515201,Social Services Clients,06-Dec-2012,2529139-1292462H,812.36,REDACTED - PAYMENT TO INDIVIDUAL
Adults Wellbeing and Health,Head of Adults,Transfer Payments,515201,Social Services Clients,06-Dec-2012,2529142-1291298H,"1,033.80",REDACTED - PAYMENT TO INDIVIDUAL
Adults Wellbeing and Health,Head of Adults,Transfer Payments,515201,Social Services Clients,06-Dec-2012,2529143-1290276H,"1,120.00",REDACTED - PAYMENT TO INDIVIDUAL
Adults Wellbeing and Health,Head of Adults,Transfer Payments,515201,Social Services Clients,06-Dec-2012,2529146-1287743H,838.20,REDACTED - PAYMENT TO INDIVIDUAL
Adults Wellbeing and Health,Head of Adults,Transfer Payments,515209,Social Services Clients,06-Dec-2012,2529147-1287847D,855.20,REDACTED - PAYMENT TO INDIVIDUAL
Adults Wellbeing and Health,Head of Adults,Transfer Payments,515201,Social Services Clients,06-Dec-2012,2529149-1292204H,839.92,REDACTED - PAYMENT TO INDIVIDUAL
Adults Wellbeing and Health,Head of Adults,Transfer Payments,515201,Social Services Clients,06-Dec-2012,2529151-1286727H,998.80,REDACTED - PAYMENT TO INDIVIDUAL
Adults Wellbeing and Health,Head of Adults,Transfer Payments,515201,Social Services Clients,06-Dec-2012,2529157-1288332H,953.40,REDACTED - PAYMENT TO INDIVIDUAL
Adults Wellbeing and Health,Head of Adults,Transfer Payments,515201,Social Services Clients,06-Dec-2012,2529159-1290115H,"1,944.00",REDACTED - PAYMENT TO INDIVIDUAL
Adults Wellbeing and Health,Head of Adults,Transfer Payments,515201,Social Services Clients,06-Dec-2012,2529163-1286679H,828.56,REDACTED - PAYMENT TO INDIVIDUAL
Adults Wellbeing and Health,Head of Adults,Transfer Payments,515201,Social Services Clients,06-Dec-2012,2529164-1288265H,760.44,REDACTED - PAYMENT TO INDIVIDUAL
Adults Wellbeing and Health,Head of Adults,Transfer Payments,515201,Social Services Clients,06-Dec-2012,2529165-1286533H,"1,477.00",REDACTED - PAYMENT TO INDIVIDUAL
Adults Wellbeing and Health,Head of Adults,Transfer Payments,515201,Social Services Clients,06-Dec-2012,2529167-1292793H,583.77,REDACTED - PAYMENT TO INDIVIDUAL
Adults Wellbeing and Health,Head of Adults,Transfer Payments,515201,Social Services Clients,06-Dec-2012,2529169-1289162H,541.56,REDACTED - PAYMENT TO INDIVIDUAL
Adults Wellbeing and Health,Head of Adults,Transfer Payments,515201,Social Services Clients,06-Dec-2012,2529170-1287691H,"1,582.52",REDACTED - PAYMENT TO INDIVIDUAL
Adults Wellbeing and Health,Head of Adults,Transfer Payments,515201,Social Services Clients,06-Dec-2012,2529171-1287057H,669.64,REDACTED - PAYMENT TO INDIVIDUAL
Adults Wellbeing and Health,Head of Adults,Transfer Payments,515201,Social Services Clients,06-Dec-2012,2529172-1291731H,928.40,REDACTED - PAYMENT TO INDIVIDUAL
Adults Wellbeing and Health,Head of Adults,Transfer Payments,515201,Social Services Clients,06-Dec-2012,2529173-1292778H,745.52,REDACTED - PAYMENT TO INDIVIDUAL
Adults Wellbeing and Health,Head of Adults,Transfer Payments,515201,Social Services Clients,06-Dec-2012,2529174-1288051H,569.60,REDACTED - PAYMENT TO INDIVIDUAL
Adults Wellbeing and Health,Head of Adults,Transfer Payments,515201,Social Services Clients,06-Dec-2012,2529176-1287987H,615.24,REDACTED - PAYMENT TO INDIVIDUAL
Adults Wellbeing and Health,Head of Adults,Transfer Payments,515209,Social Services Clients,06-Dec-2012,2529180-1287723D,500.00,REDACTED - PAYMENT TO INDIVIDUAL
Adults Wellbeing and Health,Head of Adults,Transfer Payments,515201,Social Services Clients,06-Dec-2012,2529180-1287723H,506.40,REDACTED - PAYMENT TO INDIVIDUAL
Adults Wellbeing and Health,Head of Adults,Transfer Payments,515201,Social Services Clients,06-Dec-2012,2529183-1289022H,"1,872.76",REDACTED - PAYMENT TO INDIVIDUAL
Adults Wellbeing and Health,Head of Adults,Transfer Payments,515201,Social Services Clients,06-Dec-2012,2529186-1286767H,706.84,REDACTED - PAYMENT TO INDIVIDUAL
Adults Wellbeing and Health,Head of Adults,Transfer Payments,515201,Social Services Clients,06-Dec-2012,2529189-1289805H,"1,669.00",REDACTED - PAYMENT TO INDIVIDUAL
Adults Wellbeing and Health,Head of Adults,Transfer Payments,515201,Social Services Clients,06-Dec-2012,2529191-1289266H,537.96,REDACTED - PAYMENT TO INDIVIDUAL
Adults Wellbeing and Health,Head of Adults,Transfer Payments,515201,Social Services Clients,06-Dec-2012,2529195-1292468H,590.20,REDACTED - PAYMENT TO INDIVIDUAL
Adults Wellbeing and Health,Head of Adults,Transfer Payments,515201,Social Services Clients,06-Dec-2012,2529197-1289730H,"1,452.80",REDACTED - PAYMENT TO INDIVIDUAL
Adults Wellbeing and Health,Head of Adults,Transfer Payments,515209,Social Services Clients,06-Dec-2012,2529198-1287977D,"1,032.00",REDACTED - PAYMENT TO INDIVIDUAL
Adults Wellbeing and Health,Head of Adults,Transfer Payments,515209,Social Services Clients,06-Dec-2012,2529199-1288068D,775.20,REDACTED - PAYMENT TO INDIVIDUAL
Adults Wellbeing and Health,Head of Adults,Transfer Payments,515201,Social Services Clients,06-Dec-2012,2529200-1286746H,"2,425.56",REDACTED - PAYMENT TO INDIVIDUAL
Adults Wellbeing and Health,Head of Adults,Transfer Payments,515201,Social Services Clients,06-Dec-2012,2529201-1286530H,817.20,REDACTED - PAYMENT TO INDIVIDUAL
Adults Wellbeing and Health,Head of Adults,Transfer Payments,515201,Social Services Clients,06-Dec-2012,2529202-1291960H,"1,362.00",REDACTED - PAYMENT TO INDIVIDUAL
Adults Wellbeing and Health,Head of Adults,Transfer Payments,515201,Social Services Clients,06-Dec-2012,2529204-1291429H,"2,451.60",REDACTED - PAYMENT TO INDIVIDUAL
Adults Wellbeing and Health,Head of Adults,Transfer Payments,515201,Social Services Clients,06-Dec-2012,2529205-1291837H,703.72,REDACTED - PAYMENT TO INDIVIDUAL
Adults Wellbeing and Health,Head of Adults,Transfer Payments,515201,Social Services Clients,06-Dec-2012,2529207-1292556H,506.40,REDACTED - PAYMENT TO INDIVIDUAL
Adults Wellbeing and Health,Head of Adults,Transfer Payments,515201,Social Services Clients,06-Dec-2012,2529208-1288523H,567.52,REDACTED - PAYMENT TO INDIVIDUAL
Adults Wellbeing and Health,Head of Adults,Transfer Payments,515201,Social Services Clients,06-Dec-2012,2529211-1291250H,840.48,REDACTED - PAYMENT TO INDIVIDUAL
Adults Wellbeing and Health,Head of Adults,Transfer Payments,515201,Social Services Clients,06-Dec-2012,2529212-1287856H,"1,316.60",REDACTED - PAYMENT TO INDIVIDUAL
Adults Wellbeing and Health,Head of Adults,Transfer Payments,515201,Social Services Clients,06-Dec-2012,2529213-1290327H,"1,624.72",REDACTED - PAYMENT TO INDIVIDUAL
Adults Wellbeing and Health,Head of Adults,Transfer Payments,515201,Social Services Clients,06-Dec-2012,2529214-1291367H,696.32,REDACTED - PAYMENT TO INDIVIDUAL
Adults Wellbeing and Health,Head of Adults,Transfer Payments,515201,Social Services Clients,06-Dec-2012,2529218-1289183H,657.60,REDACTED - PAYMENT TO INDIVIDUAL
Adults Wellbeing and Health,Head of Adults,Transfer Payments,515201,Social Services Clients,06-Dec-2012,2529219-1291840H,646.96,REDACTED - PAYMENT TO INDIVIDUAL
Adults Wellbeing and Health,Head of Adults,Transfer Payments,515209,Social Services Clients,06-Dec-2012,2529220-1289875D,"1,800.00",REDACTED - PAYMENT TO INDIVIDUAL
Adults Wellbeing and Health,Head of Adults,Transfer Payments,515201,Social Services Clients,06-Dec-2012,2529220-1289875H,"2,088.40",REDACTED - PAYMENT TO INDIVIDUAL
Adults Wellbeing and Health,Head of Adults,Transfer Payments,515201,Social Services Clients,06-Dec-2012,2529221-1290055H,675.20,REDACTED - PAYMENT TO INDIVIDUAL
Adults Wellbeing and Health,Head of Adults,Transfer Payments,515201,Social Services Clients,06-Dec-2012,2529222-1292459H,798.28,REDACTED - PAYMENT TO INDIVIDUAL
Adults Wellbeing and Health,Head of Adults,Transfer Payments,515201,Social Services Clients,06-Dec-2012,2529223-1289744H,759.60,REDACTED - PAYMENT TO INDIVIDUAL
Adults Wellbeing and Health,Head of Adults,Third Party Payments,470101,Purchase of Care,06-Dec-2012,2529224-1287011D,692.32,REDACTED - PAYMENT TO INDIVIDUAL
Adults Wellbeing and Health,Head of Adults,Transfer Payments,515201,Social Services Clients,06-Dec-2012,2529228-1291220H,"1,362.00",REDACTED - PAYMENT TO INDIVIDUAL
Adults Wellbeing and Health,Head of Adults,Transfer Payments,515201,Social Services Clients,06-Dec-2012,2529229-1289310H,817.20,REDACTED - PAYMENT TO INDIVIDUAL
Adults Wellbeing and Health,Head of Adults,Transfer Payments,515201,Social Services Clients,06-Dec-2012,2529230-1291876H,"1,089.60",REDACTED - PAYMENT TO INDIVIDUAL
Adults Wellbeing and Health,Head of Adults,Transfer Payments,515201,Social Services Clients,06-Dec-2012,2529231-1291904H,771.80,REDACTED - PAYMENT TO INDIVIDUAL
Adults Wellbeing and Health,Head of Adults,Transfer Payments,515201,Social Services Clients,06-Dec-2012,2529234-1289891H,569.72,REDACTED - PAYMENT TO INDIVIDUAL
Adults Wellbeing and Health,Head of Adults,Transfer Payments,515201,Social Services Clients,06-Dec-2012,2529236-1289096H,590.20,REDACTED - PAYMENT TO INDIVIDUAL
Adults Wellbeing and Health,Head of Adults,Transfer Payments,515201,Social Services Clients,06-Dec-2012,2529240-1287140H,"6,833.12",REDACTED - PAYMENT TO INDIVIDUAL
Adults Wellbeing and Health,Head of Adults,Transfer Payments,515209,Social Services Clients,06-Dec-2012,2529241-1289579D,529.74,REDACTED - PAYMENT TO INDIVIDUAL
Adults Wellbeing and Health,Head of Adults,Transfer Payments,515201,Social Services Clients,06-Dec-2012,2529241-1289579H,"2,843.90",REDACTED - PAYMENT TO INDIVIDUAL
Adults Wellbeing and Health,Head of Adults,Transfer Payments,515201,Social Services Clients,06-Dec-2012,2529242-1292134H,731.48,REDACTED - PAYMENT TO INDIVIDUAL
Adults Wellbeing and Health,Head of Adults,Transfer Payments,515201,Social Services Clients,06-Dec-2012,2529243-1291569H,770.04,REDACTED - PAYMENT TO INDIVIDUAL
Adults Wellbeing and Health,Head of Adults,Transfer Payments,515201,Social Services Clients,06-Dec-2012,2529244-1288651H,822.92,REDACTED - PAYMENT TO INDIVIDUAL
Adults Wellbeing and Health,Head of Adults,Transfer Payments,515201,Social Services Clients,06-Dec-2012,2529248-1293066H,"2,128.82",REDACTED - PAYMENT TO INDIVIDUAL
Adults Wellbeing and Health,Head of Adults,Transfer Payments,515201,Social Services Clients,06-Dec-2012,2529249-1288037H,"1,097.12",REDACTED - PAYMENT TO INDIVIDUAL
Adults Wellbeing and Health,Head of Adults,Transfer Payments,515201,Social Services Clients,06-Dec-2012,2529252-1286603H,908.00,REDACTED - PAYMENT TO INDIVIDUAL
Adults Wellbeing and Health,Head of Adults,Transfer Payments,515201,Social Services Clients,06-Dec-2012,2529253-1289419H,635.60,REDACTED - PAYMENT TO INDIVIDUAL
Adults Wellbeing and Health,Head of Adults,Transfer Payments,515201,Social Services Clients,06-Dec-2012,2529256-1287068H,759.60,REDACTED - PAYMENT TO INDIVIDUAL
Adults Wellbeing and Health,Head of Adults,Transfer Payments,515209,Social Services Clients,06-Dec-2012,2529257-1288767D,935.68,REDACTED - PAYMENT TO INDIVIDUAL
Adults Wellbeing and Health,Head of Adults,Transfer Payments,515201,Social Services Clients,06-Dec-2012,2529260-1287089H,"1,066.92",REDACTED - PAYMENT TO INDIVIDUAL
Adults Wellbeing and Health,Head of Adults,Transfer Payments,515201,Social Services Clients,06-Dec-2012,2529263-1286571H,908.00,REDACTED - PAYMENT TO INDIVIDUAL
Adults Wellbeing and Health,Head of Adults,Transfer Payments,515201,Social Services Clients,06-Dec-2012,2529267-1291561H,611.92,REDACTED - PAYMENT TO INDIVIDUAL
Adults Wellbeing and Health,Head of Adults,Transfer Payments,515201,Social Services Clients,06-Dec-2012,2529271-1288350H,633.00,REDACTED - PAYMENT TO INDIVIDUAL
Adults Wellbeing and Health,Head of Adults,Transfer Payments,515201,Social Services Clients,06-Dec-2012,2529272-1291762H,696.32,REDACTED - PAYMENT TO INDIVIDUAL
Adults Wellbeing and Health,Head of Adults,Transfer Payments,515201,Social Services Clients,06-Dec-2012,2529274-1291328H,839.92,REDACTED - PAYMENT TO INDIVIDUAL
Adults Wellbeing and Health,Head of Adults,Transfer Payments,515201,Social Services Clients,06-Dec-2012,2529275-1289625H,908.00,REDACTED - PAYMENT TO INDIVIDUAL
Adults Wellbeing and Health,Head of Adults,Transfer Payments,515209,Social Services Clients,06-Dec-2012,2529277-1288607D,"1,663.40",REDACTED - PAYMENT TO INDIVIDUAL
Adults Wellbeing and Health,Head of Adults,Transfer Payments,515201,Social Services Clients,06-Dec-2012,2529278-1288391H,794.52,REDACTED - PAYMENT TO INDIVIDUAL
Adults Wellbeing and Health,Head of Adults,Transfer Payments,515201,Social Services Clients,06-Dec-2012,2529282-1289759H,516.64,REDACTED - PAYMENT TO INDIVIDUAL
Adults Wellbeing and Health,Head of Adults,Transfer Payments,515209,Social Services Clients,06-Dec-2012,2529285-1291394D,528.00,REDACTED - PAYMENT TO INDIVIDUAL
Adults Wellbeing and Health,Head of Adults,Transfer Payments,515201,Social Services Clients,06-Dec-2012,2529288-1291753H,726.40,REDACTED - PAYMENT TO INDIVIDUAL
Adults Wellbeing and Health,Head of Adults,Transfer Payments,515201,Social Services Clients,06-Dec-2012,2529293-1292655H,"1,730.20",REDACTED - PAYMENT TO INDIVIDUAL
Adults Wellbeing and Health,Head of Adults,Transfer Payments,515201,Social Services Clients,06-Dec-2012,2529298-1291933H,783.16,REDACTED - PAYMENT TO INDIVIDUAL
Adults Wellbeing and Health,Head of Adults,Transfer Payments,515209,Social Services Clients,06-Dec-2012,2529299-1289352D,580.00,REDACTED - PAYMENT TO INDIVIDUAL
Adults Wellbeing and Health,Head of Adults,Transfer Payments,515201,Social Services Clients,06-Dec-2012,2529301-1291506H,998.80,REDACTED - PAYMENT TO INDIVIDUAL
Adults Wellbeing and Health,Head of Adults,Transfer Payments,515201,Social Services Clients,06-Dec-2012,2529302-1288753H,547.00,REDACTED - PAYMENT TO INDIVIDUAL
Adults Wellbeing and Health,Head of Adults,Transfer Payments,515201,Social Services Clients,06-Dec-2012,2529303-1289073H,"1,316.60",REDACTED - PAYMENT TO INDIVIDUAL
Adults Wellbeing and Health,Head of Adults,Transfer Payments,515201,Social Services Clients,06-Dec-2012,2529305-1288821H,"2,380.00",REDACTED - PAYMENT TO INDIVIDUAL
Adults Wellbeing and Health,Head of Adults,Transfer Payments,515201,Social Services Clients,06-Dec-2012,2529310-1286702H,"1,012.80",REDACTED - PAYMENT TO INDIVIDUAL
Adults Wellbeing and Health,Head of Adults,Transfer Payments,515209,Social Services Clients,06-Dec-2012,2529311-1291409D,900.00,REDACTED - PAYMENT TO INDIVIDUAL
Adults Wellbeing and Health,Head of Adults,Transfer Payments,515201,Social Services Clients,06-Dec-2012,2529311-1291409H,"1,804.64",REDACTED - PAYMENT TO INDIVIDUAL
Adults Wellbeing and Health,Head of Adults,Transfer Payments,515201,Social Services Clients,06-Dec-2012,2529312-1291617H,527.52,REDACTED - PAYMENT TO INDIVIDUAL
Adults Wellbeing and Health,Head of Adults,Transfer Payments,515201,Social Services Clients,06-Dec-2012,2529313-1288511H,"1,177.60",REDACTED - PAYMENT TO INDIVIDUAL
Adults Wellbeing and Health,Head of Adults,Transfer Payments,515201,Social Services Clients,06-Dec-2012,2529315-1291553H,590.80,REDACTED - PAYMENT TO INDIVIDUAL
Adults Wellbeing and Health,Head of Adults,Transfer Payments,515201,Social Services Clients,06-Dec-2012,2529317-1289238H,661.12,REDACTED - PAYMENT TO INDIVIDUAL
Adults Wellbeing and Health,Head of Adults,Transfer Payments,515201,Social Services Clients,06-Dec-2012,2529318-1291414H,"1,477.00",REDACTED - PAYMENT TO INDIVIDUAL
Adults Wellbeing and Health,Head of Adults,Transfer Payments,515201,Social Services Clients,06-Dec-2012,2529320-1289090H,"1,362.00",REDACTED - PAYMENT TO INDIVIDUAL
Adults Wellbeing and Health,Head of Adults,Transfer Payments,515201,Social Services Clients,06-Dec-2012,2529321-1289801H,862.60,REDACTED - PAYMENT TO INDIVIDUAL
Adults Wellbeing and Health,Head of Adults,Transfer Payments,515201,Social Services Clients,06-Dec-2012,2529322-1291325H,908.00,REDACTED - PAYMENT TO INDIVIDUAL
Adults Wellbeing and Health,Head of Adults,Transfer Payments,515201,Social Services Clients,06-Dec-2012,2529323-1287593H,"1,498.20",REDACTED - PAYMENT TO INDIVIDUAL
Adults Wellbeing and Health,Head of Adults,Transfer Payments,515201,Social Services Clients,06-Dec-2012,2529326-1286892H,726.40,REDACTED - PAYMENT TO INDIVIDUAL
Adults Wellbeing and Health,Head of Adults,Transfer Payments,515201,Social Services Clients,06-Dec-2012,2529328-1288423H,801.80,REDACTED - PAYMENT TO INDIVIDUAL
Adults Wellbeing and Health,Head of Adults,Transfer Payments,515201,Social Services Clients,06-Dec-2012,2529329-1288893H,590.80,REDACTED - PAYMENT TO INDIVIDUAL
Adults Wellbeing and Health,Head of Adults,Transfer Payments,515201,Social Services Clients,06-Dec-2012,2529329-1292384H,862.60,REDACTED - PAYMENT TO INDIVIDUAL
Adults Wellbeing and Health,Head of Adults,Transfer Payments,515201,Social Services Clients,06-Dec-2012,2529334-1289185H,703.72,REDACTED - PAYMENT TO INDIVIDUAL
Adults Wellbeing and Health,Head of Adults,Transfer Payments,515201,Social Services Clients,06-Dec-2012,2529335-1290781H,"1,418.76",REDACTED - PAYMENT TO INDIVIDUAL
Adults Wellbeing and Health,Head of Adults,Transfer Payments,515201,Social Services Clients,06-Dec-2012,2529337-1288149H,"2,181.00",REDACTED - PAYMENT TO INDIVIDUAL
Adults Wellbeing and Health,Head of Adults,Transfer Payments,515201,Social Services Clients,06-Dec-2012,2529339-1289280H,635.60,REDACTED - PAYMENT TO INDIVIDUAL
Adults Wellbeing and Health,Head of Adults,Transfer Payments,515201,Social Services Clients,06-Dec-2012,2529342-1291073H,"1,396.04",REDACTED - PAYMENT TO INDIVIDUAL
Adults Wellbeing and Health,Head of Adults,Transfer Payments,515201,Social Services Clients,06-Dec-2012,2529343-1290928H,548.52,REDACTED - PAYMENT TO INDIVIDUAL
Adults Wellbeing and Health,Head of Adults,Transfer Payments,515201,Social Services Clients,06-Dec-2012,2529344-1287288H,"1,089.60",REDACTED - PAYMENT TO INDIVIDUAL
Adults Wellbeing and Health,Head of Adults,Transfer Payments,515201,Social Services Clients,06-Dec-2012,2529348-1287332H,930.72,REDACTED - PAYMENT TO INDIVIDUAL
Adults Wellbeing and Health,Head of Adults,Transfer Payments,515201,Social Services Clients,06-Dec-2012,2529349-1290118H,675.20,REDACTED - PAYMENT TO INDIVIDUAL
Adults Wellbeing and Health,Head of Adults,Transfer Payments,515201,Social Services Clients,06-Dec-2012,2529351-1287335H,580.24,REDACTED - PAYMENT TO INDIVIDUAL
Adults Wellbeing and Health,Head of Adults,Transfer Payments,515201,Social Services Clients,06-Dec-2012,2529353-1292515H,518.32,REDACTED - PAYMENT TO INDIVIDUAL
Adults Wellbeing and Health,Head of Adults,Transfer Payments,515201,Social Services Clients,06-Dec-2012,2529356-1292168H,"1,369.56",REDACTED - PAYMENT TO INDIVIDUAL
Adults Wellbeing and Health,Head of Adults,Transfer Payments,515201,Social Services Clients,06-Dec-2012,2529360-1290738H,635.60,REDACTED - PAYMENT TO INDIVIDUAL
Adults Wellbeing and Health,Head of Adults,Third Party Payments,470101,Purchase of Care,06-Dec-2012,2529362-2065007,"1,864.56",ACOMB COURT.
Adults Wellbeing and Health,Head of Adults,Third Party Payments,473101,Purchase of Care,06-Dec-2012,2529363-1287275D,507.42,ACORN GRANGE NURSING HOME.
Adults Wellbeing and Health,Head of Adults,Third Party Payments,473101,Purchase of Care,06-Dec-2012,2529363-1291445D,672.96,ACORN GRANGE NURSING HOME.
Adults Wellbeing and Health,Head of Adults,Third Party Payments,473101,Purchase of Care,06-Dec-2012,2529363-1292112D,672.96,ACORN GRANGE NURSING HOME.
Adults Wellbeing and Health,Head of Adults,Third Party Payments,473101,Purchase of Care,06-Dec-2012,2529363-1292174D,602.34,ACORN GRANGE NURSING HOME.
Adults Wellbeing and Health,Head of Adults,Third Party Payments,473101,Purchase of Care,06-Dec-2012,2529363-1292334D,841.20,ACORN GRANGE NURSING HOME.
Adults Wellbeing and Health,Head of Adults,Third Party Payments,473101,Purchase of Care,06-Dec-2012,2529363-1292597D,683.76,ACORN GRANGE NURSING HOME.
Adults Wellbeing and Health,Head of Adults,Third Party Payments,473101,Purchase of Care,06-Dec-2012,2529363-1292687D,504.72,ACORN GRANGE NURSING HOME.
Adults Wellbeing and Health,Head of Adults,Third Party Payments,473101,Purchase of Care,06-Dec-2012,2529363-1292753D,504.72,ACORN GRANGE NURSING HOME.
Adults Wellbeing and Health,Head of Adults,Third Party Payments,473101,Purchase of Care,06-Dec-2012,2529363-1293184D,731.22,ACORN GRANGE NURSING HOME.
Adults Wellbeing and Health,Head of Adults,Third Party Payments,470101,Purchase of Care,06-Dec-2012,2529363-2065899,"1,757.76",ACORN GRANGE NURSING HOME.
Adults Wellbeing and Health,Head of Adults,Third Party Payments,470101,Purchase of Care,06-Dec-2012,2529363-2065900,"1,757.76",ACORN GRANGE NURSING HOME.
Adults Wellbeing and Health,Head of Adults,Third Party Payments,470101,Purchase of Care,06-Dec-2012,2529363-2065901,"1,757.76",ACORN GRANGE NURSING HOME.
Adults Wellbeing and Health,Head of Adults,Third Party Payments,470101,Purchase of Care,06-Dec-2012,2529363-2065902,"1,757.76",ACORN GRANGE NURSING HOME.
Adults Wellbeing and Health,Head of Adults,Third Party Payments,470101,Purchase of Care,06-Dec-2012,2529363-2065903,"1,757.76",ACORN GRANGE NURSING HOME.
Adults Wellbeing and Health,Head of Adults,Third Party Payments,470101,Purchase of Care,06-Dec-2012,2529363-2065904,"1,757.76",ACORN GRANGE NURSING HOME.
Adults Wellbeing and Health,Head of Adults,Third Party Payments,470101,Purchase of Care,06-Dec-2012,2529363-2065905,"1,757.76",ACORN GRANGE NURSING HOME.
Adults Wellbeing and Health,Head of Adults,Third Party Payments,470101,Purchase of Care,06-Dec-2012,2529363-2065932,"1,757.76",ACORN GRANGE NURSING HOME.
Adults Wellbeing and Health,Head of Adults,Third Party Payments,470101,Purchase of Care,06-Dec-2012,2529363-2065987,690.54,ACORN GRANGE NURSING HOME.
Adults Wellbeing and Health,Head of Adults,Third Party Payments,470101,Purchase of Care,06-Dec-2012,2529363-2065988,"1,757.76",ACORN GRANGE NURSING HOME.
Adults Wellbeing and Health,Head of Adults,Third Party Payments,470101,Purchase of Care,06-Dec-2012,2529363-2065989,"1,757.76",ACORN GRANGE NURSING HOME.
Adults Wellbeing and Health,Head of Adults,Third Party Payments,470101,Purchase of Care,06-Dec-2012,2529363-2065990,"1,757.76",ACORN GRANGE NURSING HOME.
Adults Wellbeing and Health,Head of Adults,Third Party Payments,470101,Purchase of Care,06-Dec-2012,2529363-2065991,878.88,ACORN GRANGE NURSING HOME.
Adults Wellbeing and Health,Head of Adults,Third Party Payments,470101,Purchase of Care,06-Dec-2012,2529363-2065992,"1,757.76",ACORN GRANGE NURSING HOME.
Adults Wellbeing and Health,Head of Adults,Third Party Payments,470101,Purchase of Care,06-Dec-2012,2529363-2065993,"1,757.76",ACORN GRANGE NURSING HOME.
Adults Wellbeing and Health,Head of Adults,Third Party Payments,470101,Purchase of Care,06-Dec-2012,2529363-2065994,"1,757.76",ACORN GRANGE NURSING HOME.
Adults Wellbeing and Health,Head of Adults,Third Party Payments,470101,Purchase of Care,06-Dec-2012,2529363-2065995,"1,757.76",ACORN GRANGE NURSING HOME.
Adults Wellbeing and Health,Head of Adults,Third Party Payments,470101,Purchase of Care,06-Dec-2012,2529363-2065998,"1,757.76",ACORN GRANGE NURSING HOME.
Adults Wellbeing and Health,Head of Adults,Third Party Payments,471101,Purchase of Care,06-Dec-2012,2529363-2069018,"1,827.24",ACORN GRANGE NURSING HOME.
Adults Wellbeing and Health,Head of Adults,Third Party Payments,471101,Purchase of Care,06-Dec-2012,2529363-2069019,"1,827.24",ACORN GRANGE NURSING HOME.
Adults Wellbeing and Health,Head of Adults,Third Party Payments,471101,Purchase of Care,06-Dec-2012,2529363-2069020,"1,827.24",ACORN GRANGE NURSING HOME.
Adults Wellbeing and Health,Head of Adults,Third Party Payments,471101,Purchase of Care,06-Dec-2012,2529363-2069021,"1,827.24",ACORN GRANGE NURSING HOME.
Adults Wellbeing and Health,Head of Adults,Third Party Payments,471101,Purchase of Care,06-Dec-2012,2529363-2069022,"1,827.24",ACORN GRANGE NURSING HOME.
Adults Wellbeing and Health,Head of Adults,Third Party Payments,471101,Purchase of Care,06-Dec-2012,2529363-2069023,"1,827.24",ACORN GRANGE NURSING HOME.
Adults Wellbeing and Health,Head of Adults,Third Party Payments,471101,Purchase of Care,06-Dec-2012,2529363-2069040,"1,827.24",ACORN GRANGE NURSING HOME.
Adults Wellbeing and Health,Head of Adults,Third Party Payments,471101,Purchase of Care,06-Dec-2012,2529363-2069048,"1,827.24",ACORN GRANGE NURSING HOME.
Adults Wellbeing and Health,Head of Adults,Third Party Payments,471101,Purchase of Care,06-Dec-2012,2529363-2069057,"1,827.24",ACORN GRANGE NURSING HOME.
Adults Wellbeing and Health,Head of Adults,Third Party Payments,471101,Purchase of Care,06-Dec-2012,2529363-2069062,"1,827.24",ACORN GRANGE NURSING HOME.
Adults Wellbeing and Health,Head of Adults,Third Party Payments,471101,Purchase of Care,06-Dec-2012,2529363-2069063,"1,827.24",ACORN GRANGE NURSING HOME.
Adults Wellbeing and Health,Head of Adults,Third Party Payments,471101,Purchase of Care,06-Dec-2012,2529363-2069065,"1,305.17",ACORN GRANGE NURSING HOME.
Adults Wellbeing and Health,Head of Adults,Third Party Payments,471101,Purchase of Care,06-Dec-2012,2529363-2069066,"1,631.46",ACORN GRANGE NURSING HOME.
Adults Wellbeing and Health,Head of Adults,Third Party Payments,471101,Purchase of Care,06-Dec-2012,2529363-2069067,"1,827.24",ACORN GRANGE NURSING HOME.
Adults Wellbeing and Health,Head of Adults,Third Party Payments,471101,Purchase of Care,06-Dec-2012,2529363-2069068,652.58,ACORN GRANGE NURSING HOME.
Adults Wellbeing and Health,Head of Adults,Third Party Payments,471101,Purchase of Care,06-Dec-2012,2529363-2069069,"1,827.24",ACORN GRANGE NURSING HOME.
Adults Wellbeing and Health,Head of Adults,Third Party Payments,471101,Purchase of Care,06-Dec-2012,2529363-2069070,"1,827.24",ACORN GRANGE NURSING HOME.
Adults Wellbeing and Health,Head of Adults,Third Party Payments,471101,Purchase of Care,06-Dec-2012,2529363-2069073,"1,827.24",ACORN GRANGE NURSING HOME.
Adults Wellbeing and Health,Head of Adults,Third Party Payments,471101,Purchase of Care,06-Dec-2012,2529363-2069497,868.14,ACORN GRANGE NURSING HOME.
Adults Wellbeing and Health,Head of Adults,Transfer Payments,515201,Social Services Clients,06-Dec-2012,2529367-1290759H,658.84,REDACTED - PAYMENT TO INDIVIDUAL
Adults Wellbeing and Health,Head of Adults,Transfer Payments,515201,Social Services Clients,06-Dec-2012,2529368-1286482H,772.84,REDACTED - PAYMENT TO INDIVIDUAL
Adults Wellbeing and Health,Head of Adults,Transfer Payments,515201,Social Services Clients,06-Dec-2012,2529368-1290549H,"1,547.40",REDACTED - PAYMENT TO INDIVIDUAL
Adults Wellbeing and Health,Head of Adults,Transfer Payments,515201,Social Services Clients,06-Dec-2012,2529372-1291236H,"3,380.32",REDACTED - PAYMENT TO INDIVIDUAL
Adults Wellbeing and Health,Head of Adults,Transfer Payments,515209,Social Services Clients,06-Dec-2012,2529373-1289959D,"1,160.00",REDACTED - PAYMENT TO INDIVIDUAL
Adults Wellbeing and Health,Head of Adults,Third Party Payments,474101,Purchase of Care,06-Dec-2012,2529377-2066652,"1,660.00",ADEY GARDENS CARE HOME.
Adults Wellbeing and Health,Head of Adults,Third Party Payments,474101,Purchase of Care,06-Dec-2012,2529378-2068180,"1,672.00",ADMIRAL COURT.
Adults Wellbeing and Health,Head of Adults,Third Party Payments,474101,Purchase of Care,06-Dec-2012,2529378-2068182,"1,195.20",ADMIRAL COURT.
Adults Wellbeing and Health,Head of Adults,Third Party Payments,474101,Purchase of Care,06-Dec-2012,2529378-2069341,537.42,ADMIRAL COURT.
Adults Wellbeing and Health,Head of Adults,Transfer Payments,515201,Social Services Clients,06-Dec-2012,2529382-1288263H,736.32,REDACTED - PAYMENT TO INDIVIDUAL
Adults Wellbeing and Health,Head of Adults,Transfer Payments,515201,Social Services Clients,06-Dec-2012,2529383-1286859H,557.44,REDACTED - PAYMENT TO INDIVIDUAL
Adults Wellbeing and Health,Head of Adults,Transfer Payments,515201,Social Services Clients,06-Dec-2012,2529387-1289603H,749.12,REDACTED - PAYMENT TO INDIVIDUAL
Adults Wellbeing and Health,Head of Adults,Transfer Payments,515201,Social Services Clients,06-Dec-2012,2529388-1287242H,509.72,REDACTED - PAYMENT TO INDIVIDUAL
Adults Wellbeing and Health,Head of Adults,Transfer Payments,515201,Social Services Clients,06-Dec-2012,2529391-1291695H,527.52,REDACTED - PAYMENT TO INDIVIDUAL
Adults Wellbeing and Health,Head of Adults,Transfer Payments,515209,Social Services Clients,06-Dec-2012,2529392-1287513D,533.20,REDACTED - PAYMENT TO INDIVIDUAL
Adults Wellbeing and Health,Head of Adults,Transfer Payments,515201,Social Services Clients,06-Dec-2012,2529393-1287897H,576.00,REDACTED - PAYMENT TO INDIVIDUAL
Adults Wellbeing and Health,Head of Adults,Transfer Payments,515201,Social Services Clients,06-Dec-2012,2529397-1288153H,"1,112.32",REDACTED - PAYMENT TO INDIVIDUAL
Adults Wellbeing and Health,Head of Adults,Transfer Payments,515201,Social Services Clients,06-Dec-2012,2529399-1291779H,"1,941.20",REDACTED - PAYMENT TO INDIVIDUAL
Adults Wellbeing and Health,Head of Adults,Transfer Payments,515201,Social Services Clients,06-Dec-2012,2529402-1292566H,755.44,REDACTED - PAYMENT TO INDIVIDUAL
Adults Wellbeing and Health,Head of Adults,Transfer Payments,515201,Social Services Clients,06-Dec-2012,2529404-1292210H,844.00,REDACTED - PAYMENT TO INDIVIDUAL
Adults Wellbeing and Health,Head of Adults,Transfer Payments,515201,Social Services Clients,06-Dec-2012,2529408-1287492H,"1,600.00",REDACTED - PAYMENT TO INDIVIDUAL
Adults Wellbeing and Health,Head of Adults,Transfer Payments,515201,Social Services Clients,06-Dec-2012,2529409-1288916H,794.52,REDACTED - PAYMENT TO INDIVIDUAL
Adults Wellbeing and Health,Head of Adults,Transfer Payments,515201,Social Services Clients,06-Dec-2012,2529410-1286502H,515.24,REDACTED - PAYMENT TO INDIVIDUAL
Adults Wellbeing and Health,Head of Adults,Transfer Payments,515201,Social Services Clients,06-Dec-2012,2529415-1289960H,856.44,REDACTED - PAYMENT TO INDIVIDUAL
Adults Wellbeing and Health,Head of Adults,Third Party Payments,470101,Purchase of Care,06-Dec-2012,2529417-2065685,"1,857.24",ALLIANCE CARE.
Adults Wellbeing and Health,Head of Adults,Third Party Payments,470101,Purchase of Care,06-Dec-2012,2529417-2065686,"1,340.72",ALLIANCE CARE.
Adults Wellbeing and Health,Head of Adults,Third Party Payments,470101,Purchase of Care,06-Dec-2012,2529417-2065687,"1,263.56",ALLIANCE CARE.
Adults Wellbeing and Health,Head of Adults,Third Party Payments,470101,Purchase of Care,06-Dec-2012,2529417-2065688,"1,039.69",ALLIANCE CARE.
Adults Wellbeing and Health,Head of Adults,Third Party Payments,470101,Purchase of Care,06-Dec-2012,2529417-2065689,"1,380.44",ALLIANCE CARE.
Adults Wellbeing and Health,Head of Adults,Third Party Payments,470101,Purchase of Care,06-Dec-2012,2529417-2065690,"1,591.92",ALLIANCE CARE.
Adults Wellbeing and Health,Head of Adults,Third Party Payments,470101,Purchase of Care,06-Dec-2012,2529417-2065691,"1,329.76",ALLIANCE CARE.
Adults Wellbeing and Health,Head of Adults,Third Party Payments,470101,Purchase of Care,06-Dec-2012,2529417-2065692,973.64,ALLIANCE CARE.
Adults Wellbeing and Health,Head of Adults,Third Party Payments,470101,Purchase of Care,06-Dec-2012,2529417-2065693,"1,857.24",ALLIANCE CARE.
Adults Wellbeing and Health,Head of Adults,Third Party Payments,470101,Purchase of Care,06-Dec-2012,2529417-2065694,"1,857.24",ALLIANCE CARE.
Adults Wellbeing and Health,Head of Adults,Third Party Payments,470101,Purchase of Care,06-Dec-2012,2529417-2065695,"1,149.60",ALLIANCE CARE.
Adults Wellbeing and Health,Head of Adults,Third Party Payments,470101,Purchase of Care,06-Dec-2012,2529417-2065696,"1,380.44",ALLIANCE CARE.
Adults Wellbeing and Health,Head of Adults,Third Party Payments,470101,Purchase of Care,06-Dec-2012,2529417-2065697,"1,320.16",ALLIANCE CARE.
Adults Wellbeing and Health,Head of Adults,Third Party Payments,470101,Purchase of Care,06-Dec-2012,2529417-2065698,"1,108.40",ALLIANCE CARE.
Adults Wellbeing and Health,Head of Adults,Third Party Payments,470101,Purchase of Care,06-Dec-2012,2529417-2065699,"1,857.24",ALLIANCE CARE.
Adults Wellbeing and Health,Head of Adults,Third Party Payments,470101,Purchase of Care,06-Dec-2012,2529417-2065700,"1,974.24",ALLIANCE CARE.
Adults Wellbeing and Health,Head of Adults,Third Party Payments,470101,Purchase of Care,06-Dec-2012,2529417-2065701,"1,380.44",ALLIANCE CARE.
Adults Wellbeing and Health,Head of Adults,Third Party Payments,470101,Purchase of Care,06-Dec-2012,2529417-2065702,"1,380.44",ALLIANCE CARE.
Adults Wellbeing and Health,Head of Adults,Third Party Payments,474101,Purchase of Care,06-Dec-2012,2529417-2066764,"3,146.14",ALLIANCE CARE.
Adults Wellbeing and Health,Head of Adults,Third Party Payments,474101,Purchase of Care,06-Dec-2012,2529417-2066766,"1,348.96",ALLIANCE CARE.
Adults Wellbeing and Health,Head of Adults,Third Party Payments,474101,Purchase of Care,06-Dec-2012,2529417-2066768,"1,448.52",ALLIANCE CARE.
Adults Wellbeing and Health,Head of Adults,Third Party Payments,474101,Purchase of Care,06-Dec-2012,2529417-2066770,"1,320.36",ALLIANCE CARE.
Adults Wellbeing and Health,Head of Adults,Third Party Payments,474101,Purchase of Care,06-Dec-2012,2529417-2066773,"1,536.28",ALLIANCE CARE.
Adults Wellbeing and Health,Head of Adults,Third Party Payments,474101,Purchase of Care,06-Dec-2012,2529417-2066775,"1,468.20",ALLIANCE CARE.
Adults Wellbeing and Health,Head of Adults,Third Party Payments,474101,Purchase of Care,06-Dec-2012,2529417-2066777,"1,405.40",ALLIANCE CARE.
Adults Wellbeing and Health,Head of Adults,Third Party Payments,470101,Purchase of Care,06-Dec-2012,2529417-2067405,"1,621.96",ALLIANCE CARE.
Adults Wellbeing and Health,Head of Adults,Third Party Payments,471101,Purchase of Care,06-Dec-2012,2529417-2068906,"1,333.68",ALLIANCE CARE.
Adults Wellbeing and Health,Head of Adults,Third Party Payments,471101,Purchase of Care,06-Dec-2012,2529417-2068907,"1,110.56",ALLIANCE CARE.
Adults Wellbeing and Health,Head of Adults,Third Party Payments,471101,Purchase of Care,06-Dec-2012,2529417-2068908,"1,925.76",ALLIANCE CARE.
Adults Wellbeing and Health,Head of Adults,Third Party Payments,471101,Purchase of Care,06-Dec-2012,2529417-2068909,"1,380.72",ALLIANCE CARE.
Adults Wellbeing and Health,Head of Adults,Third Party Payments,471101,Purchase of Care,06-Dec-2012,2529417-2068911,"1,222.76",ALLIANCE CARE.
Adults Wellbeing and Health,Head of Adults,Third Party Payments,471101,Purchase of Care,06-Dec-2012,2529417-2068912,"1,368.20",ALLIANCE CARE.
Adults Wellbeing and Health,Head of Adults,Third Party Payments,471101,Purchase of Care,06-Dec-2012,2529417-2068913,"1,266.76",ALLIANCE CARE.
Adults Wellbeing and Health,Head of Adults,Third Party Payments,471101,Purchase of Care,06-Dec-2012,2529417-2068914,"1,925.76",ALLIANCE CARE.
Adults Wellbeing and Health,Head of Adults,Third Party Payments,471101,Purchase of Care,06-Dec-2012,2529417-2068915,997.04,ALLIANCE CARE.
Adults Wellbeing and Health,Head of Adults,Third Party Payments,474101,Purchase of Care,06-Dec-2012,2529418-2067094,"13,734.30",ALLIANCE CARE.
Adults Wellbeing and Health,Head of Adults,Third Party Payments,470101,Purchase of Care,06-Dec-2012,2529418-2067415,"1,612.28",ALLIANCE CARE.
Adults Wellbeing and Health,Head of Adults,Third Party Payments,470101,Purchase of Care,06-Dec-2012,2529418-2067416,"2,651.50",ALLIANCE CARE.
Adults Wellbeing and Health,Head of Adults,Third Party Payments,470101,Purchase of Care,06-Dec-2012,2529418-2067420,766.20,ALLIANCE CARE.
Adults Wellbeing and Health,Head of Adults,Third Party Payments,470101,Purchase of Care,06-Dec-2012,2529418-2067421,"1,050.90",ALLIANCE CARE.
Adults Wellbeing and Health,Head of Adults,Third Party Payments,470101,Purchase of Care,06-Dec-2012,2529418-2067422,"1,961.68",ALLIANCE CARE.
Adults Wellbeing and Health,Head of Adults,Third Party Payments,470101,Purchase of Care,06-Dec-2012,2529418-2067423,926.56,ALLIANCE CARE.
Adults Wellbeing and Health,Head of Adults,Third Party Payments,470101,Purchase of Care,06-Dec-2012,2529418-2067424,"1,650.28",ALLIANCE CARE.
Adults Wellbeing and Health,Head of Adults,Third Party Payments,474101,Purchase of Care,06-Dec-2012,2529418-2067496,"1,996.84",ALLIANCE CARE.
Adults Wellbeing and Health,Head of Adults,Third Party Payments,470101,Purchase of Care,06-Dec-2012,2529418-2069222,"4,273.66",ALLIANCE CARE.
Adults Wellbeing and Health,Head of Adults,Transfer Payments,515201,Social Services Clients,06-Dec-2012,2529419-1290192H,983.68,REDACTED - PAYMENT TO INDIVIDUAL
Adults Wellbeing and Health,Head of Adults,Third Party Payments,470101,Purchase of Care,06-Dec-2012,2529425-2065012,"4,915.68",AMELIA HOUSE.
Adults Wellbeing and Health,Head of Adults,Transfer Payments,515201,Social Services Clients,06-Dec-2012,2529429-1291198H,634.00,REDACTED - PAYMENT TO INDIVIDUAL
Adults Wellbeing and Health,Head of Adults,Third Party Payments,470101,Purchase of Care,06-Dec-2012,2529430-2065951,836.48,ANCYRA HEALTH LTD (IN ADMINISTRATION) FORMERLY AERMID HEALTH CARE (UK) LTD).
Adults Wellbeing and Health,Head of Adults,Third Party Payments,474101,Purchase of Care,06-Dec-2012,2529430-2067559,"1,845.52",ANCYRA HEALTH LTD (IN ADMINISTRATION) FORMERLY AERMID HEALTH CARE (UK) LTD).
Adults Wellbeing and Health,Head of Adults,Third Party Payments,474101,Purchase of Care,06-Dec-2012,2529430-2067561,"1,845.52",ANCYRA HEALTH LTD (IN ADMINISTRATION) FORMERLY AERMID HEALTH CARE (UK) LTD).
Adults Wellbeing and Health,Head of Adults,Third Party Payments,474101,Purchase of Care,06-Dec-2012,2529430-2067576,"1,845.52",ANCYRA HEALTH LTD (IN ADMINISTRATION) FORMERLY AERMID HEALTH CARE (UK) LTD).
Adults Wellbeing and Health,Head of Adults,Third Party Payments,474101,Purchase of Care,06-Dec-2012,2529430-2067580,"1,287.28",ANCYRA HEALTH LTD (IN ADMINISTRATION) FORMERLY AERMID HEALTH CARE (UK) LTD).
Adults Wellbeing and Health,Head of Adults,Third Party Payments,474101,Purchase of Care,06-Dec-2012,2529430-2068312,"1,140.16",ANCYRA HEALTH LTD (IN ADMINISTRATION) FORMERLY AERMID HEALTH CARE (UK) LTD).
Adults Wellbeing and Health,Head of Adults,Third Party Payments,474101,Purchase of Care,06-Dec-2012,2529430-2068358,"1,845.52",ANCYRA HEALTH LTD (IN ADMINISTRATION) FORMERLY AERMID HEALTH CARE (UK) LTD).
Adults Wellbeing and Health,Head of Adults,Third Party Payments,474101,Purchase of Care,06-Dec-2012,2529430-2068360,"1,140.16",ANCYRA HEALTH LTD (IN ADMINISTRATION) FORMERLY AERMID HEALTH CARE (UK) LTD).
Adults Wellbeing and Health,Head of Adults,Third Party Payments,474101,Purchase of Care,06-Dec-2012,2529430-2068361,"1,845.52",ANCYRA HEALTH LTD (IN ADMINISTRATION) FORMERLY AERMID HEALTH CARE (UK) LTD).
Adults Wellbeing and Health,Head of Adults,Third Party Payments,474101,Purchase of Care,06-Dec-2012,2529430-2068363,"1,239.00",ANCYRA HEALTH LTD (IN ADMINISTRATION) FORMERLY AERMID HEALTH CARE (UK) LTD).
Adults Wellbeing and Health,Head of Adults,Third Party Payments,471101,Purchase of Care,06-Dec-2012,2529430-2069045,"1,827.24",ANCYRA HEALTH LTD (IN ADMINISTRATION) FORMERLY AERMID HEALTH CARE (UK) LTD).
Adults Wellbeing and Health,Head of Adults,Third Party Payments,471101,Purchase of Care,06-Dec-2012,2529430-2069111,"1,827.24",ANCYRA HEALTH LTD (IN ADMINISTRATION) FORMERLY AERMID HEALTH CARE (UK) LTD).
Adults Wellbeing and Health,Head of Adults,Third Party Payments,471101,Purchase of Care,06-Dec-2012,2529430-2069112,"2,247.24",ANCYRA HEALTH LTD (IN ADMINISTRATION) FORMERLY AERMID HEALTH CARE (UK) LTD).
Adults Wellbeing and Health,Head of Adults,Third Party Payments,470101,Purchase of Care,06-Dec-2012,2529430-2069113,"1,827.24",ANCYRA HEALTH LTD (IN ADMINISTRATION) FORMERLY AERMID HEALTH CARE (UK) LTD).
Adults Wellbeing and Health,Head of Adults,Third Party Payments,471101,Purchase of Care,06-Dec-2012,2529430-2069114,"1,827.24",ANCYRA HEALTH LTD (IN ADMINISTRATION) FORMERLY AERMID HEALTH CARE (UK) LTD).
Adults Wellbeing and Health,Head of Adults,Third Party Payments,474101,Purchase of Care,06-Dec-2012,2529430-2069477,"5,075.18",ANCYRA HEALTH LTD (IN ADMINISTRATION) FORMERLY AERMID HEALTH CARE (UK) LTD).
Adults Wellbeing and Health,Head of Adults,Transfer Payments,515209,Social Services Clients,06-Dec-2012,2529436-1287257D,"1,327.72",REDACTED - PAYMENT TO INDIVIDUAL
Adults Wellbeing and Health,Head of Adults,Transfer Payments,515201,Social Services Clients,06-Dec-2012,2529437-1288069H,590.80,REDACTED - PAYMENT TO INDIVIDUAL
Adults Wellbeing and Health,Head of Adults,Transfer Payments,515209,Social Services Clients,06-Dec-2012,2529441-1289147D,560.00,REDACTED - PAYMENT TO INDIVIDUAL
Adults Wellbeing and Health,Head of Adults,Transfer Payments,515209,Social Services Clients,06-Dec-2012,2529443-1288497D,528.96,REDACTED - PAYMENT TO INDIVIDUAL
Adults Wellbeing and Health,Head of Adults,Transfer Payments,515201,Social Services Clients,06-Dec-2012,2529444-1290522H,"1,180.96",REDACTED - PAYMENT TO INDIVIDUAL
Adults Wellbeing and Health,Head of Adults,Transfer Payments,515201,Social Services Clients,06-Dec-2012,2529448-1292330H,"2,724.00",REDACTED - PAYMENT TO INDIVIDUAL
Adults Wellbeing and Health,Head of Adults,Transfer Payments,515201,Social Services Clients,06-Dec-2012,2529450-1291356H,"1,391.64",REDACTED - PAYMENT TO INDIVIDUAL
Adults Wellbeing and Health,Head of Adults,Transfer Payments,515201,Social Services Clients,06-Dec-2012,2529451-1290285H,"1,012.16",REDACTED - PAYMENT TO INDIVIDUAL
Adults Wellbeing and Health,Head of Adults,Third Party Payments,474101,Purchase of Care,06-Dec-2012,2529452-2067461,"1,461.60",ANN CHARLTON LODGE.
Adults Wellbeing and Health,Head of Adults,Transfer Payments,515201,Social Services Clients,06-Dec-2012,2529459-1291183H,770.16,REDACTED - PAYMENT TO INDIVIDUAL
Adults Wellbeing and Health,Head of Adults,Transfer Payments,515201,Social Services Clients,06-Dec-2012,2529460-1292391H,917.86,REDACTED - PAYMENT TO INDIVIDUAL
Adults Wellbeing and Health,Head of Adults,Transfer Payments,515201,Social Services Clients,06-Dec-2012,2529463-1288919H,908.00,REDACTED - PAYMENT TO INDIVIDUAL
Adults Wellbeing and Health,Head of Adults,Transfer Payments,515201,Social Services Clients,06-Dec-2012,2529464-1288135H,737.76,REDACTED - PAYMENT TO INDIVIDUAL
Adults Wellbeing and Health,Head of Adults,Transfer Payments,515209,Social Services Clients,06-Dec-2012,2529465-1288462D,785.00,REDACTED - PAYMENT TO INDIVIDUAL
Adults Wellbeing and Health,Head of Adults,Transfer Payments,515201,Social Services Clients,06-Dec-2012,2529465-1288462H,"1,135.00",REDACTED - PAYMENT TO INDIVIDUAL
Adults Wellbeing and Health,Head of Adults,Transfer Payments,515201,Social Services Clients,06-Dec-2012,2529467-1289495H,590.72,REDACTED - PAYMENT TO INDIVIDUAL
Adults Wellbeing and Health,Head of Adults,Transfer Payments,515201,Social Services Clients,06-Dec-2012,2529469-1287064H,"3,022.40",REDACTED - PAYMENT TO INDIVIDUAL
Adults Wellbeing and Health,Head of Adults,Transfer Payments,515201,Social Services Clients,06-Dec-2012,2529469-1288914H,771.80,REDACTED - PAYMENT TO INDIVIDUAL
Adults Wellbeing and Health,Head of Adults,Transfer Payments,515201,Social Services Clients,06-Dec-2012,2529471-1292248H,832.20,REDACTED - PAYMENT TO INDIVIDUAL
Adults Wellbeing and Health,Head of Adults,Third Party Payments,472101,Purchase of Care,06-Dec-2012,2529472-1286938H,"1,154.04",APPLEJACK HOME CARE LTD.
Adults Wellbeing and Health,Head of Adults,Third Party Payments,472101,Purchase of Care,06-Dec-2012,2529472-1287026H,554.37,APPLEJACK HOME CARE LTD.
Adults Wellbeing and Health,Head of Adults,Third Party Payments,472101,Purchase of Care,06-Dec-2012,2529472-1287033H,"1,266.28",APPLEJACK HOME CARE LTD.
Adults Wellbeing and Health,Head of Adults,Third Party Payments,472101,Purchase of Care,06-Dec-2012,2529472-1287049H,"1,271.80",APPLEJACK HOME CARE LTD.
Adults Wellbeing and Health,Head of Adults,Third Party Payments,472101,Purchase of Care,06-Dec-2012,2529472-1288474H,695.68,APPLEJACK HOME CARE LTD.
Adults Wellbeing and Health,Head of Adults,Third Party Payments,472101,Purchase of Care,06-Dec-2012,2529472-1289020H,856.03,APPLEJACK HOME CARE LTD.
Adults Wellbeing and Health,Head of Adults,Third Party Payments,472101,Purchase of Care,06-Dec-2012,2529472-1289031H,949.04,APPLEJACK HOME CARE LTD.
Adults Wellbeing and Health,Head of Adults,Third Party Payments,472101,Purchase of Care,06-Dec-2012,2529472-1289094H,521.76,APPLEJACK HOME CARE LTD.
Adults Wellbeing and Health,Head of Adults,Third Party Payments,472101,Purchase of Care,06-Dec-2012,2529472-1289138H,771.76,APPLEJACK HOME CARE LTD.
Adults Wellbeing and Health,Head of Adults,Third Party Payments,472101,Purchase of Care,06-Dec-2012,2529472-1289268H,598.36,APPLEJACK HOME CARE LTD.
Adults Wellbeing and Health,Head of Adults,Third Party Payments,472101,Purchase of Care,06-Dec-2012,2529472-1289307H,758.19,APPLEJACK HOME CARE LTD.
Adults Wellbeing and Health,Head of Adults,Third Party Payments,472101,Purchase of Care,06-Dec-2012,2529472-1289360H,856.01,APPLEJACK HOME CARE LTD.
Adults Wellbeing and Health,Head of Adults,Third Party Payments,472101,Purchase of Care,06-Dec-2012,2529472-1289621H,979.62,APPLEJACK HOME CARE LTD.
Adults Wellbeing and Health,Head of Adults,Third Party Payments,472101,Purchase of Care,06-Dec-2012,2529472-1289632H,554.36,APPLEJACK HOME CARE LTD.
Adults Wellbeing and Health,Head of Adults,Third Party Payments,472101,Purchase of Care,06-Dec-2012,2529472-1289709H,536.24,APPLEJACK HOME CARE LTD.
Adults Wellbeing and Health,Head of Adults,Third Party Payments,472101,Purchase of Care,06-Dec-2012,2529472-1290008H,738.40,APPLEJACK HOME CARE LTD.
Adults Wellbeing and Health,Head of Adults,Third Party Payments,472101,Purchase of Care,06-Dec-2012,2529472-1290091H,523.57,APPLEJACK HOME CARE LTD.
Adults Wellbeing and Health,Head of Adults,Third Party Payments,472101,Purchase of Care,06-Dec-2012,2529472-1290133H,"1,079.41",APPLEJACK HOME CARE LTD.
Adults Wellbeing and Health,Head of Adults,Third Party Payments,472101,Purchase of Care,06-Dec-2012,2529472-1290404H,655.84,APPLEJACK HOME CARE LTD.
Adults Wellbeing and Health,Head of Adults,Third Party Payments,472101,Purchase of Care,06-Dec-2012,2529472-1290423H,"1,453.87",APPLEJACK HOME CARE LTD.
Adults Wellbeing and Health,Head of Adults,Third Party Payments,472101,Purchase of Care,06-Dec-2012,2529472-1290491H,728.28,APPLEJACK HOME CARE LTD.
Adults Wellbeing and Health,Head of Adults,Third Party Payments,472101,Purchase of Care,06-Dec-2012,2529472-1290545H,946.18,APPLEJACK HOME CARE LTD.
Adults Wellbeing and Health,Head of Adults,Third Party Payments,472101,Purchase of Care,06-Dec-2012,2529472-1290681H,601.48,APPLEJACK HOME CARE LTD.
Adults Wellbeing and Health,Head of Adults,Third Party Payments,472101,Purchase of Care,06-Dec-2012,2529472-1290861H,572.48,APPLEJACK HOME CARE LTD.
Adults Wellbeing and Health,Head of Adults,Third Party Payments,472101,Purchase of Care,06-Dec-2012,2529472-1290969H,655.84,APPLEJACK HOME CARE LTD.
Adults Wellbeing and Health,Head of Adults,Third Party Payments,472101,Purchase of Care,06-Dec-2012,2529472-1290979H,720.15,APPLEJACK HOME CARE LTD.
Adults Wellbeing and Health,Head of Adults,Third Party Payments,472101,Purchase of Care,06-Dec-2012,2529472-1291346H,699.32,APPLEJACK HOME CARE LTD.
Adults Wellbeing and Health,Head of Adults,Third Party Payments,472101,Purchase of Care,06-Dec-2012,2529472-1291387H,550.30,APPLEJACK HOME CARE LTD.
Adults Wellbeing and Health,Head of Adults,Third Party Payments,472101,Purchase of Care,06-Dec-2012,2529472-1291492H,"1,060.68",APPLEJACK HOME CARE LTD.
Adults Wellbeing and Health,Head of Adults,Third Party Payments,472101,Purchase of Care,06-Dec-2012,2529472-1291562H,739.16,APPLEJACK HOME CARE LTD.
Adults Wellbeing and Health,Head of Adults,Third Party Payments,472101,Purchase of Care,06-Dec-2012,2529472-1291602H,561.09,APPLEJACK HOME CARE LTD.
Adults Wellbeing and Health,Head of Adults,Third Party Payments,472101,Purchase of Care,06-Dec-2012,2529472-1291615H,619.60,APPLEJACK HOME CARE LTD.
Adults Wellbeing and Health,Head of Adults,Third Party Payments,472101,Purchase of Care,06-Dec-2012,2529472-1291784H,"1,116.06",APPLEJACK HOME CARE LTD.
Adults Wellbeing and Health,Head of Adults,Third Party Payments,472101,Purchase of Care,06-Dec-2012,2529472-1291793H,565.24,APPLEJACK HOME CARE LTD.
Adults Wellbeing and Health,Head of Adults,Third Party Payments,472101,Purchase of Care,06-Dec-2012,2529472-1291853H,598.36,APPLEJACK HOME CARE LTD.
Adults Wellbeing and Health,Head of Adults,Third Party Payments,472101,Purchase of Care,06-Dec-2012,2529472-1291855H,503.64,APPLEJACK HOME CARE LTD.
Adults Wellbeing and Health,Head of Adults,Third Party Payments,472101,Purchase of Care,06-Dec-2012,2529472-1291919H,529.00,APPLEJACK HOME CARE LTD.
Adults Wellbeing and Health,Head of Adults,Third Party Payments,472101,Purchase of Care,06-Dec-2012,2529472-1291988H,713.19,APPLEJACK HOME CARE LTD.
Adults Wellbeing and Health,Head of Adults,Third Party Payments,472101,Purchase of Care,06-Dec-2012,2529472-1292081H,695.68,APPLEJACK HOME CARE LTD.
Adults Wellbeing and Health,Head of Adults,Third Party Payments,472101,Purchase of Care,06-Dec-2012,2529472-1292108H,679.39,APPLEJACK HOME CARE LTD.
Adults Wellbeing and Health,Head of Adults,Third Party Payments,472101,Purchase of Care,06-Dec-2012,2529472-1292336H,633.94,APPLEJACK HOME CARE LTD.
Adults Wellbeing and Health,Head of Adults,Third Party Payments,472101,Purchase of Care,06-Dec-2012,2529472-1292369H,576.12,APPLEJACK HOME CARE LTD.
Adults Wellbeing and Health,Head of Adults,Third Party Payments,472101,Purchase of Care,06-Dec-2012,2529472-1292583H,652.20,APPLEJACK HOME CARE LTD.
Adults Wellbeing and Health,Head of Adults,Third Party Payments,472101,Purchase of Care,06-Dec-2012,2529472-1292699H,510.88,APPLEJACK HOME CARE LTD.
Adults Wellbeing and Health,Head of Adults,Third Party Payments,472101,Purchase of Care,06-Dec-2012,2529472-1292744H,945.68,APPLEJACK HOME CARE LTD.
Adults Wellbeing and Health,Head of Adults,Third Party Payments,472101,Purchase of Care,06-Dec-2012,2529472-1292805H,804.40,APPLEJACK HOME CARE LTD.
Adults Wellbeing and Health,Head of Adults,Third Party Payments,472101,Purchase of Care,06-Dec-2012,2529472-1292828H,"1,521.82",APPLEJACK HOME CARE LTD.
Adults Wellbeing and Health,Head of Adults,Third Party Payments,472101,Purchase of Care,06-Dec-2012,2529472-1292884H,536.24,APPLEJACK HOME CARE LTD.
Adults Wellbeing and Health,Head of Adults,Third Party Payments,472101,Purchase of Care,06-Dec-2012,2529472-1292976H,523.57,APPLEJACK HOME CARE LTD.
Adults Wellbeing and Health,Head of Adults,Third Party Payments,472101,Purchase of Care,06-Dec-2012,2529472-1292994H,512.70,APPLEJACK HOME CARE LTD.
Adults Wellbeing and Health,Head of Adults,Third Party Payments,472101,Purchase of Care,06-Dec-2012,2529472-1292998H,856.92,APPLEJACK HOME CARE LTD.
Adults Wellbeing and Health,Head of Adults,Transfer Payments,515201,Social Services Clients,06-Dec-2012,2529480-1289781H,590.80,REDACTED - PAYMENT TO INDIVIDUAL
Adults Wellbeing and Health,Head of Adults,Third Party Payments,470101,Purchase of Care,06-Dec-2012,2529483-2066052,"1,315.12",ASCOT CARE NORTHEAST LTD.
Adults Wellbeing and Health,Head of Adults,Third Party Payments,470101,Purchase of Care,06-Dec-2012,2529483-2066053,"1,757.76",ASCOT CARE NORTHEAST LTD.
Adults Wellbeing and Health,Head of Adults,Third Party Payments,470101,Purchase of Care,06-Dec-2012,2529483-2066055,"1,069.22",ASCOT CARE NORTHEAST LTD.
Adults Wellbeing and Health,Head of Adults,Third Party Payments,470101,Purchase of Care,06-Dec-2012,2529483-2066056,"1,757.76",ASCOT CARE NORTHEAST LTD.
Adults Wellbeing and Health,Head of Adults,Third Party Payments,470101,Purchase of Care,06-Dec-2012,2529483-2066057,"1,142.00",ASCOT CARE NORTHEAST LTD.
Adults Wellbeing and Health,Head of Adults,Third Party Payments,470101,Purchase of Care,06-Dec-2012,2529483-2066058,"1,757.76",ASCOT CARE NORTHEAST LTD.
Adults Wellbeing and Health,Head of Adults,Third Party Payments,474101,Purchase of Care,06-Dec-2012,2529483-2066938,"1,320.48",ASCOT CARE NORTHEAST LTD.
Adults Wellbeing and Health,Head of Adults,Third Party Payments,474101,Purchase of Care,06-Dec-2012,2529483-2066940,"1,257.76",ASCOT CARE NORTHEAST LTD.
Adults Wellbeing and Health,Head of Adults,Third Party Payments,474101,Purchase of Care,06-Dec-2012,2529483-2066942,550.84,ASCOT CARE NORTHEAST LTD.
Adults Wellbeing and Health,Head of Adults,Third Party Payments,474101,Purchase of Care,06-Dec-2012,2529483-2066944,"1,324.20",ASCOT CARE NORTHEAST LTD.
Adults Wellbeing and Health,Head of Adults,Third Party Payments,474101,Purchase of Care,06-Dec-2012,2529483-2067043,"1,368.72",ASCOT CARE NORTHEAST LTD.
Adults Wellbeing and Health,Head of Adults,Third Party Payments,474101,Purchase of Care,06-Dec-2012,2529483-2067045,"1,203.12",ASCOT CARE NORTHEAST LTD.
Adults Wellbeing and Health,Head of Adults,Third Party Payments,474101,Purchase of Care,06-Dec-2012,2529483-2067047,"1,398.84",ASCOT CARE NORTHEAST LTD.
Adults Wellbeing and Health,Head of Adults,Third Party Payments,471101,Purchase of Care,06-Dec-2012,2529483-2069039,"1,827.24",ASCOT CARE NORTHEAST LTD.
Adults Wellbeing and Health,Head of Adults,Third Party Payments,471101,Purchase of Care,06-Dec-2012,2529483-2069099,"1,040.64",ASCOT CARE NORTHEAST LTD.
Adults Wellbeing and Health,Head of Adults,Third Party Payments,471101,Purchase of Care,06-Dec-2012,2529483-2069100,"1,827.24",ASCOT CARE NORTHEAST LTD.
Adults Wellbeing and Health,Head of Adults,Third Party Payments,471101,Purchase of Care,06-Dec-2012,2529483-2069101,"1,319.76",ASCOT CARE NORTHEAST LTD.
Adults Wellbeing and Health,Head of Adults,Third Party Payments,470101,Purchase of Care,06-Dec-2012,2529484-2065756,"1,612.28",ASCOT CARE T/A THE GARDENS CARE HOME.
Adults Wellbeing and Health,Head of Adults,Third Party Payments,470101,Purchase of Care,06-Dec-2012,2529484-2065757,"1,672.00",ASCOT CARE T/A THE GARDENS CARE HOME.
Adults Wellbeing and Health,Head of Adults,Third Party Payments,470101,Purchase of Care,06-Dec-2012,2529486-2064812,"1,541.42",ASHBOURNE LODGE CARE HOME.
Adults Wellbeing and Health,Head of Adults,Third Party Payments,470101,Purchase of Care,06-Dec-2012,2529487-2065009,"2,352.00",ASHFIELD NURSING HOME LTD.
Adults Wellbeing and Health,Head of Adults,Third Party Payments,470101,Purchase of Care,06-Dec-2012,2529488-2065064,"1,660.00",ASHLEA COURT.
Adults Wellbeing and Health,Head of Adults,Third Party Payments,471101,Purchase of Care,06-Dec-2012,2529489-2069498,"1,535.71",ASHLEA PARK.
Adults Wellbeing and Health,Head of Adults,Third Party Payments,470101,Purchase of Care,06-Dec-2012,2529490-2067626,950.00,ASHLEIGH HOUSE CARE HOME.
Adults Wellbeing and Health,Head of Adults,Third Party Payments,470101,Purchase of Care,06-Dec-2012,2529490-2067627,"1,900.00",ASHLEIGH HOUSE CARE HOME.
Adults Wellbeing and Health,Head of Adults,Third Party Payments,470101,Purchase of Care,06-Dec-2012,2529490-2067628,"1,102.00",ASHLEIGH HOUSE CARE HOME.
Adults Wellbeing and Health,Head of Adults,Third Party Payments,470101,Purchase of Care,06-Dec-2012,2529490-2067629,"1,660.20",ASHLEIGH HOUSE CARE HOME.
Adults Wellbeing and Health,Head of Adults,Third Party Payments,470101,Purchase of Care,06-Dec-2012,2529493-2065062,"1,864.56",ASTOR LODGE VIEW.
Adults Wellbeing and Health,Head of Adults,Transfer Payments,515201,Social Services Clients,06-Dec-2012,2529499-1288440H,752.56,REDACTED - PAYMENT TO INDIVIDUAL
Adults Wellbeing and Health,Head of Adults,Transfer Payments,515201,Social Services Clients,06-Dec-2012,2529500-1288315H,777.20,REDACTED - PAYMENT TO INDIVIDUAL
Adults Wellbeing and Health,Head of Adults,Transfer Payments,515201,Social Services Clients,06-Dec-2012,2529502-1290426H,748.76,REDACTED - PAYMENT TO INDIVIDUAL
Adults Wellbeing and Health,Head of Adults,Third Party Payments,470101,Purchase of Care,06-Dec-2012,2529503-2067712,"5,014.00",AUTISM CARE UK (4) LTD.
Adults Wellbeing and Health,Head of Adults,Third Party Payments,470101,Purchase of Care,06-Dec-2012,2529503-2067713,"6,400.00",AUTISM CARE UK (4) LTD.
Adults Wellbeing and Health,Head of Adults,Third Party Payments,470101,Purchase of Care,06-Dec-2012,2529503-2067714,"6,400.00",AUTISM CARE UK (4) LTD.
Adults Wellbeing and Health,Head of Adults,Third Party Payments,470101,Purchase of Care,06-Dec-2012,2529503-2067715,"2,907.80",AUTISM CARE UK (4) LTD.
Adults Wellbeing and Health,Head of Adults,Third Party Payments,473101,Purchase of Care,06-Dec-2012,2529504-1287469D,"3,185.40",AUTISM NORTH.
Adults Wellbeing and Health,Head of Adults,Third Party Payments,470101,Purchase of Care,06-Dec-2012,2529505-2067689,"9,625.52",AUTISM NORTH.
Adults Wellbeing and Health,Head of Adults,Third Party Payments,470101,Purchase of Care,06-Dec-2012,2529505-2067690,"19,607.32",AUTISM NORTH.
Adults Wellbeing and Health,Head of Adults,Third Party Payments,470101,Purchase of Care,06-Dec-2012,2529506-2067711,"9,255.28",AUTISM NORTH.
Adults Wellbeing and Health,Head of Adults,Transfer Payments,515201,Social Services Clients,06-Dec-2012,2529509-1289191H,"2,975.00",REDACTED - PAYMENT TO INDIVIDUAL
Adults Wellbeing and Health,Head of Adults,Third Party Payments,470101,Purchase of Care,06-Dec-2012,2529510-2065160,"1,757.76",AYCLIFFE CARE HOME.
Adults Wellbeing and Health,Head of Adults,Third Party Payments,470101,Purchase of Care,06-Dec-2012,2529510-2065164,"1,757.76",AYCLIFFE CARE HOME.
Adults Wellbeing and Health,Head of Adults,Third Party Payments,470101,Purchase of Care,06-Dec-2012,2529510-2065165,"1,129.98",AYCLIFFE CARE HOME.
Adults Wellbeing and Health,Head of Adults,Third Party Payments,470101,Purchase of Care,06-Dec-2012,2529510-2065166,"1,757.76",AYCLIFFE CARE HOME.
Adults Wellbeing and Health,Head of Adults,Third Party Payments,470101,Purchase of Care,06-Dec-2012,2529510-2065167,"1,757.76",AYCLIFFE CARE HOME.
Adults Wellbeing and Health,Head of Adults,Third Party Payments,470101,Purchase of Care,06-Dec-2012,2529510-2065168,"1,632.20",AYCLIFFE CARE HOME.
Adults Wellbeing and Health,Head of Adults,Third Party Payments,470101,Purchase of Care,06-Dec-2012,2529510-2065169,"1,757.76",AYCLIFFE CARE HOME.
Adults Wellbeing and Health,Head of Adults,Third Party Payments,470101,Purchase of Care,06-Dec-2012,2529510-2065171,"1,757.76",AYCLIFFE CARE HOME.
Adults Wellbeing and Health,Head of Adults,Third Party Payments,470101,Purchase of Care,06-Dec-2012,2529510-2065172,"1,757.76",AYCLIFFE CARE HOME.
Adults Wellbeing and Health,Head of Adults,Third Party Payments,470101,Purchase of Care,06-Dec-2012,2529510-2065173,"1,757.76",AYCLIFFE CARE HOME.
Adults Wellbeing and Health,Head of Adults,Third Party Payments,470101,Purchase of Care,06-Dec-2012,2529510-2065174,"1,757.76",AYCLIFFE CARE HOME.
Adults Wellbeing and Health,Head of Adults,Third Party Payments,474101,Purchase of Care,06-Dec-2012,2529510-2067985,"1,318.22",AYCLIFFE CARE HOME.
Adults Wellbeing and Health,Head of Adults,Third Party Payments,474101,Purchase of Care,06-Dec-2012,2529510-2067987,"1,845.52",AYCLIFFE CARE HOME.
Adults Wellbeing and Health,Head of Adults,Third Party Payments,474101,Purchase of Care,06-Dec-2012,2529510-2067989,"1,845.52",AYCLIFFE CARE HOME.
Adults Wellbeing and Health,Head of Adults,Third Party Payments,474101,Purchase of Care,06-Dec-2012,2529510-2067991,"1,845.52",AYCLIFFE CARE HOME.
Adults Wellbeing and Health,Head of Adults,Third Party Payments,474101,Purchase of Care,06-Dec-2012,2529510-2067998,"1,845.52",AYCLIFFE CARE HOME.
Adults Wellbeing and Health,Head of Adults,Third Party Payments,474101,Purchase of Care,06-Dec-2012,2529510-2068000,"1,845.52",AYCLIFFE CARE HOME.
Adults Wellbeing and Health,Head of Adults,Third Party Payments,474101,Purchase of Care,06-Dec-2012,2529510-2068002,"1,845.52",AYCLIFFE CARE HOME.
Adults Wellbeing and Health,Head of Adults,Third Party Payments,474101,Purchase of Care,06-Dec-2012,2529510-2068004,"1,845.52",AYCLIFFE CARE HOME.
Adults Wellbeing and Health,Head of Adults,Third Party Payments,474101,Purchase of Care,06-Dec-2012,2529510-2068006,"1,845.52",AYCLIFFE CARE HOME.
Adults Wellbeing and Health,Head of Adults,Third Party Payments,471101,Purchase of Care,06-Dec-2012,2529510-2068523,"1,827.24",AYCLIFFE CARE HOME.
Adults Wellbeing and Health,Head of Adults,Third Party Payments,471101,Purchase of Care,06-Dec-2012,2529510-2068524,"1,827.24",AYCLIFFE CARE HOME.
Adults Wellbeing and Health,Head of Adults,Third Party Payments,471101,Purchase of Care,06-Dec-2012,2529510-2068528,"1,827.24",AYCLIFFE CARE HOME.
Adults Wellbeing and Health,Head of Adults,Third Party Payments,471101,Purchase of Care,06-Dec-2012,2529510-2068529,"1,827.24",AYCLIFFE CARE HOME.
Adults Wellbeing and Health,Head of Adults,Third Party Payments,471101,Purchase of Care,06-Dec-2012,2529510-2068530,"1,827.24",AYCLIFFE CARE HOME.
Adults Wellbeing and Health,Head of Adults,Third Party Payments,471101,Purchase of Care,06-Dec-2012,2529510-2068531,"1,827.24",AYCLIFFE CARE HOME.
Adults Wellbeing and Health,Head of Adults,Third Party Payments,471101,Purchase of Care,06-Dec-2012,2529510-2068532,"1,827.24",AYCLIFFE CARE HOME.
Adults Wellbeing and Health,Head of Adults,Third Party Payments,471101,Purchase of Care,06-Dec-2012,2529510-2068533,"1,827.24",AYCLIFFE CARE HOME.
Adults Wellbeing and Health,Head of Adults,Third Party Payments,471101,Purchase of Care,06-Dec-2012,2529510-2068534,"1,827.24",AYCLIFFE CARE HOME.
Adults Wellbeing and Health,Head of Adults,Third Party Payments,471101,Purchase of Care,06-Dec-2012,2529510-2068535,"1,827.24",AYCLIFFE CARE HOME.
Adults Wellbeing and Health,Head of Adults,Third Party Payments,471101,Purchase of Care,06-Dec-2012,2529510-2068536,"1,827.24",AYCLIFFE CARE HOME.
Adults Wellbeing and Health,Head of Adults,Third Party Payments,471101,Purchase of Care,06-Dec-2012,2529510-2068537,"1,827.24",AYCLIFFE CARE HOME.
Adults Wellbeing and Health,Head of Adults,Third Party Payments,471101,Purchase of Care,06-Dec-2012,2529510-2068538,"1,827.24",AYCLIFFE CARE HOME.
Adults Wellbeing and Health,Head of Adults,Third Party Payments,471101,Purchase of Care,06-Dec-2012,2529510-2068539,"1,827.24",AYCLIFFE CARE HOME.
Adults Wellbeing and Health,Head of Adults,Third Party Payments,471101,Purchase of Care,06-Dec-2012,2529510-2068540,"1,827.24",AYCLIFFE CARE HOME.
Adults Wellbeing and Health,Head of Adults,Transfer Payments,515209,Social Services Clients,06-Dec-2012,2529511-1287889D,540.52,REDACTED - PAYMENT TO INDIVIDUAL
Adults Wellbeing and Health,Head of Adults,Third Party Payments,478101,Purchase of Care,06-Dec-2012,2529513-1293327H,"3,367.00",B & J DUNCAN.
Adults Wellbeing and Health,Head of Adults,Third Party Payments,478101,Purchase of Care,06-Dec-2012,2529513-1293345H,555.00,B & J DUNCAN.
Adults Wellbeing and Health,Head of Adults,Third Party Payments,471101,Purchase of Care,06-Dec-2012,2529521-2068835,"1,744.00",BARCHESTER HEALTHCARE HOMES LTD.
Adults Wellbeing and Health,Head of Adults,Third Party Payments,471101,Purchase of Care,06-Dec-2012,2529521-2068836,"1,744.00",BARCHESTER HEALTHCARE HOMES LTD.
Adults Wellbeing and Health,Head of Adults,Third Party Payments,471101,Purchase of Care,06-Dec-2012,2529521-2068837,"1,557.14",BARCHESTER HEALTHCARE HOMES LTD.
Adults Wellbeing and Health,Head of Adults,Third Party Payments,474101,Purchase of Care,06-Dec-2012,2529522-2066823,"1,945.00",BARCHESTER HEALTHCARE HOMES LTD.
Adults Wellbeing and Health,Head of Adults,Third Party Payments,474101,Purchase of Care,06-Dec-2012,2529522-2066826,"1,945.00",BARCHESTER HEALTHCARE HOMES LTD.
Adults Wellbeing and Health,Head of Adults,Third Party Payments,474101,Purchase of Care,06-Dec-2012,2529522-2066829,"1,945.00",BARCHESTER HEALTHCARE HOMES LTD.
Adults Wellbeing and Health,Head of Adults,Third Party Payments,474101,Purchase of Care,06-Dec-2012,2529522-2066832,"1,945.00",BARCHESTER HEALTHCARE HOMES LTD.
Adults Wellbeing and Health,Head of Adults,Third Party Payments,474101,Purchase of Care,06-Dec-2012,2529522-2066852,"1,945.00",BARCHESTER HEALTHCARE HOMES LTD.
Adults Wellbeing and Health,Head of Adults,Third Party Payments,474101,Purchase of Care,06-Dec-2012,2529522-2066854,"1,945.00",BARCHESTER HEALTHCARE HOMES LTD.
Adults Wellbeing and Health,Head of Adults,Third Party Payments,474101,Purchase of Care,06-Dec-2012,2529522-2066857,"1,945.00",BARCHESTER HEALTHCARE HOMES LTD.
Adults Wellbeing and Health,Head of Adults,Third Party Payments,474101,Purchase of Care,06-Dec-2012,2529522-2066861,"1,945.00",BARCHESTER HEALTHCARE HOMES LTD.
Adults Wellbeing and Health,Head of Adults,Third Party Payments,474101,Purchase of Care,06-Dec-2012,2529522-2066864,"1,945.00",BARCHESTER HEALTHCARE HOMES LTD.
Adults Wellbeing and Health,Head of Adults,Third Party Payments,474101,Purchase of Care,06-Dec-2012,2529522-2066869,"1,945.00",BARCHESTER HEALTHCARE HOMES LTD.
Adults Wellbeing and Health,Head of Adults,Third Party Payments,474101,Purchase of Care,06-Dec-2012,2529522-2067467,"2,112.28",BARCHESTER HEALTHCARE HOMES LTD.
Adults Wellbeing and Health,Head of Adults,Third Party Payments,474101,Purchase of Care,06-Dec-2012,2529522-2067471,"2,112.28",BARCHESTER HEALTHCARE HOMES LTD.
Adults Wellbeing and Health,Head of Adults,Third Party Payments,474101,Purchase of Care,06-Dec-2012,2529522-2067532,"2,112.28",BARCHESTER HEALTHCARE HOMES LTD.
Adults Wellbeing and Health,Head of Adults,Third Party Payments,474101,Purchase of Care,06-Dec-2012,2529522-2068301,"1,945.00",BARCHESTER HEALTHCARE HOMES LTD.
Adults Wellbeing and Health,Head of Adults,Third Party Payments,474101,Purchase of Care,06-Dec-2012,2529522-2068304,"1,945.00",BARCHESTER HEALTHCARE HOMES LTD.
Adults Wellbeing and Health,Head of Adults,Third Party Payments,474101,Purchase of Care,06-Dec-2012,2529522-2068307,"1,945.00",BARCHESTER HEALTHCARE HOMES LTD.
Adults Wellbeing and Health,Head of Adults,Third Party Payments,474101,Purchase of Care,06-Dec-2012,2529522-2068309,"1,945.00",BARCHESTER HEALTHCARE HOMES LTD.
Adults Wellbeing and Health,Head of Adults,Third Party Payments,474101,Purchase of Care,06-Dec-2012,2529522-2069512,"2,552.00",BARCHESTER HEALTHCARE HOMES LTD.
Adults Wellbeing and Health,Head of Adults,Third Party Payments,474101,Purchase of Care,06-Dec-2012,2529522-2069514,972.50,BARCHESTER HEALTHCARE HOMES LTD.
Adults Wellbeing and Health,Head of Adults,Third Party Payments,471101,Purchase of Care,06-Dec-2012,2529523-2068414,"1,753.56",BARCHESTER HEALTHCARE HOMES LTD.
Adults Wellbeing and Health,Head of Adults,Third Party Payments,471101,Purchase of Care,06-Dec-2012,2529524-2068415,"1,642.20",BARCHESTER HEALTHCARE HOMES LTD.
Adults Wellbeing and Health,Head of Adults,Third Party Payments,470101,Purchase of Care,06-Dec-2012,2529525-2065537,"1,752.00",BARCHESTER HEALTHCARE HOMES LTD.
Adults Wellbeing and Health,Head of Adults,Third Party Payments,474101,Purchase of Care,06-Dec-2012,2529527-2067450,"1,847.12",BARNES COURT NURSING HOME.
Adults Wellbeing and Health,Head of Adults,Transfer Payments,515201,Social Services Clients,06-Dec-2012,2529528-1287213H,"2,616.00",REDACTED - PAYMENT TO INDIVIDUAL
Adults Wellbeing and Health,Head of Adults,Transfer Payments,515201,Social Services Clients,06-Dec-2012,2529529-1290152H,726.40,REDACTED - PAYMENT TO INDIVIDUAL
Adults Wellbeing and Health,Head of Adults,Third Party Payments,470101,Purchase of Care,06-Dec-2012,2529532-2065724,"1,757.76",BEACONSFIELD COURT.
Adults Wellbeing and Health,Head of Adults,Third Party Payments,470101,Purchase of Care,06-Dec-2012,2529532-2065726,"1,632.20",BEACONSFIELD COURT.
Adults Wellbeing and Health,Head of Adults,Third Party Payments,470101,Purchase of Care,06-Dec-2012,2529532-2065728,"1,757.76",BEACONSFIELD COURT.
Adults Wellbeing and Health,Head of Adults,Third Party Payments,470101,Purchase of Care,06-Dec-2012,2529532-2065729,"1,757.76",BEACONSFIELD COURT.
Adults Wellbeing and Health,Head of Adults,Third Party Payments,470101,Purchase of Care,06-Dec-2012,2529532-2065730,"1,757.76",BEACONSFIELD COURT.
Adults Wellbeing and Health,Head of Adults,Third Party Payments,470101,Purchase of Care,06-Dec-2012,2529532-2065731,"1,757.76",BEACONSFIELD COURT.
Adults Wellbeing and Health,Head of Adults,Third Party Payments,470101,Purchase of Care,06-Dec-2012,2529532-2065732,"1,757.76",BEACONSFIELD COURT.
Adults Wellbeing and Health,Head of Adults,Third Party Payments,470101,Purchase of Care,06-Dec-2012,2529532-2065733,"1,757.76",BEACONSFIELD COURT.
Adults Wellbeing and Health,Head of Adults,Third Party Payments,470101,Purchase of Care,06-Dec-2012,2529532-2065734,627.77,BEACONSFIELD COURT.
Adults Wellbeing and Health,Head of Adults,Third Party Payments,470101,Purchase of Care,06-Dec-2012,2529532-2065735,"1,757.76",BEACONSFIELD COURT.
Adults Wellbeing and Health,Head of Adults,Third Party Payments,470101,Purchase of Care,06-Dec-2012,2529532-2065736,"1,757.76",BEACONSFIELD COURT.
Adults Wellbeing and Health,Head of Adults,Third Party Payments,470101,Purchase of Care,06-Dec-2012,2529532-2065737,"1,757.76",BEACONSFIELD COURT.
Adults Wellbeing and Health,Head of Adults,Third Party Payments,474101,Purchase of Care,06-Dec-2012,2529532-2066802,"1,845.52",BEACONSFIELD COURT.
Adults Wellbeing and Health,Head of Adults,Third Party Payments,474101,Purchase of Care,06-Dec-2012,2529532-2066804,"1,845.52",BEACONSFIELD COURT.
Adults Wellbeing and Health,Head of Adults,Third Party Payments,470101,Purchase of Care,06-Dec-2012,2529532-2069419,"1,443.87",BEACONSFIELD COURT.
Adults Wellbeing and Health,Head of Adults,Third Party Payments,470101,Purchase of Care,06-Dec-2012,2529534-2065163,"1,082.84",BEAMISH RESIDENTIAL HOME.
Adults Wellbeing and Health,Head of Adults,Third Party Payments,470101,Purchase of Care,06-Dec-2012,2529534-2065213,"1,757.76",BEAMISH RESIDENTIAL HOME.
Adults Wellbeing and Health,Head of Adults,Third Party Payments,470101,Purchase of Care,06-Dec-2012,2529534-2065214,"1,757.76",BEAMISH RESIDENTIAL HOME.
Adults Wellbeing and Health,Head of Adults,Third Party Payments,470101,Purchase of Care,06-Dec-2012,2529534-2065215,"1,757.76",BEAMISH RESIDENTIAL HOME.
Adults Wellbeing and Health,Head of Adults,Third Party Payments,470101,Purchase of Care,06-Dec-2012,2529534-2065216,"1,757.76",BEAMISH RESIDENTIAL HOME.
Adults Wellbeing and Health,Head of Adults,Third Party Payments,470101,Purchase of Care,06-Dec-2012,2529534-2065217,"1,757.76",BEAMISH RESIDENTIAL HOME.
Adults Wellbeing and Health,Head of Adults,Third Party Payments,470101,Purchase of Care,06-Dec-2012,2529534-2065218,"1,308.16",BEAMISH RESIDENTIAL HOME.
Adults Wellbeing and Health,Head of Adults,Third Party Payments,470101,Purchase of Care,06-Dec-2012,2529534-2065220,"1,134.96",BEAMISH RESIDENTIAL HOME.
Adults Wellbeing and Health,Head of Adults,Third Party Payments,470101,Purchase of Care,06-Dec-2012,2529534-2065221,"1,280.96",BEAMISH RESIDENTIAL HOME.
Adults Wellbeing and Health,Head of Adults,Third Party Payments,470101,Purchase of Care,06-Dec-2012,2529534-2065222,932.68,BEAMISH RESIDENTIAL HOME.
Adults Wellbeing and Health,Head of Adults,Third Party Payments,470101,Purchase of Care,06-Dec-2012,2529534-2065223,"1,233.00",BEAMISH RESIDENTIAL HOME.
Adults Wellbeing and Health,Head of Adults,Third Party Payments,470101,Purchase of Care,06-Dec-2012,2529534-2065224,"1,213.56",BEAMISH RESIDENTIAL HOME.
Adults Wellbeing and Health,Head of Adults,Third Party Payments,470101,Purchase of Care,06-Dec-2012,2529534-2065225,"1,280.96",BEAMISH RESIDENTIAL HOME.
Adults Wellbeing and Health,Head of Adults,Third Party Payments,470101,Purchase of Care,06-Dec-2012,2529534-2065226,"1,232.52",BEAMISH RESIDENTIAL HOME.
Adults Wellbeing and Health,Head of Adults,Third Party Payments,470101,Purchase of Care,06-Dec-2012,2529534-2065227,"1,757.76",BEAMISH RESIDENTIAL HOME.
Adults Wellbeing and Health,Head of Adults,Third Party Payments,470101,Purchase of Care,06-Dec-2012,2529534-2069499,690.54,BEAMISH RESIDENTIAL HOME.
Adults Wellbeing and Health,Head of Adults,Transfer Payments,515201,Social Services Clients,06-Dec-2012,2529536-1288918H,641.84,REDACTED - PAYMENT TO INDIVIDUAL
Adults Wellbeing and Health,Head of Adults,Third Party Payments,470101,Purchase of Care,06-Dec-2012,2529537-2065775,"1,757.76",BEDDELL HOUSE.
Adults Wellbeing and Health,Head of Adults,Third Party Payments,470101,Purchase of Care,06-Dec-2012,2529537-2065776,"1,757.76",BEDDELL HOUSE.
Adults Wellbeing and Health,Head of Adults,Third Party Payments,470101,Purchase of Care,06-Dec-2012,2529537-2065777,"1,757.76",BEDDELL HOUSE.
Adults Wellbeing and Health,Head of Adults,Third Party Payments,470101,Purchase of Care,06-Dec-2012,2529537-2065806,878.88,BEDDELL HOUSE.
Adults Wellbeing and Health,Head of Adults,Third Party Payments,470101,Purchase of Care,06-Dec-2012,2529537-2065807,"1,757.76",BEDDELL HOUSE.
Adults Wellbeing and Health,Head of Adults,Third Party Payments,470101,Purchase of Care,06-Dec-2012,2529537-2065808,"1,757.76",BEDDELL HOUSE.
Adults Wellbeing and Health,Head of Adults,Third Party Payments,470101,Purchase of Care,06-Dec-2012,2529537-2065809,"1,757.76",BEDDELL HOUSE.
Adults Wellbeing and Health,Head of Adults,Third Party Payments,470101,Purchase of Care,06-Dec-2012,2529537-2065810,"1,757.76",BEDDELL HOUSE.
Adults Wellbeing and Health,Head of Adults,Third Party Payments,470101,Purchase of Care,06-Dec-2012,2529537-2065811,"1,757.76",BEDDELL HOUSE.
Adults Wellbeing and Health,Head of Adults,Third Party Payments,470101,Purchase of Care,06-Dec-2012,2529537-2065812,"1,757.76",BEDDELL HOUSE.
Adults Wellbeing and Health,Head of Adults,Third Party Payments,470101,Purchase of Care,06-Dec-2012,2529537-2065813,"1,757.76",BEDDELL HOUSE.
Adults Wellbeing and Health,Head of Adults,Third Party Payments,470101,Purchase of Care,06-Dec-2012,2529538-2067763,"2,145.00",BEECHWOOD RESIDENTIAL CARE SERVICES.
Adults Wellbeing and Health,Head of Adults,Third Party Payments,470101,Purchase of Care,06-Dec-2012,2529538-2067764,"2,145.00",BEECHWOOD RESIDENTIAL CARE SERVICES.
Adults Wellbeing and Health,Head of Adults,Third Party Payments,470101,Purchase of Care,06-Dec-2012,2529538-2067765,"2,145.00",BEECHWOOD RESIDENTIAL CARE SERVICES.
Adults Wellbeing and Health,Head of Adults,Third Party Payments,470101,Purchase of Care,06-Dec-2012,2529541-2065061,"1,824.40",BELLE VUE HOUSE.
Adults Wellbeing and Health,Head of Adults,Third Party Payments,470101,Purchase of Care,06-Dec-2012,2529542-2065893,"1,563.84",BELMONT NURSING HOME.
Adults Wellbeing and Health,Head of Adults,Third Party Payments,470101,Purchase of Care,06-Dec-2012,2529542-2065897,713.04,BELMONT NURSING HOME.
Adults Wellbeing and Health,Head of Adults,Third Party Payments,470101,Purchase of Care,06-Dec-2012,2529542-2065945,"1,001.36",BELMONT NURSING HOME.
Adults Wellbeing and Health,Head of Adults,Third Party Payments,470101,Purchase of Care,06-Dec-2012,2529542-2066071,"1,563.84",BELMONT NURSING HOME.
Adults Wellbeing and Health,Head of Adults,Third Party Payments,470101,Purchase of Care,06-Dec-2012,2529542-2066072,864.68,BELMONT NURSING HOME.
Adults Wellbeing and Health,Head of Adults,Third Party Payments,470101,Purchase of Care,06-Dec-2012,2529542-2066073,588.80,BELMONT NURSING HOME.
Adults Wellbeing and Health,Head of Adults,Third Party Payments,470101,Purchase of Care,06-Dec-2012,2529542-2066075,"1,563.84",BELMONT NURSING HOME.
Adults Wellbeing and Health,Head of Adults,Third Party Payments,474101,Purchase of Care,06-Dec-2012,2529542-2066948,"1,172.76",BELMONT NURSING HOME.
Adults Wellbeing and Health,Head of Adults,Third Party Payments,474101,Purchase of Care,06-Dec-2012,2529542-2066950,"1,172.76",BELMONT NURSING HOME.
Adults Wellbeing and Health,Head of Adults,Third Party Payments,474101,Purchase of Care,06-Dec-2012,2529542-2067067,"1,100.48",BELMONT NURSING HOME.
Adults Wellbeing and Health,Head of Adults,Third Party Payments,474101,Purchase of Care,06-Dec-2012,2529542-2067069,"1,102.28",BELMONT NURSING HOME.
Adults Wellbeing and Health,Head of Adults,Third Party Payments,474101,Purchase of Care,06-Dec-2012,2529542-2067071,"1,649.56",BELMONT NURSING HOME.
Adults Wellbeing and Health,Head of Adults,Third Party Payments,470101,Purchase of Care,06-Dec-2012,2529542-2069356,"1,228.73",BELMONT NURSING HOME.
Adults Wellbeing and Health,Head of Adults,Third Party Payments,470101,Purchase of Care,06-Dec-2012,2529545-2067749,"1,451.04",BENAMY HOUSE.
Adults Wellbeing and Health,Head of Adults,Third Party Payments,470101,Purchase of Care,06-Dec-2012,2529545-2067750,"1,285.64",BENAMY HOUSE.
Adults Wellbeing and Health,Head of Adults,Third Party Payments,470101,Purchase of Care,06-Dec-2012,2529545-2067780,"1,451.04",BENAMY HOUSE.
Adults Wellbeing and Health,Head of Adults,Third Party Payments,470101,Purchase of Care,06-Dec-2012,2529545-2067781,"1,451.04",BENAMY HOUSE.
Adults Wellbeing and Health,Head of Adults,Third Party Payments,470101,Purchase of Care,06-Dec-2012,2529545-2067782,"1,451.04",BENAMY HOUSE.
Adults Wellbeing and Health,Head of Adults,Third Party Payments,474101,Purchase of Care,06-Dec-2012,2529546-2067552,885.96,BENFIELD HALL.
Adults Wellbeing and Health,Head of Adults,Third Party Payments,474101,Purchase of Care,06-Dec-2012,2529546-2067554,"1,789.64",BENFIELD HALL.
Adults Wellbeing and Health,Head of Adults,Third Party Payments,474101,Purchase of Care,06-Dec-2012,2529546-2067557,"1,789.64",BENFIELD HALL.
Adults Wellbeing and Health,Head of Adults,Third Party Payments,474101,Purchase of Care,06-Dec-2012,2529546-2067563,"1,112.24",BENFIELD HALL.
Adults Wellbeing and Health,Head of Adults,Third Party Payments,474101,Purchase of Care,06-Dec-2012,2529546-2067564,"1,256.88",BENFIELD HALL.
Adults Wellbeing and Health,Head of Adults,Third Party Payments,474101,Purchase of Care,06-Dec-2012,2529546-2067566,668.56,BENFIELD HALL.
Adults Wellbeing and Health,Head of Adults,Third Party Payments,474101,Purchase of Care,06-Dec-2012,2529546-2067568,885.96,BENFIELD HALL.
Adults Wellbeing and Health,Head of Adults,Third Party Payments,474101,Purchase of Care,06-Dec-2012,2529546-2067570,"1,478.24",BENFIELD HALL.
Adults Wellbeing and Health,Head of Adults,Third Party Payments,474101,Purchase of Care,06-Dec-2012,2529546-2067572,"1,789.64",BENFIELD HALL.
Adults Wellbeing and Health,Head of Adults,Transfer Payments,515201,Social Services Clients,06-Dec-2012,2529547-1287772H,779.36,REDACTED - PAYMENT TO INDIVIDUAL
Adults Wellbeing and Health,Head of Adults,Transfer Payments,515201,Social Services Clients,06-Dec-2012,2529555-1292382H,"1,318.75",REDACTED - PAYMENT TO INDIVIDUAL
Adults Wellbeing and Health,Head of Adults,Third Party Payments,478101,Purchase of Care,06-Dec-2012,2529558-2068403,"1,216.20",REDACTED - PAYMENT TO INDIVIDUAL
Adults Wellbeing and Health,Head of Adults,Third Party Payments,470101,Purchase of Care,06-Dec-2012,2529562-2065832,"1,563.84",BHACHU CARE LTD.
Adults Wellbeing and Health,Head of Adults,Third Party Payments,471101,Purchase of Care,06-Dec-2012,2529562-2068987,"1,633.24",BHACHU CARE LTD.
Adults Wellbeing and Health,Head of Adults,Third Party Payments,470101,Purchase of Care,06-Dec-2012,2529562-2068988,"1,633.24",BHACHU CARE LTD.
Adults Wellbeing and Health,Head of Adults,Third Party Payments,471101,Purchase of Care,06-Dec-2012,2529562-2068992,"1,633.24",BHACHU CARE LTD.
Adults Wellbeing and Health,Head of Adults,Third Party Payments,471101,Purchase of Care,06-Dec-2012,2529562-2068993,"7,232.92",BHACHU CARE LTD.
Adults Wellbeing and Health,Head of Adults,Third Party Payments,471101,Purchase of Care,06-Dec-2012,2529562-2068994,"1,633.24",BHACHU CARE LTD.
Adults Wellbeing and Health,Head of Adults,Third Party Payments,471101,Purchase of Care,06-Dec-2012,2529562-2068995,"1,633.24",BHACHU CARE LTD.
Adults Wellbeing and Health,Head of Adults,Third Party Payments,471101,Purchase of Care,06-Dec-2012,2529562-2068996,"1,633.24",BHACHU CARE LTD.
Adults Wellbeing and Health,Head of Adults,Third Party Payments,471101,Purchase of Care,06-Dec-2012,2529562-2068998,"1,633.24",BHACHU CARE LTD.
Adults Wellbeing and Health,Head of Adults,Third Party Payments,471101,Purchase of Care,06-Dec-2012,2529562-2068999,"1,633.24",BHACHU CARE LTD.
Adults Wellbeing and Health,Head of Adults,Third Party Payments,470101,Purchase of Care,06-Dec-2012,2529567-2066222,"1,757.76",BISHOPSGATE LODGE.
Adults Wellbeing and Health,Head of Adults,Third Party Payments,470101,Purchase of Care,06-Dec-2012,2529567-2066336,"1,757.76",BISHOPSGATE LODGE.
Adults Wellbeing and Health,Head of Adults,Third Party Payments,470101,Purchase of Care,06-Dec-2012,2529567-2066337,"1,757.76",BISHOPSGATE LODGE.
Adults Wellbeing and Health,Head of Adults,Third Party Payments,470101,Purchase of Care,06-Dec-2012,2529567-2066338,"1,757.76",BISHOPSGATE LODGE.
Adults Wellbeing and Health,Head of Adults,Third Party Payments,470101,Purchase of Care,06-Dec-2012,2529567-2066339,"1,192.76",BISHOPSGATE LODGE.
Adults Wellbeing and Health,Head of Adults,Third Party Payments,470101,Purchase of Care,06-Dec-2012,2529567-2066341,"1,757.76",BISHOPSGATE LODGE.
Adults Wellbeing and Health,Head of Adults,Third Party Payments,470101,Purchase of Care,06-Dec-2012,2529567-2066343,564.99,BISHOPSGATE LODGE.
Adults Wellbeing and Health,Head of Adults,Third Party Payments,470101,Purchase of Care,06-Dec-2012,2529567-2066354,"1,757.76",BISHOPSGATE LODGE.
Adults Wellbeing and Health,Head of Adults,Third Party Payments,470101,Purchase of Care,06-Dec-2012,2529567-2066374,"1,757.76",BISHOPSGATE LODGE.
Adults Wellbeing and Health,Head of Adults,Third Party Payments,470101,Purchase of Care,06-Dec-2012,2529567-2066389,"1,757.76",BISHOPSGATE LODGE.
Adults Wellbeing and Health,Head of Adults,Third Party Payments,470101,Purchase of Care,06-Dec-2012,2529567-2066391,"1,757.76",BISHOPSGATE LODGE.
Adults Wellbeing and Health,Head of Adults,Third Party Payments,470101,Purchase of Care,06-Dec-2012,2529567-2066392,"1,757.76",BISHOPSGATE LODGE.
Adults Wellbeing and Health,Head of Adults,Third Party Payments,470101,Purchase of Care,06-Dec-2012,2529567-2066393,"1,757.76",BISHOPSGATE LODGE.
Adults Wellbeing and Health,Head of Adults,Third Party Payments,474101,Purchase of Care,06-Dec-2012,2529567-2067166,"1,845.52",BISHOPSGATE LODGE.
Adults Wellbeing and Health,Head of Adults,Third Party Payments,470101,Purchase of Care,06-Dec-2012,2529567-2067219,"1,845.52",BISHOPSGATE LODGE.
Adults Wellbeing and Health,Head of Adults,Third Party Payments,474101,Purchase of Care,06-Dec-2012,2529567-2067221,"1,845.52",BISHOPSGATE LODGE.
Adults Wellbeing and Health,Head of Adults,Third Party Payments,474101,Purchase of Care,06-Dec-2012,2529567-2067227,"1,845.52",BISHOPSGATE LODGE.
Adults Wellbeing and Health,Head of Adults,Third Party Payments,474101,Purchase of Care,06-Dec-2012,2529567-2067229,"1,845.52",BISHOPSGATE LODGE.
Adults Wellbeing and Health,Head of Adults,Third Party Payments,474101,Purchase of Care,06-Dec-2012,2529567-2067248,"1,845.52",BISHOPSGATE LODGE.
Adults Wellbeing and Health,Head of Adults,Third Party Payments,474101,Purchase of Care,06-Dec-2012,2529567-2067258,"1,845.52",BISHOPSGATE LODGE.
Adults Wellbeing and Health,Head of Adults,Third Party Payments,474101,Purchase of Care,06-Dec-2012,2529567-2067318,"1,845.52",BISHOPSGATE LODGE.
Adults Wellbeing and Health,Head of Adults,Third Party Payments,474101,Purchase of Care,06-Dec-2012,2529567-2067320,"1,845.52",BISHOPSGATE LODGE.
Adults Wellbeing and Health,Head of Adults,Third Party Payments,474101,Purchase of Care,06-Dec-2012,2529567-2067322,"1,845.52",BISHOPSGATE LODGE.
Adults Wellbeing and Health,Head of Adults,Third Party Payments,474101,Purchase of Care,06-Dec-2012,2529567-2067324,"1,845.52",BISHOPSGATE LODGE.
Adults Wellbeing and Health,Head of Adults,Third Party Payments,474101,Purchase of Care,06-Dec-2012,2529567-2067326,"1,845.52",BISHOPSGATE LODGE.
Adults Wellbeing and Health,Head of Adults,Third Party Payments,474101,Purchase of Care,06-Dec-2012,2529567-2067328,"1,845.52",BISHOPSGATE LODGE.
Adults Wellbeing and Health,Head of Adults,Third Party Payments,471101,Purchase of Care,06-Dec-2012,2529567-2069196,"1,370.43",BISHOPSGATE LODGE.
Adults Wellbeing and Health,Head of Adults,Third Party Payments,471101,Purchase of Care,06-Dec-2012,2529567-2069201,"1,239.91",BISHOPSGATE LODGE.
Adults Wellbeing and Health,Head of Adults,Third Party Payments,471101,Purchase of Care,06-Dec-2012,2529567-2069202,"1,827.24",BISHOPSGATE LODGE.
Adults Wellbeing and Health,Head of Adults,Third Party Payments,471101,Purchase of Care,06-Dec-2012,2529567-2069203,"1,827.24",BISHOPSGATE LODGE.
Adults Wellbeing and Health,Head of Adults,Third Party Payments,474101,Purchase of Care,06-Dec-2012,2529567-2069500,"1,845.52",BISHOPSGATE LODGE.
Adults Wellbeing and Health,Head of Adults,Third Party Payments,470101,Purchase of Care,06-Dec-2012,2529567-2069502,"1,506.65",BISHOPSGATE LODGE.
Adults Wellbeing and Health,Head of Adults,Third Party Payments,472101,Purchase of Care,06-Dec-2012,2529572-1293089H,"2,610.01",BOLTONSHAW HOMECARE.
Adults Wellbeing and Health,Head of Adults,Third Party Payments,470101,Purchase of Care,06-Dec-2012,2529575-2067375,"4,200.00",BOWES COURT CARE HOME.
Adults Wellbeing and Health,Head of Adults,Third Party Payments,474101,Purchase of Care,06-Dec-2012,2529575-2067441,"5,050.00",BOWES COURT CARE HOME.
Adults Wellbeing and Health,Head of Adults,Third Party Payments,474101,Purchase of Care,06-Dec-2012,2529575-2067443,"4,800.00",BOWES COURT CARE HOME.
Adults Wellbeing and Health,Head of Adults,Third Party Payments,474101,Purchase of Care,06-Dec-2012,2529575-2067446,"2,400.00",BOWES COURT CARE HOME.
Adults Wellbeing and Health,Head of Adults,Third Party Payments,474101,Purchase of Care,06-Dec-2012,2529575-2067447,"2,400.00",BOWES COURT CARE HOME.
Adults Wellbeing and Health,Head of Adults,Third Party Payments,470101,Purchase of Care,06-Dec-2012,2529575-2067716,"1,745.85",BOWES COURT CARE HOME.
Adults Wellbeing and Health,Head of Adults,Third Party Payments,470101,Purchase of Care,06-Dec-2012,2529575-2067717,"2,300.00",BOWES COURT CARE HOME.
Adults Wellbeing and Health,Head of Adults,Third Party Payments,470101,Purchase of Care,06-Dec-2012,2529575-2067718,"5,082.00",BOWES COURT CARE HOME.
Adults Wellbeing and Health,Head of Adults,Third Party Payments,470101,Purchase of Care,06-Dec-2012,2529575-2067719,"4,400.00",BOWES COURT CARE HOME.
Adults Wellbeing and Health,Head of Adults,Third Party Payments,470101,Purchase of Care,06-Dec-2012,2529575-2067720,"2,671.42",BOWES COURT CARE HOME.
Adults Wellbeing and Health,Head of Adults,Third Party Payments,470101,Purchase of Care,06-Dec-2012,2529575-2067721,"3,620.00",BOWES COURT CARE HOME.
Adults Wellbeing and Health,Head of Adults,Third Party Payments,474101,Purchase of Care,06-Dec-2012,2529575-2067912,"4,800.00",BOWES COURT CARE HOME.
Adults Wellbeing and Health,Head of Adults,Third Party Payments,474101,Purchase of Care,06-Dec-2012,2529575-2067915,"2,351.20",BOWES COURT CARE HOME.
Adults Wellbeing and Health,Head of Adults,Third Party Payments,474101,Purchase of Care,06-Dec-2012,2529575-2069542,"5,792.58",BOWES COURT CARE HOME.
Adults Wellbeing and Health,Head of Adults,Third Party Payments,470101,Purchase of Care,06-Dec-2012,2529579-2066225,"1,757.76",BRANCEPETH COURT.
Adults Wellbeing and Health,Head of Adults,Third Party Payments,470101,Purchase of Care,06-Dec-2012,2529579-2066226,"1,757.76",BRANCEPETH COURT.
Adults Wellbeing and Health,Head of Adults,Third Party Payments,470101,Purchase of Care,06-Dec-2012,2529579-2066321,"1,757.76",BRANCEPETH COURT.
Adults Wellbeing and Health,Head of Adults,Third Party Payments,470101,Purchase of Care,06-Dec-2012,2529579-2066322,"1,757.76",BRANCEPETH COURT.
Adults Wellbeing and Health,Head of Adults,Third Party Payments,470101,Purchase of Care,06-Dec-2012,2529579-2066363,"1,757.76",BRANCEPETH COURT.
Adults Wellbeing and Health,Head of Adults,Third Party Payments,470101,Purchase of Care,06-Dec-2012,2529579-2066364,"1,129.98",BRANCEPETH COURT.
Adults Wellbeing and Health,Head of Adults,Third Party Payments,470101,Purchase of Care,06-Dec-2012,2529579-2066365,"1,757.76",BRANCEPETH COURT.
Adults Wellbeing and Health,Head of Adults,Third Party Payments,470101,Purchase of Care,06-Dec-2012,2529579-2066366,"1,004.43",BRANCEPETH COURT.
Adults Wellbeing and Health,Head of Adults,Third Party Payments,470101,Purchase of Care,06-Dec-2012,2529579-2066368,"1,757.76",BRANCEPETH COURT.
Adults Wellbeing and Health,Head of Adults,Third Party Payments,470101,Purchase of Care,06-Dec-2012,2529579-2066369,"1,841.76",BRANCEPETH COURT.
Adults Wellbeing and Health,Head of Adults,Third Party Payments,470101,Purchase of Care,06-Dec-2012,2529579-2066371,"1,757.76",BRANCEPETH COURT.
Adults Wellbeing and Health,Head of Adults,Third Party Payments,470101,Purchase of Care,06-Dec-2012,2529579-2066373,"1,757.76",BRANCEPETH COURT.
